,Date Paid,TT,Transaction Number,Amount,Supplier No,Supplier Name,Period,Expense Area,Cipfa(T)
INSERTED DETAIL,03/03/2017,GI,2208651,"1,511.08",HC101143,Brampton Abbotts CE School Imprest,201712,Schools,Supplies & Services
INSERTED DETAIL,03/03/2017,GI,2208832,"20,510.49",HC121175,Matrix SCM Ltd,201712,Adults Operations,Employees
INSERTED DETAIL,03/03/2017,GI,2208832,"2,720.31",HC121175,Matrix SCM Ltd,201712,Mental Health,Employees
INSERTED DETAIL,03/03/2017,GI,2208832,"22,831.38",HC121175,Matrix SCM Ltd,201712,Safeguarding and Family Support,Employees
INSERTED DETAIL,03/03/2017,GI,2208832,790.13,HC121175,REDACTED,201712,Adults Operations,Employees
INSERTED DETAIL,03/03/2017,GI,2208832,566.53,HC121175,REDACTED,201712,Safeguarding and Family Support,Employees
INSERTED DETAIL,03/03/2017,GI,2209616,764.68,HC119375,Gough Bailey Wright Ltd,201712,Resources,Supplies & Services
INSERTED DETAIL,03/03/2017,GI,2209624,720.00,HC110463,Projector Service UK Ltd,201712,Resources,Supplies & Services
INSERTED DETAIL,03/03/2017,GI,2209706,"2,400.00",HC108482,REDACTED,201712,Safeguarding and Family Support,Third Party Payments
INSERTED DETAIL,08/03/2017,GI,2209895,754.27,HC108165,NYS Corporate,201712,Environment and Place,Transport-Related Expenditure
INSERTED DETAIL,08/03/2017,GI,2210106,764.48,HC108278,Orleton C.E. Primary School Imprest,201712,Schools,Supplies & Services
INSERTED DETAIL,10/03/2017,GI,2210180,618.93,HC105275,Ledbury Primary School Imprest,201712,Schools,Premises-Related Expenditure
INSERTED DETAIL,10/03/2017,GI,2210180,"10,071.46",HC105275,Ledbury Primary School Imprest,201712,Schools,Supplies & Services
INSERTED DETAIL,10/03/2017,GI,2210182,"4,425.89",HC121175,Matrix SCM Ltd,201712,Adults Operations,Employees
INSERTED DETAIL,10/03/2017,GI,2210182,"2,076.32",HC121175,Matrix SCM Ltd,201712,Communities,Employees
INSERTED DETAIL,10/03/2017,GI,2210182,"4,467.36",HC121175,Matrix SCM Ltd,201712,Environment and Place,Employees
INSERTED DETAIL,10/03/2017,GI,2210182,"2,936.84",HC121175,Matrix SCM Ltd,201712,Public Health,Employees
INSERTED DETAIL,10/03/2017,GI,2210182,"13,558.30",HC121175,Matrix SCM Ltd,201712,Safeguarding and Family Support,Employees
INSERTED DETAIL,10/03/2017,GI,2210183,"7,404.28",HC108793,REDACTED,201712,Adults Operations,Supplies & Services
INSERTED DETAIL,10/03/2017,GI,2210447,898.28,HC105091,Kington Primary School Imprest A/C,201712,Schools,Supplies & Services
INSERTED DETAIL,10/03/2017,GI,2210447,900.00,HC105091,Kington Primary School Imprest A/C,201712,Schools,Support Services
INSERTED DETAIL,15/03/2017,WM,2210678,420.76,HC108443,West Mercia Energy,201712,Environment and Place,Premises-Related Expenditure
INSERTED DETAIL,15/03/2017,WM,2210680,791.48,HC108443,West Mercia Energy,201712,Environment and Place,Premises-Related Expenditure
INSERTED DETAIL,15/03/2017,WM,2210696,482.02,HC108443,West Mercia Energy,201712,Environment and Place,Premises-Related Expenditure
INSERTED DETAIL,15/03/2017,WM,2210697,580.96,HC108443,West Mercia Energy,201712,Environment and Place,Premises-Related Expenditure
INSERTED DETAIL,15/03/2017,WM,2210698,505.00,HC108443,West Mercia Energy,201712,Environment and Place,Premises-Related Expenditure
INSERTED DETAIL,15/03/2017,WM,2210699,623.11,HC108443,West Mercia Energy,201712,Environment and Place,Premises-Related Expenditure
INSERTED DETAIL,15/03/2017,WM,2210701,433.31,HC108443,West Mercia Energy,201712,Schools,Premises-Related Expenditure
INSERTED DETAIL,15/03/2017,WM,2210703,508.75,HC108443,West Mercia Energy,201712,Schools,Premises-Related Expenditure
INSERTED DETAIL,15/03/2017,WM,2210718,443.04,HC108443,West Mercia Energy,201712,Environment and Place,Premises-Related Expenditure
INSERTED DETAIL,15/03/2017,WM,2210722,818.13,HC108443,West Mercia Energy,201712,Environment and Place,Premises-Related Expenditure
INSERTED DETAIL,15/03/2017,WM,2210727,452.99,HC108443,West Mercia Energy,201712,Schools,Premises-Related Expenditure
INSERTED DETAIL,15/03/2017,WM,2210739,763.52,HC108443,West Mercia Energy,201712,Schools,Premises-Related Expenditure
INSERTED DETAIL,15/03/2017,WM,2210740,458.99,HC108443,West Mercia Energy,201712,Environment and Place,Premises-Related Expenditure
INSERTED DETAIL,15/03/2017,WM,2210748,478.74,HC108443,West Mercia Energy,201712,Environment and Place,Premises-Related Expenditure
INSERTED DETAIL,15/03/2017,WM,2210753,646.92,HC108443,West Mercia Energy,201712,Environment and Place,Premises-Related Expenditure
INSERTED DETAIL,15/03/2017,WM,2210756,430.75,HC108443,West Mercia Energy,201712,Schools,Premises-Related Expenditure
INSERTED DETAIL,15/03/2017,WM,2210760,470.85,HC108443,West Mercia Energy,201712,Environment and Place,Premises-Related Expenditure
INSERTED DETAIL,15/03/2017,WM,2210764,419.59,HC108443,West Mercia Energy,201712,Schools,Premises-Related Expenditure
INSERTED DETAIL,15/03/2017,WM,2210767,476.37,HC108443,West Mercia Energy,201712,Environment and Place,Premises-Related Expenditure
INSERTED DETAIL,15/03/2017,WM,2210775,839.97,HC108443,West Mercia Energy,201712,Schools,Premises-Related Expenditure
INSERTED DETAIL,15/03/2017,WM,2210777,485.57,HC108443,West Mercia Energy,201712,Schools,Premises-Related Expenditure
INSERTED DETAIL,15/03/2017,WM,2210780,446.92,HC108443,West Mercia Energy,201712,Schools,Premises-Related Expenditure
INSERTED DETAIL,15/03/2017,WM,2210783,870.74,HC108443,West Mercia Energy,201712,Environment and Place,Premises-Related Expenditure
INSERTED DETAIL,15/03/2017,WM,2210787,"1,199.37",HC108443,West Mercia Energy,201712,Environment and Place,Premises-Related Expenditure
INSERTED DETAIL,15/03/2017,WM,2210790,799.63,HC108443,West Mercia Energy,201712,Environment and Place,Premises-Related Expenditure
INSERTED DETAIL,15/03/2017,WM,2210796,527.96,HC108443,West Mercia Energy,201712,Environment and Place,Premises-Related Expenditure
INSERTED DETAIL,15/03/2017,WM,2210798,595.24,HC108443,West Mercia Energy,201712,Schools,Premises-Related Expenditure
INSERTED DETAIL,15/03/2017,WM,2210800,747.07,HC108443,West Mercia Energy,201712,Schools,Premises-Related Expenditure
INSERTED DETAIL,15/03/2017,WM,2210801,"1,672.95",HC108443,West Mercia Energy,201712,Schools,Premises-Related Expenditure
INSERTED DETAIL,15/03/2017,WM,2210809,444.39,HC108443,West Mercia Energy,201712,Schools,Premises-Related Expenditure
INSERTED DETAIL,15/03/2017,WM,2210812,448.33,HC108443,West Mercia Energy,201712,Schools,Premises-Related Expenditure
INSERTED DETAIL,15/03/2017,WM,2210815,731.41,HC108443,West Mercia Energy,201712,Environment and Place,Premises-Related Expenditure
INSERTED DETAIL,24/03/2017,GI,2210817,827.47,HC102068,Cradley Primary School Imprest,201712,Schools,Supplies & Services
INSERTED DETAIL,15/03/2017,GI,2210818,873.38,HC101143,Brampton Abbotts CE School Imprest,201712,Schools,Supplies & Services
INSERTED DETAIL,15/03/2017,GI,2210899,"1,384.80",HC109809,Shobdon CP School Imprest A/C,201712,Schools,Supplies & Services
INSERTED DETAIL,24/03/2017,GI,2210981,"1,551.30",HC103506,Goodrich C E Primary Sch Imprest,201712,Schools,Premises-Related Expenditure
INSERTED DETAIL,15/03/2017,GI,2211036,"4,718.15",HC100786,Aylestone School Imprest A/C,201712,Schools,Supplies & Services
INSERTED DETAIL,15/03/2017,GI,2211036,656.82,HC100786,Aylestone School Imprest A/C,201712,Schools,Transport-Related Expenditure
INSERTED DETAIL,15/03/2017,GI,2212031,533.62,HC105069,Kingsland School Imprest,201712,Schools,Supplies & Services
INSERTED DETAIL,15/03/2017,GI,2212031,591.22,HC105069,Kingsland School Imprest,201712,Schools,Support Services
INSERTED DETAIL,17/03/2017,GI,2212779,"12,953.07",HC121175,Matrix SCM Ltd,201712,Adults Operations,Employees
INSERTED DETAIL,17/03/2017,GI,2212779,"8,374.94",HC121175,Matrix SCM Ltd,201712,Communities,Employees
INSERTED DETAIL,17/03/2017,GI,2212779,"3,384.03",HC121175,Matrix SCM Ltd,201712,Mental Health,Employees
INSERTED DETAIL,17/03/2017,GI,2212779,"16,717.04",HC121175,Matrix SCM Ltd,201712,Safeguarding and Family Support,Employees
INSERTED DETAIL,17/03/2017,GI,2212779,"1,315.81",HC121175,REDACTED,201712,Safeguarding and Family Support,Employees
INSERTED DETAIL,17/03/2017,GI,2215261,860.86,HC111312,Walford Primary School Imprest Account,201712,Schools,Premises-Related Expenditure
INSERTED DETAIL,17/03/2017,GI,2215261,"2,352.66",HC111312,Walford Primary School Imprest Account,201712,Schools,Supplies & Services
INSERTED DETAIL,22/03/2017,GI,2215376,547.60,HC103627,H C Westfield School Imprest,201712,Schools,Employees
INSERTED DETAIL,22/03/2017,GI,2215376,"2,252.09",HC103627,H C Westfield School Imprest,201712,Schools,Supplies & Services
INSERTED DETAIL,22/03/2017,GI,2215376,"1,045.39",HC103627,H C Westfield School Imprest,201712,Schools,Transport-Related Expenditure
INSERTED DETAIL,22/03/2017,GI,2215478,417.87,HC102369,Madley Primary School Imprest A/C,201712,Schools,Supplies & Services
INSERTED DETAIL,22/03/2017,GI,2215495,"1,140.00",HC118940,Earl Mortimer College & Sixth Form HCC,201712,Children & Young People Capital,Capital Income
INSERTED DETAIL,22/03/2017,GI,2215505,785.00,HC105841,Marlbrook  Primary School,201712,Children & Young People Capital,Capital Income
INSERTED DETAIL,22/03/2017,GI,2215509,654.00,HC100677,Ashfield Park Primary School,201712,Children & Young People Capital,Capital Income
INSERTED DETAIL,22/03/2017,GI,2215513,456.00,HC116432,Ewyas Harold Primary School-A/C 63712842,201712,Children & Young People Capital,Capital Income
INSERTED DETAIL,22/03/2017,GI,2215518,801.00,HC118939,Riverside Primary School - HCC,201712,Children & Young People Capital,Capital Income
INSERTED DETAIL,22/03/2017,GI,2215529,458.37,HC106103,Holmer C of E Academy,201712,Central Childrens Directorate Costs,Support Services
INSERTED DETAIL,22/03/2017,GI,2215531,458.37,HC115716,Mordiford Church of England Primary School,201712,Central Childrens Directorate Costs,Support Services
INSERTED DETAIL,22/03/2017,GI,2215532,458.37,HC107656,St Pauls Church of England Primary School,201712,Central Childrens Directorate Costs,Support Services
INSERTED DETAIL,22/03/2017,GI,2215533,458.37,HC107656,St Pauls Church of England Primary School,201712,Central Childrens Directorate Costs,Support Services
INSERTED DETAIL,22/03/2017,GI,2215535,458.37,HC105572,Lady Hawkins School (Academy),201712,Central Childrens Directorate Costs,Support Services
INSERTED DETAIL,22/03/2017,GI,2215544,458.37,HC110648,BAE Trust T/A The Hereford Academy,201712,Central Childrens Directorate Costs,Support Services
INSERTED DETAIL,22/03/2017,GI,2215548,458.37,HC110794,The Steiner Academy Hereford,201712,Central Childrens Directorate Costs,Support Services
INSERTED DETAIL,22/03/2017,GI,2215550,"1,033.37",HC113960,Barrs Court Academy,201712,Central Childrens Directorate Costs,Support Services
INSERTED DETAIL,22/03/2017,GI,2215551,"1,033.37",HC113960,Barrs Court Academy,201712,Central Childrens Directorate Costs,Support Services
INSERTED DETAIL,22/03/2017,GI,2215553,"1,033.37",HC113960,Barrs Court Academy,201712,Central Childrens Directorate Costs,Support Services
INSERTED DETAIL,22/03/2017,GI,2215554,458.37,HC113960,Barrs Court Academy,201712,Central Childrens Directorate Costs,Support Services
INSERTED DETAIL,22/03/2017,GI,2215555,719.13,HC113960,Barrs Court Academy,201712,Central Childrens Directorate Costs,Support Services
INSERTED DETAIL,22/03/2017,GI,2215556,719.13,HC113960,Barrs Court Academy,201712,Central Childrens Directorate Costs,Support Services
INSERTED DETAIL,22/03/2017,GI,2215557,458.37,HC113960,Barrs Court Academy,201712,Central Childrens Directorate Costs,Support Services
INSERTED DETAIL,22/03/2017,GI,2215558,719.13,HC113960,Barrs Court Academy,201712,Central Childrens Directorate Costs,Support Services
INSERTED DETAIL,22/03/2017,GI,2215559,"1,033.37",HC113960,Barrs Court Academy,201712,Central Childrens Directorate Costs,Support Services
INSERTED DETAIL,22/03/2017,GI,2215560,"1,033.37",HC113960,Barrs Court Academy,201712,Central Childrens Directorate Costs,Support Services
INSERTED DETAIL,22/03/2017,GI,2215561,719.13,HC113960,Barrs Court Academy,201712,Central Childrens Directorate Costs,Support Services
INSERTED DETAIL,22/03/2017,GI,2215562,"1,033.37",HC113960,Barrs Court Academy,201712,Central Childrens Directorate Costs,Support Services
INSERTED DETAIL,22/03/2017,GI,2215563,458.37,HC113960,Barrs Court Academy,201712,Central Childrens Directorate Costs,Support Services
INSERTED DETAIL,22/03/2017,GI,2215564,"1,399.13",HC113960,Barrs Court Academy,201712,Central Childrens Directorate Costs,Support Services
INSERTED DETAIL,22/03/2017,GI,2215565,719.13,HC113960,Barrs Court Academy,201712,Central Childrens Directorate Costs,Support Services
INSERTED DETAIL,22/03/2017,GI,2215566,719.13,HC113960,Barrs Court Academy,201712,Central Childrens Directorate Costs,Support Services
INSERTED DETAIL,22/03/2017,GI,2215567,"1,033.37",HC113960,Barrs Court Academy,201712,Central Childrens Directorate Costs,Support Services
INSERTED DETAIL,22/03/2017,GI,2215568,719.13,HC113960,Barrs Court Academy,201712,Central Childrens Directorate Costs,Support Services
INSERTED DETAIL,22/03/2017,GI,2215569,719.13,HC113960,Barrs Court Academy,201712,Central Childrens Directorate Costs,Support Services
INSERTED DETAIL,22/03/2017,GI,2215570,458.37,HC113960,Barrs Court Academy,201712,Central Childrens Directorate Costs,Support Services
INSERTED DETAIL,22/03/2017,GI,2215571,"1,033.37",HC113960,Barrs Court Academy,201712,Central Childrens Directorate Costs,Support Services
INSERTED DETAIL,22/03/2017,GI,2215572,"1,033.37",HC113960,Barrs Court Academy,201712,Central Childrens Directorate Costs,Support Services
INSERTED DETAIL,22/03/2017,GI,2215573,719.13,HC113960,Barrs Court Academy,201712,Central Childrens Directorate Costs,Support Services
INSERTED DETAIL,22/03/2017,GI,2215574,719.13,HC113960,Barrs Court Academy,201712,Central Childrens Directorate Costs,Support Services
INSERTED DETAIL,22/03/2017,GI,2215575,"1,033.37",HC113960,Barrs Court Academy,201712,Central Childrens Directorate Costs,Support Services
INSERTED DETAIL,22/03/2017,GI,2215576,"1,033.37",HC113960,Barrs Court Academy,201712,Central Childrens Directorate Costs,Support Services
INSERTED DETAIL,22/03/2017,GI,2215577,719.13,HC113960,Barrs Court Academy,201712,Central Childrens Directorate Costs,Support Services
INSERTED DETAIL,22/03/2017,GI,2215578,"1,399.13",HC113960,Barrs Court Academy,201712,Central Childrens Directorate Costs,Support Services
INSERTED DETAIL,22/03/2017,GI,2215579,"1,033.37",HC113960,Barrs Court Academy,201712,Central Childrens Directorate Costs,Support Services
INSERTED DETAIL,22/03/2017,GI,2215580,458.37,HC113960,Barrs Court Academy,201712,Central Childrens Directorate Costs,Support Services
INSERTED DETAIL,22/03/2017,GI,2215581,719.13,HC113960,Barrs Court Academy,201712,Central Childrens Directorate Costs,Support Services
INSERTED DETAIL,22/03/2017,GI,2215582,458.37,HC113960,Barrs Court Academy,201712,Central Childrens Directorate Costs,Support Services
INSERTED DETAIL,22/03/2017,GI,2215583,458.37,HC113960,Barrs Court Academy,201712,Central Childrens Directorate Costs,Support Services
INSERTED DETAIL,22/03/2017,GI,2215584,458.37,HC113960,Barrs Court Academy,201712,Central Childrens Directorate Costs,Support Services
INSERTED DETAIL,22/03/2017,GI,2215585,719.13,HC113960,Barrs Court Academy,201712,Central Childrens Directorate Costs,Support Services
INSERTED DETAIL,22/03/2017,GI,2215586,719.13,HC113960,Barrs Court Academy,201712,Central Childrens Directorate Costs,Support Services
INSERTED DETAIL,22/03/2017,GI,2215587,"1,033.37",HC113960,Barrs Court Academy,201712,Central Childrens Directorate Costs,Support Services
INSERTED DETAIL,22/03/2017,GI,2215588,719.13,HC113960,Barrs Court Academy,201712,Central Childrens Directorate Costs,Support Services
INSERTED DETAIL,22/03/2017,GI,2215589,719.13,HC113960,Barrs Court Academy,201712,Central Childrens Directorate Costs,Support Services
INSERTED DETAIL,22/03/2017,GI,2215590,719.13,HC113960,Barrs Court Academy,201712,Central Childrens Directorate Costs,Support Services
INSERTED DETAIL,22/03/2017,GI,2215591,"1,033.37",HC113960,Barrs Court Academy,201712,Central Childrens Directorate Costs,Support Services
INSERTED DETAIL,22/03/2017,GI,2215592,"1,033.37",HC113960,Barrs Court Academy,201712,Central Childrens Directorate Costs,Support Services
INSERTED DETAIL,22/03/2017,GI,2215593,"1,033.37",HC113960,Barrs Court Academy,201712,Central Childrens Directorate Costs,Support Services
INSERTED DETAIL,22/03/2017,GI,2215594,"1,033.37",HC113960,Barrs Court Academy,201712,Central Childrens Directorate Costs,Support Services
INSERTED DETAIL,22/03/2017,GI,2215595,"1,399.13",HC113960,Barrs Court Academy,201712,Central Childrens Directorate Costs,Support Services
INSERTED DETAIL,22/03/2017,GI,2215596,"1,033.37",HC113960,Barrs Court Academy,201712,Central Childrens Directorate Costs,Support Services
INSERTED DETAIL,22/03/2017,GI,2215597,"1,033.37",HC113960,Barrs Court Academy,201712,Central Childrens Directorate Costs,Support Services
INSERTED DETAIL,22/03/2017,GI,2215598,"1,399.13",HC113960,Barrs Court Academy,201712,Central Childrens Directorate Costs,Support Services
INSERTED DETAIL,22/03/2017,GI,2215599,719.13,HC113960,Barrs Court Academy,201712,Central Childrens Directorate Costs,Support Services
INSERTED DETAIL,22/03/2017,GI,2215600,719.13,HC113960,Barrs Court Academy,201712,Central Childrens Directorate Costs,Support Services
INSERTED DETAIL,22/03/2017,GI,2215601,719.13,HC113960,Barrs Court Academy,201712,Central Childrens Directorate Costs,Support Services
INSERTED DETAIL,22/03/2017,GI,2215602,719.13,HC113960,Barrs Court Academy,201712,Central Childrens Directorate Costs,Support Services
INSERTED DETAIL,22/03/2017,GI,2215603,719.13,HC117835,The Brookfield School (Academy),201712,Central Childrens Directorate Costs,Support Services
INSERTED DETAIL,22/03/2017,GI,2215604,719.13,HC117835,The Brookfield School (Academy),201712,Central Childrens Directorate Costs,Support Services
INSERTED DETAIL,22/03/2017,GI,2215605,458.37,HC117835,The Brookfield School (Academy),201712,Central Childrens Directorate Costs,Support Services
INSERTED DETAIL,22/03/2017,GI,2215606,719.13,HC117835,The Brookfield School (Academy),201712,Central Childrens Directorate Costs,Support Services
INSERTED DETAIL,22/03/2017,GI,2215607,458.37,HC117835,The Brookfield School (Academy),201712,Central Childrens Directorate Costs,Support Services
INSERTED DETAIL,22/03/2017,GI,2215608,458.37,HC117835,The Brookfield School (Academy),201712,Central Childrens Directorate Costs,Support Services
INSERTED DETAIL,22/03/2017,GI,2215609,458.37,HC117835,The Brookfield School (Academy),201712,Central Childrens Directorate Costs,Support Services
INSERTED DETAIL,22/03/2017,GI,2215610,719.13,HC117835,The Brookfield School (Academy),201712,Central Childrens Directorate Costs,Support Services
INSERTED DETAIL,22/03/2017,GI,2215611,719.13,HC117835,The Brookfield School (Academy),201712,Central Childrens Directorate Costs,Support Services
INSERTED DETAIL,22/03/2017,GI,2215612,719.13,HC117835,The Brookfield School (Academy),201712,Central Childrens Directorate Costs,Support Services
INSERTED DETAIL,22/03/2017,GI,2215613,719.13,HC117835,The Brookfield School (Academy),201712,Central Childrens Directorate Costs,Support Services
INSERTED DETAIL,22/03/2017,GI,2215614,719.13,HC117835,The Brookfield School (Academy),201712,Central Childrens Directorate Costs,Support Services
INSERTED DETAIL,22/03/2017,GI,2215615,458.37,HC117835,The Brookfield School (Academy),201712,Central Childrens Directorate Costs,Support Services
INSERTED DETAIL,22/03/2017,GI,2215616,719.13,HC117835,The Brookfield School (Academy),201712,Central Childrens Directorate Costs,Support Services
INSERTED DETAIL,22/03/2017,GI,2215617,719.13,HC117835,The Brookfield School (Academy),201712,Central Childrens Directorate Costs,Support Services
INSERTED DETAIL,22/03/2017,GI,2215618,719.13,HC117835,The Brookfield School (Academy),201712,Central Childrens Directorate Costs,Support Services
INSERTED DETAIL,22/03/2017,GI,2215619,458.37,HC111701,Whitecross Hereford Academy,201712,Central Childrens Directorate Costs,Support Services
INSERTED DETAIL,22/03/2017,GI,2215620,458.37,HC104739,John Masefield High School (Academy),201712,Central Childrens Directorate Costs,Support Services
INSERTED DETAIL,22/03/2017,GI,2215629,458.37,HC110648,BAE Trust T/A The Hereford Academy,201712,Central Childrens Directorate Costs,Support Services
INSERTED DETAIL,22/03/2017,GI,2215631,719.13,HC117835,The Brookfield School (Academy),201712,Central Childrens Directorate Costs,Support Services
INSERTED DETAIL,22/03/2017,GI,2215632,719.13,HC117835,The Brookfield School (Academy),201712,Central Childrens Directorate Costs,Support Services
INSERTED DETAIL,22/03/2017,GI,2215633,458.37,HC113960,Barrs Court Academy,201712,Central Childrens Directorate Costs,Support Services
INSERTED DETAIL,22/03/2017,GI,2215634,"1,033.37",HC113960,Barrs Court Academy,201712,Central Childrens Directorate Costs,Support Services
INSERTED DETAIL,22/03/2017,GI,2215635,"1,399.13",HC113960,Barrs Court Academy,201712,Central Childrens Directorate Costs,Support Services
INSERTED DETAIL,22/03/2017,GI,2215636,"1,033.37",HC113960,Barrs Court Academy,201712,Central Childrens Directorate Costs,Support Services
INSERTED DETAIL,22/03/2017,GI,2215637,"1,033.37",HC113960,Barrs Court Academy,201712,Central Childrens Directorate Costs,Support Services
INSERTED DETAIL,22/03/2017,GI,2215638,719.13,HC113960,Barrs Court Academy,201712,Central Childrens Directorate Costs,Support Services
INSERTED DETAIL,22/03/2017,GI,2215639,719.13,HC113960,Barrs Court Academy,201712,Central Childrens Directorate Costs,Support Services
INSERTED DETAIL,22/03/2017,GI,2215640,"1,033.37",HC113960,Barrs Court Academy,201712,Central Childrens Directorate Costs,Support Services
INSERTED DETAIL,22/03/2017,GI,2215641,458.37,HC113960,Barrs Court Academy,201712,Central Childrens Directorate Costs,Support Services
INSERTED DETAIL,22/03/2017,GI,2215642,458.37,HC113960,Barrs Court Academy,201712,Central Childrens Directorate Costs,Support Services
INSERTED DETAIL,22/03/2017,GI,2215643,458.37,HC113960,Barrs Court Academy,201712,Central Childrens Directorate Costs,Support Services
INSERTED DETAIL,22/03/2017,GI,2215644,458.37,HC113960,Barrs Court Academy,201712,Central Childrens Directorate Costs,Support Services
INSERTED DETAIL,22/03/2017,GI,2215645,"1,033.37",HC113960,Barrs Court Academy,201712,Central Childrens Directorate Costs,Support Services
INSERTED DETAIL,22/03/2017,GI,2215646,"1,399.13",HC113960,Barrs Court Academy,201712,Central Childrens Directorate Costs,Support Services
INSERTED DETAIL,22/03/2017,GI,2215647,"1,033.37",HC113960,Barrs Court Academy,201712,Central Childrens Directorate Costs,Support Services
INSERTED DETAIL,22/03/2017,GI,2215648,"2,141.63",HC117835,The Brookfield School (Academy),201712,Central Childrens Directorate Costs,Support Services
INSERTED DETAIL,22/03/2017,GI,2215650,458.37,HC104870,Kingstone High School (Academy),201712,Central Childrens Directorate Costs,Support Services
INSERTED DETAIL,22/03/2017,GI,2215651,458.37,HC110648,BAE Trust T/A The Hereford Academy,201712,Central Childrens Directorate Costs,Support Services
INSERTED DETAIL,22/03/2017,GI,2215652,458.37,HC117835,The Brookfield School (Academy),201712,Central Childrens Directorate Costs,Support Services
INSERTED DETAIL,22/03/2017,GI,2215653,458.37,HC117835,The Brookfield School (Academy),201712,Central Childrens Directorate Costs,Support Services
INSERTED DETAIL,22/03/2017,GI,2215654,458.37,HC117835,The Brookfield School (Academy),201712,Central Childrens Directorate Costs,Support Services
INSERTED DETAIL,22/03/2017,GI,2215655,719.13,HC113960,Barrs Court Academy,201712,Central Childrens Directorate Costs,Support Services
INSERTED DETAIL,22/03/2017,GI,2215656,458.37,HC113960,Barrs Court Academy,201712,Central Childrens Directorate Costs,Support Services
INSERTED DETAIL,22/03/2017,GI,2215657,719.13,HC113960,Barrs Court Academy,201712,Central Childrens Directorate Costs,Support Services
INSERTED DETAIL,22/03/2017,GI,2215658,719.13,HC113960,Barrs Court Academy,201712,Central Childrens Directorate Costs,Support Services
INSERTED DETAIL,22/03/2017,GI,2215659,458.37,HC102152,Ashperton Primary Academy,201712,Central Childrens Directorate Costs,Support Services
INSERTED DETAIL,22/03/2017,GI,2215662,458.37,HC104761,Herefordshire Marches Federation-Lord Scudamore,201712,Central Childrens Directorate Costs,Support Services
INSERTED DETAIL,22/03/2017,GI,2215663,458.37,HC105572,Lady Hawkins School (Academy),201712,Central Childrens Directorate Costs,Support Services
INSERTED DETAIL,22/03/2017,GI,2215664,458.37,HC113960,Barrs Court Academy,201712,Central Childrens Directorate Costs,Support Services
INSERTED DETAIL,22/03/2017,GI,2215666,719.13,HC117835,The Brookfield School (Academy),201712,Central Childrens Directorate Costs,Support Services
INSERTED DETAIL,22/03/2017,GI,2215667,458.37,HC117835,The Brookfield School (Academy),201712,Central Childrens Directorate Costs,Support Services
INSERTED DETAIL,22/03/2017,GI,2215668,458.37,HC117835,The Brookfield School (Academy),201712,Central Childrens Directorate Costs,Support Services
INSERTED DETAIL,22/03/2017,GI,2215669,719.13,HC117835,The Brookfield School (Academy),201712,Central Childrens Directorate Costs,Support Services
INSERTED DETAIL,22/03/2017,GI,2215670,458.37,HC117835,The Brookfield School (Academy),201712,Central Childrens Directorate Costs,Support Services
INSERTED DETAIL,22/03/2017,GI,2215671,719.13,HC117835,The Brookfield School (Academy),201712,Central Childrens Directorate Costs,Support Services
INSERTED DETAIL,22/03/2017,GI,2215672,458.37,HC110794,The Steiner Academy Hereford,201712,Central Childrens Directorate Costs,Support Services
INSERTED DETAIL,22/03/2017,GI,2215673,"1,033.37",HC113960,Barrs Court Academy,201712,Central Childrens Directorate Costs,Support Services
INSERTED DETAIL,22/03/2017,GI,2215676,458.37,HC102183,Herefordshire Marches Federation-Kings Caple,201712,Central Childrens Directorate Costs,Support Services
INSERTED DETAIL,22/03/2017,GI,2215678,719.13,HC117835,The Brookfield School (Academy),201712,Central Childrens Directorate Costs,Support Services
INSERTED DETAIL,22/03/2017,GI,2215679,458.37,HC115884,St Thomas Cantilupe CE Academy,201712,Central Childrens Directorate Costs,Support Services
INSERTED DETAIL,22/03/2017,GI,2215687,458.37,HC113960,Barrs Court Academy,201712,Central Childrens Directorate Costs,Support Services
INSERTED DETAIL,22/03/2017,GI,2215688,458.37,HC113960,Barrs Court Academy,201712,Central Childrens Directorate Costs,Support Services
INSERTED DETAIL,22/03/2017,GI,2215689,458.37,HC113960,Barrs Court Academy,201712,Central Childrens Directorate Costs,Support Services
INSERTED DETAIL,22/03/2017,GI,2215690,"1,033.37",HC113960,Barrs Court Academy,201712,Central Childrens Directorate Costs,Support Services
INSERTED DETAIL,22/03/2017,GI,2215692,458.37,HC117835,The Brookfield School (Academy),201712,Central Childrens Directorate Costs,Support Services
INSERTED DETAIL,22/03/2017,GI,2215695,458.37,HC113960,Barrs Court Academy,201712,Central Childrens Directorate Costs,Support Services
INSERTED DETAIL,22/03/2017,GI,2215697,"1,033.37",HC113960,Barrs Court Academy,201712,Central Childrens Directorate Costs,Support Services
INSERTED DETAIL,22/03/2017,GI,2215698,458.37,HC113960,Barrs Court Academy,201712,Central Childrens Directorate Costs,Support Services
INSERTED DETAIL,22/03/2017,GI,2215699,"1,033.37",HC113960,Barrs Court Academy,201712,Central Childrens Directorate Costs,Support Services
INSERTED DETAIL,22/03/2017,GI,2215700,458.37,HC113960,Barrs Court Academy,201712,Central Childrens Directorate Costs,Support Services
INSERTED DETAIL,22/03/2017,GI,2215701,458.37,HC117835,The Brookfield School (Academy),201712,Central Childrens Directorate Costs,Support Services
INSERTED DETAIL,22/03/2017,GI,2215702,458.37,HC117835,The Brookfield School (Academy),201712,Central Childrens Directorate Costs,Support Services
INSERTED DETAIL,22/03/2017,GI,2215705,458.37,HC104739,John Masefield High School (Academy),201712,Central Childrens Directorate Costs,Support Services
INSERTED DETAIL,22/03/2017,GI,2215706,458.37,HC113960,Barrs Court Academy,201712,Central Childrens Directorate Costs,Support Services
INSERTED DETAIL,22/03/2017,GI,2215707,719.13,HC113960,Barrs Court Academy,201712,Central Childrens Directorate Costs,Support Services
INSERTED DETAIL,22/03/2017,GI,2215708,458.37,HC113960,Barrs Court Academy,201712,Central Childrens Directorate Costs,Support Services
INSERTED DETAIL,22/03/2017,GI,2215709,458.37,HC113960,Barrs Court Academy,201712,Central Childrens Directorate Costs,Support Services
INSERTED DETAIL,22/03/2017,GI,2215713,458.37,HC111701,Whitecross Hereford Academy,201712,Central Childrens Directorate Costs,Support Services
INSERTED DETAIL,22/03/2017,GI,2215714,458.37,HC117835,The Brookfield School (Academy),201712,Central Childrens Directorate Costs,Support Services
INSERTED DETAIL,22/03/2017,GI,2215715,458.37,HC117835,The Brookfield School (Academy),201712,Central Childrens Directorate Costs,Support Services
INSERTED DETAIL,22/03/2017,GI,2215716,458.37,HC117215,Robert Owen Academey,201712,Central Childrens Directorate Costs,Support Services
INSERTED DETAIL,22/03/2017,GI,2215718,458.37,HC117835,The Brookfield School (Academy),201712,Central Childrens Directorate Costs,Support Services
INSERTED DETAIL,22/03/2017,GI,2215720,458.37,HC102152,Ashperton Primary Academy,201712,Central Childrens Directorate Costs,Support Services
INSERTED DETAIL,22/03/2017,GI,2215721,"1,078.00",HC114595,Derwen College,201712,Central Childrens Directorate Costs,Support Services
INSERTED DETAIL,22/03/2017,GI,2215722,"1,104.36",HC114595,Derwen College,201712,Central Childrens Directorate Costs,Support Services
INSERTED DETAIL,22/03/2017,GI,2215723,"1,136.30",HC114595,Derwen College,201712,Central Childrens Directorate Costs,Support Services
INSERTED DETAIL,22/03/2017,GI,2215724,"1,104.36",HC114595,Derwen College,201712,Central Childrens Directorate Costs,Support Services
INSERTED DETAIL,22/03/2017,GI,2215725,"1,136.30",HC114595,Derwen College,201712,Central Childrens Directorate Costs,Support Services
INSERTED DETAIL,22/03/2017,GI,2215726,"1,136.30",HC114595,Derwen College,201712,Central Childrens Directorate Costs,Support Services
INSERTED DETAIL,22/03/2017,GI,2215727,"1,136.30",HC114595,Derwen College,201712,Central Childrens Directorate Costs,Support Services
INSERTED DETAIL,22/03/2017,GI,2215728,629.45,HC114595,Derwen College,201712,Central Childrens Directorate Costs,Support Services
INSERTED DETAIL,22/03/2017,GI,2215729,629.45,HC114595,Derwen College,201712,Central Childrens Directorate Costs,Support Services
INSERTED DETAIL,22/03/2017,GI,2215730,629.45,HC114595,Derwen College,201712,Central Childrens Directorate Costs,Support Services
INSERTED DETAIL,22/03/2017,GI,2215731,629.45,HC114595,Derwen College,201712,Central Childrens Directorate Costs,Support Services
INSERTED DETAIL,22/03/2017,GI,2215732,629.45,HC114595,Derwen College,201712,Central Childrens Directorate Costs,Support Services
INSERTED DETAIL,21/04/2017,GI,2215733,458.37,HC108716,Stretton Sugwas CE Academy,201712,Central Childrens Directorate Costs,Support Services
INSERTED DETAIL,22/03/2017,GI,2215734,458.37,HC115716,Mordiford Church of England Primary School,201712,Central Childrens Directorate Costs,Support Services
INSERTED DETAIL,22/03/2017,GI,2215736,458.37,HC117835,The Brookfield School (Academy),201712,Central Childrens Directorate Costs,Support Services
INSERTED DETAIL,22/03/2017,GI,2215737,458.37,HC117835,The Brookfield School (Academy),201712,Central Childrens Directorate Costs,Support Services
INSERTED DETAIL,22/03/2017,GI,2215739,458.37,HC104739,John Masefield High School (Academy),201712,Central Childrens Directorate Costs,Support Services
INSERTED DETAIL,22/03/2017,GI,2215740,458.37,HC102524,Brockhampton Primary School (Academy),201712,Central Childrens Directorate Costs,Support Services
INSERTED DETAIL,21/04/2017,GI,2215741,458.37,HC108716,Stretton Sugwas CE Academy,201712,Central Childrens Directorate Costs,Support Services
INSERTED DETAIL,22/03/2017,GI,2215745,458.37,HC116854,Fairfield High School (Academy),201712,Central Childrens Directorate Costs,Support Services
INSERTED DETAIL,22/03/2017,GI,2215746,458.37,HC117835,The Brookfield School (Academy),201712,Central Childrens Directorate Costs,Support Services
INSERTED DETAIL,22/03/2017,GI,2215747,458.37,HC117835,The Brookfield School (Academy),201712,Central Childrens Directorate Costs,Support Services
INSERTED DETAIL,22/03/2017,GI,2215749,458.37,HC117835,The Brookfield School (Academy),201712,Central Childrens Directorate Costs,Support Services
INSERTED DETAIL,22/03/2017,GI,2215750,719.13,HC104727,John Kyrle High School,201712,Central Childrens Directorate Costs,Support Services
INSERTED DETAIL,22/03/2017,GI,2215751,458.37,HC104727,John Kyrle High School,201712,Central Childrens Directorate Costs,Support Services
INSERTED DETAIL,22/03/2017,GI,2215752,458.37,HC115884,St Thomas Cantilupe CE Academy,201712,Central Childrens Directorate Costs,Support Services
INSERTED DETAIL,22/03/2017,GI,2215754,"1,033.37",HC117835,The Brookfield School (Academy),201712,Central Childrens Directorate Costs,Support Services
INSERTED DETAIL,22/03/2017,GI,2215755,719.13,HC117835,The Brookfield School (Academy),201712,Central Childrens Directorate Costs,Support Services
INSERTED DETAIL,22/03/2017,GI,2215756,719.13,HC117835,The Brookfield School (Academy),201712,Central Childrens Directorate Costs,Support Services
INSERTED DETAIL,22/03/2017,GI,2215757,719.13,HC117835,The Brookfield School (Academy),201712,Central Childrens Directorate Costs,Support Services
INSERTED DETAIL,22/03/2017,GI,2215758,719.13,HC117835,The Brookfield School (Academy),201712,Central Childrens Directorate Costs,Support Services
INSERTED DETAIL,22/03/2017,GI,2215759,719.13,HC117835,The Brookfield School (Academy),201712,Central Childrens Directorate Costs,Support Services
INSERTED DETAIL,22/03/2017,GI,2215760,719.13,HC117835,The Brookfield School (Academy),201712,Central Childrens Directorate Costs,Support Services
INSERTED DETAIL,22/03/2017,GI,2215761,719.13,HC117835,The Brookfield School (Academy),201712,Central Childrens Directorate Costs,Support Services
INSERTED DETAIL,22/03/2017,GI,2215762,719.13,HC117835,The Brookfield School (Academy),201712,Central Childrens Directorate Costs,Support Services
INSERTED DETAIL,22/03/2017,GI,2215763,458.37,HC113733,Canon Pyon CE Academy,201712,Central Childrens Directorate Costs,Support Services
INSERTED DETAIL,22/03/2017,GI,2215764,458.37,HC113960,Barrs Court Academy,201712,Central Childrens Directorate Costs,Support Services
INSERTED DETAIL,22/03/2017,GI,2215765,458.37,HC107656,St Pauls Church of England Primary School,201712,Central Childrens Directorate Costs,Support Services
INSERTED DETAIL,22/03/2017,GI,2215766,458.37,HC117835,The Brookfield School (Academy),201712,Central Childrens Directorate Costs,Support Services
INSERTED DETAIL,22/03/2017,GI,2215769,458.37,HC104739,John Masefield High School (Academy),201712,Central Childrens Directorate Costs,Support Services
INSERTED DETAIL,22/03/2017,GI,2215770,458.37,HC117835,The Brookfield School (Academy),201712,Central Childrens Directorate Costs,Support Services
INSERTED DETAIL,22/03/2017,GI,2215771,"1,399.13",HC117835,The Brookfield School (Academy),201712,Central Childrens Directorate Costs,Support Services
INSERTED DETAIL,22/03/2017,GI,2215773,458.37,HC117835,The Brookfield School (Academy),201712,Central Childrens Directorate Costs,Support Services
INSERTED DETAIL,22/03/2017,GI,2215775,458.37,HC117835,The Brookfield School (Academy),201712,Central Childrens Directorate Costs,Support Services
INSERTED DETAIL,22/03/2017,GI,2215776,458.37,HC117835,The Brookfield School (Academy),201712,Central Childrens Directorate Costs,Support Services
INSERTED DETAIL,22/03/2017,GI,2215777,458.37,HC117835,The Brookfield School (Academy),201712,Central Childrens Directorate Costs,Support Services
INSERTED DETAIL,22/03/2017,GI,2215778,458.37,HC113960,Barrs Court Academy,201712,Central Childrens Directorate Costs,Support Services
INSERTED DETAIL,22/03/2017,GI,2215779,"1,033.37",HC113960,Barrs Court Academy,201712,Central Childrens Directorate Costs,Support Services
INSERTED DETAIL,22/03/2017,GI,2215780,719.13,HC113960,Barrs Court Academy,201712,Central Childrens Directorate Costs,Support Services
INSERTED DETAIL,22/03/2017,GI,2215783,458.33,HC116854,Fairfield High School (Academy),201712,Central Childrens Directorate Costs,Support Services
INSERTED DETAIL,22/03/2017,GI,2215786,458.33,HC102152,Ashperton Primary Academy,201712,Central Childrens Directorate Costs,Support Services
INSERTED DETAIL,22/03/2017,GI,2215787,458.33,HC102152,Ashperton Primary Academy,201712,Central Childrens Directorate Costs,Support Services
INSERTED DETAIL,22/03/2017,GI,2215790,458.37,HC117835,The Brookfield School (Academy),201712,Central Childrens Directorate Costs,Support Services
INSERTED DETAIL,22/03/2017,GI,2215791,458.33,HC106103,Holmer C of E Academy,201712,Central Childrens Directorate Costs,Support Services
INSERTED DETAIL,22/03/2017,GI,2215792,458.33,HC115884,St Thomas Cantilupe CE Academy,201712,Central Childrens Directorate Costs,Support Services
INSERTED DETAIL,22/03/2017,GI,2215796,458.33,HC104761,Herefordshire Marches Federation-Lord Scudamore,201712,Central Childrens Directorate Costs,Support Services
INSERTED DETAIL,22/03/2017,GI,2215797,458.33,HC115884,St Thomas Cantilupe CE Academy,201712,Central Childrens Directorate Costs,Support Services
INSERTED DETAIL,22/03/2017,GI,2215799,719.17,HC110648,BAE Trust T/A The Hereford Academy,201712,Central Childrens Directorate Costs,Support Services
INSERTED DETAIL,22/03/2017,GI,2215801,719.17,HC117835,The Brookfield School (Academy),201712,Central Childrens Directorate Costs,Support Services
INSERTED DETAIL,22/03/2017,GI,2215802,719.17,HC117835,The Brookfield School (Academy),201712,Central Childrens Directorate Costs,Support Services
INSERTED DETAIL,22/03/2017,GI,2215803,719.17,HC111508,Wigmore High School (Academy),201712,Central Childrens Directorate Costs,Support Services
INSERTED DETAIL,22/03/2017,GI,2215804,458.33,HC113960,Barrs Court Academy,201712,Central Childrens Directorate Costs,Support Services
INSERTED DETAIL,22/03/2017,GI,2215805,458.33,HC117835,The Brookfield School (Academy),201712,Central Childrens Directorate Costs,Support Services
INSERTED DETAIL,22/03/2017,GI,2215807,719.17,HC117835,The Brookfield School (Academy),201712,Central Childrens Directorate Costs,Support Services
INSERTED DETAIL,22/03/2017,GI,2215808,458.33,HC117835,The Brookfield School (Academy),201712,Central Childrens Directorate Costs,Support Services
INSERTED DETAIL,22/03/2017,GI,2215810,458.33,HC110648,BAE Trust T/A The Hereford Academy,201712,Central Childrens Directorate Costs,Support Services
INSERTED DETAIL,22/03/2017,GI,2215811,458.33,HC117835,The Brookfield School (Academy),201712,Central Childrens Directorate Costs,Support Services
INSERTED DETAIL,22/03/2017,GI,2215813,719.17,HC117835,The Brookfield School (Academy),201712,Central Childrens Directorate Costs,Support Services
INSERTED DETAIL,22/03/2017,GI,2215814,458.33,HC113960,Barrs Court Academy,201712,Central Childrens Directorate Costs,Support Services
INSERTED DETAIL,22/03/2017,GI,2215815,"1,399.17",HC113960,Barrs Court Academy,201712,Central Childrens Directorate Costs,Support Services
INSERTED DETAIL,22/03/2017,GI,2215816,458.33,HC113960,Barrs Court Academy,201712,Central Childrens Directorate Costs,Support Services
INSERTED DETAIL,22/03/2017,GI,2215817,719.17,HC117835,The Brookfield School (Academy),201712,Central Childrens Directorate Costs,Support Services
INSERTED DETAIL,22/03/2017,GI,2215818,458.33,HC104727,John Kyrle High School,201712,Central Childrens Directorate Costs,Support Services
INSERTED DETAIL,22/03/2017,GI,2215821,458.33,HC117215,Robert Owen Academey,201712,Central Childrens Directorate Costs,Support Services
INSERTED DETAIL,22/03/2017,GI,2215822,458.33,HC102076,Herefordshire Marches Federation Sutton Primary Academy,201712,Central Childrens Directorate Costs,Support Services
INSERTED DETAIL,22/03/2017,GI,2215824,719.17,HC105571,Wigmore Primary School (Academy),201712,Central Childrens Directorate Costs,Support Services
INSERTED DETAIL,22/03/2017,GI,2215825,458.37,HC117835,The Brookfield School (Academy),201712,Central Childrens Directorate Costs,Support Services
INSERTED DETAIL,22/03/2017,GI,2215826,458.33,HC117835,The Brookfield School (Academy),201712,Central Childrens Directorate Costs,Support Services
INSERTED DETAIL,22/03/2017,GI,2215827,719.17,HC117835,The Brookfield School (Academy),201712,Central Childrens Directorate Costs,Support Services
INSERTED DETAIL,22/03/2017,GI,2215828,719.17,HC117835,The Brookfield School (Academy),201712,Central Childrens Directorate Costs,Support Services
INSERTED DETAIL,22/03/2017,GI,2215829,458.33,HC104739,John Masefield High School (Academy),201712,Central Childrens Directorate Costs,Support Services
INSERTED DETAIL,22/03/2017,GI,2215830,719.17,HC117835,The Brookfield School (Academy),201712,Central Childrens Directorate Costs,Support Services
INSERTED DETAIL,22/03/2017,GI,2215832,576.75,HC114595,Derwen College,201712,Central Childrens Directorate Costs,Support Services
INSERTED DETAIL,22/03/2017,GI,2215833,"1,015.83",HC114595,Derwen College,201712,Central Childrens Directorate Costs,Support Services
INSERTED DETAIL,22/03/2017,GI,2215836,719.17,HC113960,Barrs Court Academy,201712,Central Childrens Directorate Costs,Support Services
INSERTED DETAIL,22/03/2017,GI,2215838,458.33,HC105572,Lady Hawkins School (Academy),201712,Central Childrens Directorate Costs,Support Services
INSERTED DETAIL,22/03/2017,GI,2215842,719.17,HC106103,Holmer C of E Academy,201712,Central Childrens Directorate Costs,Support Services
INSERTED DETAIL,22/03/2017,GI,2215845,458.33,HC117835,The Brookfield School (Academy),201712,Central Childrens Directorate Costs,Support Services
INSERTED DETAIL,22/03/2017,GI,2215846,458.33,HC117835,The Brookfield School (Academy),201712,Central Childrens Directorate Costs,Support Services
INSERTED DETAIL,22/03/2017,GI,2215847,"1,033.33",HC113960,Barrs Court Academy,201712,Central Childrens Directorate Costs,Support Services
INSERTED DETAIL,22/03/2017,GI,2215848,458.33,HC111508,Wigmore High School (Academy),201712,Central Childrens Directorate Costs,Support Services
INSERTED DETAIL,22/03/2017,GI,2215849,458.33,HC117835,The Brookfield School (Academy),201712,Central Childrens Directorate Costs,Support Services
INSERTED DETAIL,22/03/2017,GI,2215850,458.33,HC104739,John Masefield High School (Academy),201712,Central Childrens Directorate Costs,Support Services
INSERTED DETAIL,22/03/2017,GI,2215853,719.17,HC113960,Barrs Court Academy,201712,Central Childrens Directorate Costs,Support Services
INSERTED DETAIL,22/03/2017,GI,2215854,719.17,HC113960,Barrs Court Academy,201712,Central Childrens Directorate Costs,Support Services
INSERTED DETAIL,22/03/2017,GI,2215855,"1,033.33",HC113960,Barrs Court Academy,201712,Central Childrens Directorate Costs,Support Services
INSERTED DETAIL,22/03/2017,GI,2215856,719.17,HC113960,Barrs Court Academy,201712,Central Childrens Directorate Costs,Support Services
INSERTED DETAIL,22/03/2017,GI,2215857,"1,033.33",HC113960,Barrs Court Academy,201712,Central Childrens Directorate Costs,Support Services
INSERTED DETAIL,22/03/2017,GI,2215858,"1,033.33",HC113960,Barrs Court Academy,201712,Central Childrens Directorate Costs,Support Services
INSERTED DETAIL,22/03/2017,GI,2215859,"1,033.33",HC113960,Barrs Court Academy,201712,Central Childrens Directorate Costs,Support Services
INSERTED DETAIL,22/03/2017,GI,2215860,719.17,HC113960,Barrs Court Academy,201712,Central Childrens Directorate Costs,Support Services
INSERTED DETAIL,22/03/2017,GI,2215862,719.17,HC113960,Barrs Court Academy,201712,Central Childrens Directorate Costs,Support Services
INSERTED DETAIL,22/03/2017,GI,2215864,458.33,HC117835,The Brookfield School (Academy),201712,Central Childrens Directorate Costs,Support Services
INSERTED DETAIL,22/03/2017,GI,2215865,458.33,HC117835,The Brookfield School (Academy),201712,Central Childrens Directorate Costs,Support Services
INSERTED DETAIL,22/03/2017,GI,2215867,"3,061.68",HC114613,National Star College,201712,Central Childrens Directorate Costs,Support Services
INSERTED DETAIL,22/03/2017,GI,2215868,"1,116.93",HC114613,National Star College,201712,Central Childrens Directorate Costs,Support Services
INSERTED DETAIL,22/03/2017,GI,2215869,"4,013.76",HC114613,National Star College,201712,Central Childrens Directorate Costs,Support Services
INSERTED DETAIL,22/03/2017,GI,2215870,"1,512.32",HC114613,National Star College,201712,Central Childrens Directorate Costs,Support Services
INSERTED DETAIL,22/03/2017,GI,2215872,688.00,HC114613,National Star College,201712,Central Childrens Directorate Costs,Support Services
INSERTED DETAIL,22/03/2017,GI,2215873,"1,533.42",HC114613,National Star College,201712,Central Childrens Directorate Costs,Support Services
INSERTED DETAIL,22/03/2017,GI,2215874,"1,547.88",HC114613,National Star College,201712,Central Childrens Directorate Costs,Support Services
INSERTED DETAIL,22/03/2017,GI,2215875,"1,565.83",HC114613,National Star College,201712,Central Childrens Directorate Costs,Support Services
INSERTED DETAIL,22/03/2017,GI,2215876,885.82,HC114613,National Star College,201712,Central Childrens Directorate Costs,Support Services
INSERTED DETAIL,22/03/2017,GI,2215877,965.71,HC114613,National Star College,201712,Central Childrens Directorate Costs,Support Services
INSERTED DETAIL,22/03/2017,GI,2215878,987.16,HC114613,National Star College,201712,Central Childrens Directorate Costs,Support Services
INSERTED DETAIL,22/03/2017,GI,2215881,458.37,HC105073,Kingstone & Thruxton Primary School (Academy),201712,Central Childrens Directorate Costs,Support Services
INSERTED DETAIL,22/03/2017,GI,2215882,458.33,HC115884,St Thomas Cantilupe CE Academy,201712,Central Childrens Directorate Costs,Support Services
INSERTED DETAIL,22/03/2017,GI,2215886,958.33,HC103935,Herefordshire & Ludlow College,201712,Central Childrens Directorate Costs,Support Services
INSERTED DETAIL,22/03/2017,GI,2215887,958.33,HC103935,Herefordshire & Ludlow College,201712,Central Childrens Directorate Costs,Support Services
INSERTED DETAIL,22/03/2017,GI,2215888,609.17,HC103935,Herefordshire & Ludlow College,201712,Central Childrens Directorate Costs,Support Services
INSERTED DETAIL,22/03/2017,GI,2215889,609.17,HC103935,Herefordshire & Ludlow College,201712,Central Childrens Directorate Costs,Support Services
INSERTED DETAIL,22/03/2017,GI,2215890,958.33,HC103935,Herefordshire & Ludlow College,201712,Central Childrens Directorate Costs,Support Services
INSERTED DETAIL,22/03/2017,GI,2215891,609.17,HC103935,Herefordshire & Ludlow College,201712,Central Childrens Directorate Costs,Support Services
INSERTED DETAIL,22/03/2017,GI,2215892,609.17,HC103935,Herefordshire & Ludlow College,201712,Central Childrens Directorate Costs,Support Services
INSERTED DETAIL,22/03/2017,GI,2215893,"1,219.17",HC103935,Herefordshire & Ludlow College,201712,Central Childrens Directorate Costs,Support Services
INSERTED DETAIL,22/03/2017,GI,2215894,"1,219.17",HC103935,Herefordshire & Ludlow College,201712,Central Childrens Directorate Costs,Support Services
INSERTED DETAIL,22/03/2017,GI,2215895,958.33,HC103935,Herefordshire & Ludlow College,201712,Central Childrens Directorate Costs,Support Services
INSERTED DETAIL,22/03/2017,GI,2215896,609.17,HC103935,Herefordshire & Ludlow College,201712,Central Childrens Directorate Costs,Support Services
INSERTED DETAIL,22/03/2017,GI,2215897,609.17,HC103935,Herefordshire & Ludlow College,201712,Central Childrens Directorate Costs,Support Services
INSERTED DETAIL,22/03/2017,GI,2215898,609.17,HC103935,Herefordshire & Ludlow College,201712,Central Childrens Directorate Costs,Support Services
INSERTED DETAIL,22/03/2017,GI,2215899,458.33,HC103935,Herefordshire & Ludlow College,201712,Central Childrens Directorate Costs,Support Services
INSERTED DETAIL,22/03/2017,GI,2215901,"1,219.17",HC103935,Herefordshire & Ludlow College,201712,Central Childrens Directorate Costs,Support Services
INSERTED DETAIL,22/03/2017,GI,2215902,609.17,HC103935,Herefordshire & Ludlow College,201712,Central Childrens Directorate Costs,Support Services
INSERTED DETAIL,22/03/2017,GI,2215903,"1,575.87",HC114613,National Star College,201712,Central Childrens Directorate Costs,Support Services
INSERTED DETAIL,22/03/2017,GI,2215904,"1,330.67",HC114613,National Star College,201712,Central Childrens Directorate Costs,Support Services
INSERTED DETAIL,22/03/2017,GI,2215906,417.48,HC114613,National Star College,201712,Central Childrens Directorate Costs,Support Services
INSERTED DETAIL,22/03/2017,GI,2215907,"1,370.77",HC114613,National Star College,201712,Central Childrens Directorate Costs,Support Services
INSERTED DETAIL,22/03/2017,GI,2215908,"1,143.25",HC114613,National Star College,201712,Central Childrens Directorate Costs,Support Services
INSERTED DETAIL,22/03/2017,GI,2215909,982.08,HC112582,Royal National College,201712,Central Childrens Directorate Costs,Support Services
INSERTED DETAIL,22/03/2017,GI,2215910,770.83,HC120103,The Plylimon Trust-Horizon Training,201712,Central Childrens Directorate Costs,Support Services
INSERTED DETAIL,22/03/2017,GI,2215911,"1,219.17",HC120103,The Plylimon Trust-Horizon Training,201712,Central Childrens Directorate Costs,Support Services
INSERTED DETAIL,22/03/2017,GI,2215912,609.17,HC120103,The Plylimon Trust-Horizon Training,201712,Central Childrens Directorate Costs,Support Services
INSERTED DETAIL,22/03/2017,GI,2215913,"1,219.17",HC120103,The Plylimon Trust-Horizon Training,201712,Central Childrens Directorate Costs,Support Services
INSERTED DETAIL,22/03/2017,GI,2215914,"1,033.33",HC106975,Hoople Ltd,201712,Central Childrens Directorate Costs,Support Services
INSERTED DETAIL,22/03/2017,GI,2215916,"1,219.17",HC106975,Hoople Ltd,201712,Central Childrens Directorate Costs,Support Services
INSERTED DETAIL,22/03/2017,GI,2215917,958.33,HC106975,Hoople Ltd,201712,Central Childrens Directorate Costs,Support Services
INSERTED DETAIL,22/03/2017,GI,2215920,543.57,HC103902,Hereford Sixth Form College,201712,Central Childrens Directorate Costs,Support Services
INSERTED DETAIL,22/03/2017,GI,2215921,"1,911.67",HC114596,William Morris Camphill Community,201712,Central Childrens Directorate Costs,Support Services
INSERTED DETAIL,22/03/2017,GI,2215923,609.17,HC103935,Herefordshire & Ludlow College,201712,Central Childrens Directorate Costs,Support Services
INSERTED DETAIL,22/03/2017,GI,2215925,719.17,HC117835,The Brookfield School (Academy),201712,Central Childrens Directorate Costs,Support Services
INSERTED DETAIL,22/03/2017,GI,2215926,958.33,HC103935,Herefordshire & Ludlow College,201712,Central Childrens Directorate Costs,Support Services
INSERTED DETAIL,22/03/2017,GI,2215928,719.17,HC110794,The Steiner Academy Hereford,201712,Central Childrens Directorate Costs,Support Services
INSERTED DETAIL,22/03/2017,GI,2215929,"3,378.17",HC114610,New College,201712,Central Childrens Directorate Costs,Support Services
INSERTED DETAIL,22/03/2017,GI,2215931,958.33,HC103460,Gloucestershire College,201712,Central Childrens Directorate Costs,Support Services
INSERTED DETAIL,22/03/2017,GI,2215932,"1,219.17",HC122375,Warwickshire College Group,201712,Central Childrens Directorate Costs,Support Services
INSERTED DETAIL,22/03/2017,GI,2215934,458.33,HC107656,St Pauls Church of England Primary School,201712,Central Childrens Directorate Costs,Support Services
INSERTED DETAIL,22/03/2017,GI,2215940,458.33,HC117835,The Brookfield School (Academy),201712,Central Childrens Directorate Costs,Support Services
INSERTED DETAIL,22/03/2017,GI,2215942,458.33,HC117835,The Brookfield School (Academy),201712,Central Childrens Directorate Costs,Support Services
INSERTED DETAIL,22/03/2017,GI,2215943,"1,033.33",HC117835,The Brookfield School (Academy),201712,Central Childrens Directorate Costs,Support Services
INSERTED DETAIL,22/03/2017,GI,2215944,"1,262.14",HC112582,Royal National College,201712,Central Childrens Directorate Costs,Support Services
INSERTED DETAIL,22/03/2017,GI,2215945,"1,219.17",HC106975,Hoople Ltd,201712,Central Childrens Directorate Costs,Support Services
INSERTED DETAIL,22/03/2017,GI,2215946,458.33,HC117835,The Brookfield School (Academy),201712,Central Childrens Directorate Costs,Support Services
INSERTED DETAIL,22/03/2017,GI,2215947,458.33,HC117835,The Brookfield School (Academy),201712,Central Childrens Directorate Costs,Support Services
INSERTED DETAIL,22/03/2017,GI,2215949,458.33,HC117835,The Brookfield School (Academy),201712,Central Childrens Directorate Costs,Support Services
INSERTED DETAIL,22/03/2017,GI,2215950,719.17,HC117835,The Brookfield School (Academy),201712,Central Childrens Directorate Costs,Support Services
INSERTED DETAIL,22/03/2017,GI,2215952,458.33,HC102076,Herefordshire Marches Federation Sutton Primary Academy,201712,Central Childrens Directorate Costs,Support Services
INSERTED DETAIL,22/03/2017,GI,2215953,"5,313.81",HC114613,National Star College,201712,Central Childrens Directorate Costs,Support Services
INSERTED DETAIL,22/03/2017,GI,2215955,458.33,HC117835,The Brookfield School (Academy),201712,Central Childrens Directorate Costs,Support Services
INSERTED DETAIL,22/03/2017,GI,2215962,458.33,HC116854,Fairfield High School (Academy),201712,Central Childrens Directorate Costs,Support Services
INSERTED DETAIL,22/03/2017,GI,2215963,458.33,HC104761,Herefordshire Marches Federation-Lord Scudamore,201712,Central Childrens Directorate Costs,Support Services
INSERTED DETAIL,22/03/2017,GI,2215964,"1,078.75",HC107574,Lugwardine Primary Academy,201712,Central Childrens Directorate Costs,Support Services
INSERTED DETAIL,22/03/2017,GI,2215965,589.28,HC104870,Kingstone High School (Academy),201712,Central Childrens Directorate Costs,Support Services
INSERTED DETAIL,22/03/2017,GI,2215968,950.33,HC117835,The Brookfield School (Academy),201712,Central Childrens Directorate Costs,Support Services
INSERTED DETAIL,22/03/2017,GI,2215971,785.71,HC113961,Burghill Community Academy,201712,Central Childrens Directorate Costs,Support Services
INSERTED DETAIL,22/03/2017,GI,2215972,474.70,HC116854,Fairfield High School (Academy),201712,Central Childrens Directorate Costs,Support Services
INSERTED DETAIL,22/03/2017,GI,2215973,"3,208.31",HC104727,John Kyrle High School,201712,Central Childrens Directorate Costs,Support Services
INSERTED DETAIL,22/03/2017,GI,2215975,443.55,HC117835,The Brookfield School (Academy),201712,Central Childrens Directorate Costs,Support Services
INSERTED DETAIL,22/03/2017,GI,2215976,857.55,HC113960,Barrs Court Academy,201712,Central Childrens Directorate Costs,Support Services
INSERTED DETAIL,22/03/2017,GI,2216077,561.20,HC110101,St Weonards CP School Imprest,201712,Schools,Supplies & Services
INSERTED DETAIL,21/03/2017,GI,2216079,"1,756.39",HC111924,Bromyard Community Transport Ltd,201712,Environment and Place,Supplies & Services
INSERTED DETAIL,21/03/2017,GI,2216080,"1,877.09",HC112080,CVS Ledbury & District (Ledbury Ring & Ride)Standing Order,201712,Environment and Place,Supplies & Services
INSERTED DETAIL,21/03/2017,GI,2216081,"1,399.87",HC102478,Dore Community Transport,201712,Environment and Place,Supplies & Services
INSERTED DETAIL,21/03/2017,GI,2216082,750.58,HC101381,Hay & District Dial a Ride,201712,Environment and Place,Supplies & Services
INSERTED DETAIL,21/03/2017,GI,2216083,"2,591.10",HC103982,HVOSS,201712,Environment and Place,Supplies & Services
INSERTED DETAIL,21/03/2017,GI,2216084,"1,155.57",HC101379,Ross Country Cars (Standing Order),201712,Environment and Place,Supplies & Services
INSERTED DETAIL,21/03/2017,GI,2216085,"2,901.58",HC110743,The Plynlimon Trust Community Car Scheme,201712,Environment and Place,Supplies & Services
INSERTED DETAIL,21/03/2017,GI,2216086,"115,806.29",HC107466,Worcestershire Health & Care NHS Trust,201712,Public Health,Third Party Payments
INSERTED DETAIL,21/03/2017,GI,2216087,"193,735.00",HC103869,Wye Valley NHS Trust,201712,Public Health,Third Party Payments
INSERTED DETAIL,21/03/2017,GI,2216089,"147,313.06",HC120328,Addaction,201712,Public Health,Third Party Payments
INSERTED DETAIL,21/03/2017,GI,2216090,600.00,HC106870,REDACTED,201712,Adults Operations,Premises-Related Expenditure
INSERTED DETAIL,21/03/2017,GI,2216091,600.00,HC106831,REDACTED,201712,Adults Operations,Premises-Related Expenditure
INSERTED DETAIL,21/03/2017,GI,2216092,450.00,HC109865,REDACTED,201712,Adults Operations,Premises-Related Expenditure
INSERTED DETAIL,21/03/2017,GI,2216093,450.00,HC109865,REDACTED,201712,Adults Operations,Premises-Related Expenditure
INSERTED DETAIL,21/03/2017,GI,2216095,460.00,HC112055,REDACTED,201712,Adults Operations,Premises-Related Expenditure
INSERTED DETAIL,21/03/2017,GI,2216096,550.00,HC108221,REDACTED,201712,Adults Operations,Premises-Related Expenditure
INSERTED DETAIL,21/03/2017,GI,2216097,480.00,HC108905,REDACTED,201712,Adults Operations,Premises-Related Expenditure
INSERTED DETAIL,21/03/2017,GI,2216098,475.00,HC109338,REDACTED,201712,Adults Operations,Premises-Related Expenditure
INSERTED DETAIL,21/03/2017,GI,2216101,"4,333.33",HC106816,REDACTED,201712,Adults Operations,Premises-Related Expenditure
INSERTED DETAIL,21/03/2017,GI,2216102,650.00,HC110272,REDACTED,201712,Adults Operations,Premises-Related Expenditure
INSERTED DETAIL,21/03/2017,GI,2216103,420.00,HC106104,REDACTED,201712,Adults Operations,Premises-Related Expenditure
INSERTED DETAIL,21/03/2017,GI,2216104,600.00,HC115622,REDACTED,201712,Adults Operations,Premises-Related Expenditure
INSERTED DETAIL,21/03/2017,GI,2216105,625.00,HC119280,REDACTED,201712,Adults Operations,Premises-Related Expenditure
INSERTED DETAIL,21/03/2017,GI,2216106,587.43,HC121622,REDACTED,201712,Adults Operations,Premises-Related Expenditure
INSERTED DETAIL,21/03/2017,GI,2216107,600.00,HC121325,REDACTED,201712,Adults Operations,Premises-Related Expenditure
INSERTED DETAIL,21/03/2017,GI,2216108,525.00,HC116314,REDACTED,201712,Adults Operations,Premises-Related Expenditure
INSERTED DETAIL,21/03/2017,GI,2216109,550.00,HC121939,REDACTED,201712,Adults Operations,Premises-Related Expenditure
INSERTED DETAIL,21/03/2017,GI,2216110,650.00,HC122259,REDACTED,201712,Adults Operations,Premises-Related Expenditure
INSERTED DETAIL,22/03/2017,GI,2216112,447.50,HC111402,Weobley High School Petty Cash,201712,Schools,Employees
INSERTED DETAIL,22/03/2017,GI,2216112,"2,232.28",HC111402,Weobley High School Petty Cash,201712,Schools,Supplies & Services
INSERTED DETAIL,22/03/2017,GI,2216176,930.48,HC110058,St Francis Xavier School Imprest,201712,Schools,Supplies & Services
INSERTED DETAIL,22/03/2017,GI,2216282,"10,923.07",HC108793,REDACTED,201712,Adults Operations,Supplies & Services
INSERTED DETAIL,24/03/2017,GI,2216559,"11,602.17",HC121175,Matrix SCM Ltd,201712,Adults Operations,Employees
INSERTED DETAIL,24/03/2017,GI,2216559,"16,658.53",HC121175,Matrix SCM Ltd,201712,Safeguarding and Family Support,Employees
INSERTED DETAIL,23/03/2017,GI,2216625,751.84,HC107953,REDACTED,201712,Adults Operations,Supplies & Services
INSERTED DETAIL,23/03/2017,GI,2216628,"1,297.32",HC107953,REDACTED,201712,Adults Operations,Supplies & Services
INSERTED DETAIL,23/03/2017,GI,2216671,512.50,HC107953,REDACTED,201712,Safeguarding and Family Support,Supplies & Services
INSERTED DETAIL,23/03/2017,GI,2216678,737.31,HC107953,REDACTED,201712,Adults Operations,Supplies & Services
INSERTED DETAIL,23/03/2017,GI,2216679,"1,006.00",HC107953,REDACTED,201712,Adults Operations,Supplies & Services
INSERTED DETAIL,23/03/2017,GI,2216680,588.78,HC107953,Natwest One Card (Direct Debit A/C),201712,Resources,Premises-Related Expenditure
INSERTED DETAIL,23/03/2017,GI,2216680,521.50,HC107953,Natwest One Card (Direct Debit A/C),201712,Resources Capital,Capital Expenditure
INSERTED DETAIL,24/03/2017,GI,2216681,"11,025.00",HC110287,Support Services - Legal,201712,Communities,Supplies & Services
INSERTED DETAIL,24/03/2017,GI,2216681,733.12,HC110287,REDACTED,201712,Safeguarding and Family Support,Supplies & Services
INSERTED DETAIL,24/03/2017,GI,2216687,"1,374.25",HC105573,Luston C P School Imprest,201712,Schools,Supplies & Services
INSERTED DETAIL,24/03/2017,GI,2216689,433.33,HC121017,REDACTED,201712,Safeguarding and Family Support,Supplies & Services
INSERTED DETAIL,24/03/2017,GI,2216691,433.33,HC111066,REDACTED,201712,Safeguarding and Family Support,Supplies & Services
INSERTED DETAIL,24/03/2017,GI,2216693,433.33,HC103959,REDACTED,201712,Safeguarding and Family Support,Supplies & Services
INSERTED DETAIL,24/03/2017,GI,2216694,704.00,HC109651,REDACTED,201712,Safeguarding and Family Support,Supplies & Services
INSERTED DETAIL,24/03/2017,GI,2216695,"1,183.00",HC111135,REDACTED,201712,Safeguarding and Family Support,Supplies & Services
INSERTED DETAIL,24/03/2017,GI,2216738,"1,671.13",HC105091,Kington Primary School Imprest A/C,201712,Schools,Supplies & Services
INSERTED DETAIL,24/03/2017,GI,2216739,"1,789.96",HC101182,Bridstow C.E. Primary School Imprest A/C,201712,Schools,Supplies & Services
INSERTED DETAIL,29/03/2017,GI,2216883,897.51,HC102068,Cradley Primary School Imprest,201712,Schools,Supplies & Services
INSERTED DETAIL,29/03/2017,GI,2216885,474.66,HC105275,Ledbury Primary School Imprest,201712,Schools,Premises-Related Expenditure
INSERTED DETAIL,29/03/2017,GI,2216885,"9,385.68",HC105275,Ledbury Primary School Imprest,201712,Schools,Supplies & Services
INSERTED DETAIL,29/03/2017,GI,2216887,"7,400.56",HC108793,REDACTED,201712,Adults Operations,Supplies & Services
INSERTED DETAIL,29/03/2017,GI,2217007,481.33,HC116536,Much Birch CE School Imprest,201712,Schools,Supplies & Services
INSERTED DETAIL,30/03/2017,GI,2219701,533.20,HC119137,REDACTED,201712,Safeguarding and Family Support,Third Party Payments
INSERTED DETAIL,31/03/2017,GI,2219840,"13,200.70",HC121175,Matrix SCM Ltd,201712,Adults Operations,Employees
INSERTED DETAIL,31/03/2017,GI,2219840,"2,076.32",HC121175,Matrix SCM Ltd,201712,Communities,Employees
INSERTED DETAIL,31/03/2017,GI,2219840,"2,580.09",HC121175,Matrix SCM Ltd,201712,Public Health,Employees
INSERTED DETAIL,31/03/2017,GI,2219840,"25,214.26",HC121175,Matrix SCM Ltd,201712,Safeguarding and Family Support,Employees
INSERTED DETAIL,31/03/2017,GI,2219840,806.25,HC121175,REDACTED,201712,Adults Operations,Employees
INSERTED DETAIL,31/03/2017,GI,2219840,559.22,HC121175,REDACTED,201712,Safeguarding and Family Support,Employees
INSERTED DETAIL,05/04/2017,WM,2219950,677.85,HC108443,West Mercia Energy,201712,Schools,Premises-Related Expenditure
INSERTED DETAIL,05/04/2017,WM,2219954,797.83,HC108443,West Mercia Energy,201712,Environment and Place,Premises-Related Expenditure
INSERTED DETAIL,05/04/2017,WM,2219956,"1,286.48",HC108443,West Mercia Energy,201712,Schools,Premises-Related Expenditure
INSERTED DETAIL,05/04/2017,WM,2219960,854.39,HC108443,West Mercia Energy,201712,Schools,Premises-Related Expenditure
INSERTED DETAIL,05/04/2017,WM,2219961,466.16,HC108443,West Mercia Energy,201712,Environment and Place,Premises-Related Expenditure
INSERTED DETAIL,05/04/2017,WM,2219963,591.07,HC108443,West Mercia Energy,201712,Environment and Place,Premises-Related Expenditure
INSERTED DETAIL,05/04/2017,WM,2219964,451.14,HC108443,West Mercia Energy,201712,Environment and Place,Premises-Related Expenditure
INSERTED DETAIL,05/04/2017,WM,2219965,771.11,HC108443,West Mercia Energy,201712,Environment and Place,Premises-Related Expenditure
INSERTED DETAIL,05/04/2017,WM,2219967,442.94,HC108443,West Mercia Energy,201712,Environment and Place,Premises-Related Expenditure
INSERTED DETAIL,05/04/2017,WM,2219971,"2,314.89",HC108443,West Mercia Energy,201712,Environment and Place,Premises-Related Expenditure
INSERTED DETAIL,05/04/2017,WM,2219973,"2,106.61",HC108443,West Mercia Energy,201712,Environment and Place,Premises-Related Expenditure
INSERTED DETAIL,05/04/2017,WM,2219977,688.19,HC108443,West Mercia Energy,201712,Schools,Premises-Related Expenditure
INSERTED DETAIL,05/04/2017,WM,2219980,862.88,HC108443,West Mercia Energy,201712,Schools,Premises-Related Expenditure
INSERTED DETAIL,05/04/2017,WM,2219981,"1,000.12",HC108443,West Mercia Energy,201712,Environment and Place,Premises-Related Expenditure
INSERTED DETAIL,05/04/2017,WM,2219982,897.57,HC108443,West Mercia Energy,201712,Environment and Place,Premises-Related Expenditure
INSERTED DETAIL,05/04/2017,WM,2219985,674.16,HC108443,West Mercia Energy,201712,Schools,Premises-Related Expenditure
INSERTED DETAIL,05/04/2017,WM,2219995,466.62,HC108443,West Mercia Energy,201712,Schools,Premises-Related Expenditure
INSERTED DETAIL,05/04/2017,WM,2219996,"2,094.59",HC108443,West Mercia Energy,201712,Environment and Place,Premises-Related Expenditure
INSERTED DETAIL,05/04/2017,WM,2219998,766.34,HC108443,West Mercia Energy,201712,Schools,Premises-Related Expenditure
INSERTED DETAIL,05/04/2017,WM,2220000,"1,117.67",HC108443,West Mercia Energy,201712,Environment and Place,Premises-Related Expenditure
INSERTED DETAIL,05/04/2017,WM,2220004,"1,883.02",HC108443,West Mercia Energy,201712,Environment and Place,Premises-Related Expenditure
INSERTED DETAIL,05/04/2017,WM,2220013,843.71,HC108443,West Mercia Energy,201712,Environment and Place,Premises-Related Expenditure
INSERTED DETAIL,05/04/2017,WM,2220014,"11,479.81",HC108443,West Mercia Energy,201712,Environment and Place,Premises-Related Expenditure
INSERTED DETAIL,05/04/2017,WM,2220015,"1,256.41",HC108443,West Mercia Energy,201712,Schools,Premises-Related Expenditure
INSERTED DETAIL,05/04/2017,WM,2220016,"1,339.72",HC108443,West Mercia Energy,201712,Schools,Premises-Related Expenditure
INSERTED DETAIL,05/04/2017,WM,2220017,"1,608.55",HC108443,West Mercia Energy,201712,Environment and Place,Premises-Related Expenditure
INSERTED DETAIL,05/04/2017,WM,2220018,"1,066.55",HC108443,West Mercia Energy,201712,Environment and Place,Premises-Related Expenditure
INSERTED DETAIL,05/04/2017,WM,2220019,"1,607.04",HC108443,West Mercia Energy,201712,Environment and Place,Premises-Related Expenditure
INSERTED DETAIL,05/04/2017,WM,2220020,"1,099.06",HC108443,West Mercia Energy,201712,Schools,Premises-Related Expenditure
INSERTED DETAIL,05/04/2017,WM,2220023,575.57,HC108443,West Mercia Energy,201712,Environment and Place,Premises-Related Expenditure
INSERTED DETAIL,05/04/2017,WM,2220024,605.42,HC108443,West Mercia Energy,201712,Environment and Place,Premises-Related Expenditure
INSERTED DETAIL,05/04/2017,WM,2220029,447.72,HC108443,West Mercia Energy,201712,Schools,Premises-Related Expenditure
INSERTED DETAIL,05/04/2017,WM,2220030,"1,374.94",HC108443,West Mercia Energy,201712,Environment and Place,Premises-Related Expenditure
INSERTED DETAIL,05/04/2017,WM,2220032,"17,258.11",HC108443,West Mercia Energy,201712,Environment and Place,Premises-Related Expenditure
INSERTED DETAIL,05/04/2017,WM,2220039,527.59,HC108443,West Mercia Energy,201712,Environment and Place,Premises-Related Expenditure
INSERTED DETAIL,05/04/2017,WM,2220042,752.21,HC108443,West Mercia Energy,201712,Schools,Premises-Related Expenditure
INSERTED DETAIL,05/04/2017,WM,2220047,669.78,HC108443,West Mercia Energy,201712,Environment and Place,Premises-Related Expenditure
INSERTED DETAIL,05/04/2017,WM,2220062,769.76,HC108443,West Mercia Energy,201712,Schools,Premises-Related Expenditure
INSERTED DETAIL,05/04/2017,WM,2220063,645.96,HC108443,West Mercia Energy,201712,Schools,Premises-Related Expenditure
INSERTED DETAIL,05/04/2017,WM,2220070,633.32,HC108443,West Mercia Energy,201712,Environment and Place,Premises-Related Expenditure
INSERTED DETAIL,05/04/2017,WM,2220073,484.06,HC108443,West Mercia Energy,201712,Environment and Place,Premises-Related Expenditure
INSERTED DETAIL,24/03/2017,II,3842932,"24,571.21",HC104284,Insight Direct (UK) Ltd,201712,Resources Capital,Capital Expenditure
INSERTED DETAIL,15/03/2017,II,3853911,"12,480.00",HC117406,SSI Schaefer Ltd,201712,Environment and Place,Supplies & Services
INSERTED DETAIL,24/03/2017,II,3854282,"21,360.00",HC104284,Insight Direct (UK) Ltd,201712,Resources,Supplies & Services
INSERTED DETAIL,17/03/2017,II,3857123,"1,013.98",HC110215,Storm Technologies Ltd,201712,Resources,Supplies & Services
INSERTED DETAIL,24/03/2017,II,3859177,800.00,HC121349,Jadu Limited,201712,Resources,Supplies & Services
INSERTED DETAIL,15/03/2017,II,3859594,"5,217.48",HC108688,Vip-System Ltd,201712,Environment and Place,Supplies & Services
INSERTED DETAIL,01/03/2017,II,3859827,"1,519.00",HC110958,TPG Disable Aids Ltd,201712,Schools Devolved Capital,Capital Expenditure
INSERTED DETAIL,29/03/2017,II,3859851,"4,312.81",HC120340,Adept Telecom PLC,201712,Resources,Supplies & Services
INSERTED DETAIL,29/03/2017,II,3859852,"1,994.33",HC120340,Adept Telecom PLC,201712,Resources,Supplies & Services
INSERTED DETAIL,24/03/2017,II,3860439,"1,120.00",HC110546,The Carnival Arts Group,201712,Environment and Place,Supplies & Services
INSERTED DETAIL,22/03/2017,II,3860483,"1,950.00",HC121766,The Caldecott Foundation,201712,Education and Commissioning,Third Party Payments
INSERTED DETAIL,31/03/2017,II,3860761,425.00,HC111157,Updata Infrastructure UK Ltd,201712,Resources,Supplies & Services
INSERTED DETAIL,15/03/2017,II,3860763,"2,694.75",HC111157,Updata Infrastructure UK Ltd,201712,Resources,Supplies & Services
INSERTED DETAIL,15/03/2017,II,3860774,"8,932.25",HC111157,Updata Infrastructure UK Ltd,201712,Resources,Supplies & Services
INSERTED DETAIL,15/03/2017,II,3860775,"34,379.50",HC111157,Updata Infrastructure UK Ltd,201712,Resources,Supplies & Services
INSERTED DETAIL,15/03/2017,II,3860776,"1,364.50",HC111157,Updata Infrastructure UK Ltd,201712,Resources,Supplies & Services
INSERTED DETAIL,08/03/2017,II,3860847,"4,300.00",HC121343,Brain In Hand Ltd,201712,Integrated Commissioning,Capital Expenditure
INSERTED DETAIL,08/03/2017,II,3860847,860.00,HC121343,Brain In Hand Ltd,201712,Integrated Commissioning,Suspense Accounts
INSERTED DETAIL,08/03/2017,II,3860903,"1,584.00",HC121130,The Wilderness Centre,201712,Schools,Supplies & Services
INSERTED DETAIL,03/03/2017,II,3860943,"1,645.39",HC108807,Primecare,201712,Transformation and safeguarding,Third Party Payments
INSERTED DETAIL,03/03/2017,II,3860944,"1,645.39",HC108807,Primecare,201712,Transformation and safeguarding,Third Party Payments
INSERTED DETAIL,03/03/2017,II,3860945,"1,645.39",HC108807,Primecare,201712,Transformation and safeguarding,Third Party Payments
INSERTED DETAIL,03/03/2017,II,3860960,"4,833.33",HC103069,Festival Housing Group,201712,Physical Disabilities,Third Party Payments
INSERTED DETAIL,08/03/2017,II,3861035,519.00,HC100165,Supplymeprint.com Ltd T/A ABC,201712,Environment and Place,Supplies & Services
INSERTED DETAIL,22/03/2017,II,3861037,"1,760.00",HC102495,Dotted Eyes,201712,Resources,Supplies & Services
INSERTED DETAIL,31/03/2017,II,3861046,"5,604.00",HC122389,BDRC Continental Ltd,201712,Environment and Place,Supplies & Services
INSERTED DETAIL,03/03/2017,II,3861050,"1,614.44",HC111426,West Mercia Supplies (The Consortium),201712,Schools,Premises-Related Expenditure
INSERTED DETAIL,03/03/2017,II,3861051,"2,367.90",HC111426,West Mercia Supplies (The Consortium),201712,Schools,Premises-Related Expenditure
INSERTED DETAIL,08/03/2017,II,3861065,"1,571.06",HC111380,Welsh Water,201712,Environment and Place,Premises-Related Expenditure
INSERTED DETAIL,08/03/2017,II,3861096,682.76,HC108443,West Mercia Energy,201712,Schools,Premises-Related Expenditure
INSERTED DETAIL,08/03/2017,II,3861155,"1,380.00",HC101117,Bosbury & Coddington Parish Council,201712,Environment and Place,Third Party Payments
INSERTED DETAIL,01/03/2017,II,3861169,"2,429.84",HC102067,Cradley Parish Council,201712,Environment and Place,Third Party Payments
INSERTED DETAIL,08/03/2017,II,3861170,475.00,HC111372,Wellington Heath Parish Council,201712,Environment and Place,Third Party Payments
INSERTED DETAIL,01/03/2017,II,3861219,490.00,HC106053,Micro Librarian Systems (MLS),201712,Schools,Supplies & Services
INSERTED DETAIL,01/03/2017,II,3861221,860.64,HC101806,PEAC (UK) Ltd,201712,Schools,Supplies & Services
INSERTED DETAIL,01/03/2017,II,3861222,580.00,HC108604,PGL Travel Ltd,201712,Schools,Supplies & Services
INSERTED DETAIL,03/03/2017,II,3861224,"2,280.00",HC114860,Eclipse Access Solutions Ltd,201712,Housing & Independent Living Capital,Capital Expenditure
INSERTED DETAIL,03/03/2017,II,3861225,"7,430.00",HC114860,Eclipse Access Solutions Ltd,201712,Housing & Independent Living Capital,Capital Expenditure
INSERTED DETAIL,01/03/2017,II,3861226,"1,610.00",HC103879,Hereford Mobility Centre,201712,Housing & Independent Living Capital,Capital Expenditure
INSERTED DETAIL,01/03/2017,II,3861227,"3,115.59",HC117310,Level Access Bathrooms,201712,Housing & Independent Living Capital,Capital Expenditure
INSERTED DETAIL,03/03/2017,II,3861228,"4,560.00",HC114362,Anglia Stairlifts Ltd,201712,Housing & Independent Living Capital,Capital Expenditure
INSERTED DETAIL,01/03/2017,II,3861229,"4,075.00",HC100792,B & B Services Ltd,201712,Housing & Independent Living Capital,Capital Expenditure
INSERTED DETAIL,01/03/2017,II,3861230,"2,906.00",HC114361,Dolphin Lifts Midlands Ltd,201712,Housing & Independent Living Capital,Capital Expenditure
INSERTED DETAIL,01/03/2017,II,3861231,"7,000.00",HC106960,Hopton Building Services Ltd,201712,Housing & Independent Living Capital,Capital Expenditure
INSERTED DETAIL,01/03/2017,II,3861236,"4,366.00",HC110046,SRJ Plumbing & Heating,201712,Housing & Independent Living Capital,Capital Expenditure
INSERTED DETAIL,01/03/2017,II,3861237,"3,500.00",HC107858,MVF Builders Ltd,201712,Housing & Independent Living Capital,Capital Expenditure
INSERTED DETAIL,01/03/2017,II,3861240,546.00,HC102076,Herefordshire Marches Federation Sutton Primary Academy,201712,Schools,Support Services
INSERTED DETAIL,03/03/2017,II,3861262,"107,463.98",HC109211,Richards Castle Parish Council,201712,Environment and Place,Third Party Payments
INSERTED DETAIL,01/03/2017,II,3861263,855.63,HC105926,Mavis Russell Cleaning Ltd,201712,Schools,Premises-Related Expenditure
INSERTED DETAIL,01/03/2017,II,3861264,737.72,HC100656,Allstar Business Solutions Ltd (Arval),201712,Environment and Place,Transport-Related Expenditure
INSERTED DETAIL,03/03/2017,II,3861265,"253,559.22",HC101232,Speller Metcalfe Malvern Ltd,201712,Resources Capital,Capital Expenditure
INSERTED DETAIL,01/03/2017,II,3861267,"16,750.00",HC117699,Heineken UK Ltd (Scottish & Newcastle UK),201712,Resources,Premises-Related Expenditure
INSERTED DETAIL,01/03/2017,II,3861271,569.10,HC105926,Mavis Russell Cleaning Ltd,201712,Schools,Premises-Related Expenditure
INSERTED DETAIL,03/03/2017,II,3861278,"12,200.00",HC102047,County Councils Network,201712,Resources,Supplies & Services
INSERTED DETAIL,03/03/2017,II,3861282,"1,818.18",HC118951,Participation People,201712,Public Health,Supplies & Services
INSERTED DETAIL,03/03/2017,II,3861283,"1,700.00",HC103578,Greenfields Garden Services Ltd,201712,Schools Devolved Capital,Capital Expenditure
INSERTED DETAIL,03/03/2017,II,3861304,"1,818.18",HC118951,Participation People,201712,Public Health,Supplies & Services
INSERTED DETAIL,03/03/2017,II,3861305,"1,818.18",HC118951,Participation People,201712,Public Health,Supplies & Services
INSERTED DETAIL,03/03/2017,II,3861311,"1,302.28",HC105130,L D Preece & Son Builders Ltd,201712,Schools,Premises-Related Expenditure
INSERTED DETAIL,08/03/2017,II,3861317,"1,101.60",HC101439,Callow & Haywood G.P.C.,201712,Environment and Place,Third Party Payments
INSERTED DETAIL,03/03/2017,II,3861319,502.44,HC100969,Bertram Trading Ltd,201712,Communities,Supplies & Services
INSERTED DETAIL,03/03/2017,II,3861320,"3,285.88",HC100969,Bertram Trading Ltd,201712,Communities,Supplies & Services
INSERTED DETAIL,03/03/2017,II,3861332,798.00,HC105563,Lugg Valley Primrose Travel Ltd,201712,Schools,Transport-Related Expenditure
INSERTED DETAIL,03/03/2017,II,3861337,"1,027.65",HC100969,Bertram Trading Ltd,201712,Communities,Supplies & Services
INSERTED DETAIL,03/03/2017,II,3861338,"1,032.14",HC101865,Clehonger Parish Council,201712,Environment and Place,Third Party Payments
INSERTED DETAIL,08/03/2017,II,3861340,550.00,HC111997,SMS Energy Services,201712,Growth Capital,Capital Expenditure
INSERTED DETAIL,03/03/2017,II,3861341,"1,320.00",HC111997,SMS Energy Services,201712,Growth Capital,Suspense Accounts
INSERTED DETAIL,08/03/2017,II,3861342,"3,180.00",HC111997,SMS Energy Services,201712,Growth Capital,Suspense Accounts
INSERTED DETAIL,03/03/2017,II,3861344,"1,342.75",HC102668,Eardisland Parish Council,201712,Environment and Place,Third Party Payments
INSERTED DETAIL,08/03/2017,II,3861345,"1,342.75",HC102668,Eardisland Parish Council,201712,Environment and Place,Third Party Payments
INSERTED DETAIL,03/03/2017,II,3861352,"1,620.00",HC119552,REDACTED,201712,Adults Operations,Supplies & Services
INSERTED DETAIL,03/03/2017,II,3861357,"5,353.90",HC122692,Lodders Solicitors LLP,201712,Resources Capital,Capital Expenditure
INSERTED DETAIL,03/03/2017,II,3861359,"2,099.00",HC111657,Wyeside Group Parish Council,201712,Environment and Place,Third Party Payments
INSERTED DETAIL,03/03/2017,II,3861360,773.00,HC107825,Much Birch Parish Council,201712,Environment and Place,Third Party Payments
INSERTED DETAIL,03/03/2017,II,3861362,983.52,HC109769,Shaw Healthcare (Herefordshire) Ltd,201712,Physical Disabilities,Employees
INSERTED DETAIL,08/03/2017,II,3861365,705.75,HC108505,Pearson Education Ltd,201712,Schools,Supplies & Services
INSERTED DETAIL,03/03/2017,II,3861369,"5,250.00",HC120198,REDACTED,201712,Communities,Supplies & Services
INSERTED DETAIL,03/03/2017,II,3861378,"2,500.00",HC112576,University Of Wolverhampton,201712,Growth,Supplies & Services
INSERTED DETAIL,08/03/2017,II,3861385,"1,000.00",HC111508,Wigmore High School (Academy),201712,Schools,Supplies & Services
INSERTED DETAIL,10/03/2017,II,3861388,570.00,HC107874,YHA Manobier,201712,Schools,Supplies & Services
INSERTED DETAIL,03/03/2017,II,3861389,480.00,HC103975,Herefordshire Riding For The Disabled,201712,Schools,Supplies & Services
INSERTED DETAIL,03/03/2017,II,3861397,840.00,HC119552,REDACTED,201712,Adults Operations,Supplies & Services
INSERTED DETAIL,03/03/2017,II,3861417,"401,415.31",HC104323,Integral UK Ltd,201712,Holding Codes,Holding Codes
INSERTED DETAIL,03/03/2017,II,3861418,"54,280.93",HC117423,Interserve FS (UK) Ltd,201712,Holding Codes,Holding Codes
INSERTED DETAIL,03/03/2017,II,3861419,624.51,HC110572,The Courtyard Trading Company Ltd,201712,Resources,Premises-Related Expenditure
INSERTED DETAIL,03/03/2017,II,3861421,530.00,HC108094,Noahs Ark Pre-School,201712,Education and Commissioning,Transfer Payments
INSERTED DETAIL,08/03/2017,II,3861432,"4,342.25",HC112548,London Explorers Ltd,201712,Schools,Supplies & Services
INSERTED DETAIL,03/03/2017,II,3861438,596.69,HC108646,PHS Group Plc,201712,Schools,Supplies & Services
INSERTED DETAIL,03/03/2017,II,3861439,"1,116.99",HC114999,Townsweb Archiving Ltd,201712,Communities,Supplies & Services
INSERTED DETAIL,08/03/2017,II,3861441,"1,826.00",HC105430,Little Dewchurch Parish Council,201712,Environment and Place,Third Party Payments
INSERTED DETAIL,03/03/2017,II,3861444,871.81,HC122741,Forest Fuels Ltd,201712,Schools,Premises-Related Expenditure
INSERTED DETAIL,03/03/2017,II,3861446,915.06,HC122741,Forest Fuels Ltd,201712,Schools,Premises-Related Expenditure
INSERTED DETAIL,08/03/2017,II,3861453,583.60,HC102700,Eaton Bishop Parish Council,201712,Environment and Place,Third Party Payments
INSERTED DETAIL,03/03/2017,II,3861458,518.00,HC122125,South Staffordshire and Shropshire Healthcare,201712,Public Health,Third Party Payments
INSERTED DETAIL,03/03/2017,II,3861471,846.66,HC109997,Spa Gas Ltd,201712,Schools,Premises-Related Expenditure
INSERTED DETAIL,03/03/2017,II,3861472,504.43,HC109997,Spa Gas Ltd,201712,Schools,Premises-Related Expenditure
INSERTED DETAIL,03/03/2017,II,3861473,522.06,HC109997,Spa Gas Ltd,201712,Schools,Premises-Related Expenditure
INSERTED DETAIL,03/03/2017,II,3861479,475.00,HC108866,Education Property Partnership Ltd,201712,Schools,Supplies & Services
INSERTED DETAIL,03/03/2017,II,3861485,"1,503.50",HC101101,Bookpoint Ltd,201712,Schools,Supplies & Services
INSERTED DETAIL,03/03/2017,II,3861488,595.00,HC109547,REDACTED,201712,Schools,Supplies & Services
INSERTED DETAIL,03/03/2017,II,3861489,813.40,HC105202,REDACTED,201712,Schools,Supplies & Services
INSERTED DETAIL,03/03/2017,II,3861490,"5,307.75",HC111685,Yeomans Travel Ltd,201712,Growth,Supplies & Services
INSERTED DETAIL,03/03/2017,II,3861496,"30,000.00",HC122291,REDACTED,201712,Growth Capital,Capital Expenditure
INSERTED DETAIL,03/03/2017,II,3861498,"1,141.30",HC111363,Weightmans Llp,201712,Communities,Supplies & Services
INSERTED DETAIL,10/03/2017,II,3861499,"3,553.50",HC120703,Black Pepper (Ledbury) Ltd,201712,Schools,Supplies & Services
INSERTED DETAIL,10/03/2017,II,3861500,"1,055.70",HC120703,Black Pepper (Ledbury) Ltd,201712,Schools,Supplies & Services
INSERTED DETAIL,03/03/2017,II,3861501,567.12,HC110372,T S Matthews & Son (Bartonsham Farm Dairies),201712,Schools,Supplies & Services
INSERTED DETAIL,03/03/2017,II,3861502,491.30,HC110372,T S Matthews & Son (Bartonsham Farm Dairies),201712,Schools,Supplies & Services
INSERTED DETAIL,03/03/2017,II,3861504,450.00,HC110480,Testbase/ Exampro,201712,Schools,Supplies & Services
INSERTED DETAIL,03/03/2017,II,3861513,791.42,HC108593,Peters Bookselling Services,201712,Communities,Supplies & Services
INSERTED DETAIL,03/03/2017,II,3861515,973.79,HC105323,Leominster Primary School Imprest,201712,Schools,Supplies & Services
INSERTED DETAIL,03/03/2017,II,3861521,"2,400.00",HC115888,HMCTS,201712,Environment and Place,Supplies & Services
INSERTED DETAIL,08/03/2017,II,3861526,640.00,HC110123,Stanford Marsh Ltd,201712,Growth,Supplies & Services
INSERTED DETAIL,03/03/2017,II,3861536,"4,755.00",HC114362,Anglia Stairlifts Ltd,201712,Housing & Independent Living Capital,Capital Expenditure
INSERTED DETAIL,03/03/2017,II,3861538,420.00,HC115887,Serve (DHET) LtD,201712,Schools,Employees
INSERTED DETAIL,03/03/2017,II,3861543,600.00,HC102949,Eteach.Com,201712,Schools,Employees
INSERTED DETAIL,03/03/2017,II,3861561,541.49,HC111060,TTS Group Ltd,201712,Schools,Supplies & Services
INSERTED DETAIL,03/03/2017,II,3861562,"1,390.30",HC105512,Lord Combustion Services Ltd,201712,Schools,Premises-Related Expenditure
INSERTED DETAIL,03/03/2017,II,3861565,511.38,HC104018,Highground Maintenance Limited,201712,Schools,Premises-Related Expenditure
INSERTED DETAIL,03/03/2017,II,3861569,670.80,HC101123,Boss,201712,Schools,Supplies & Services
INSERTED DETAIL,03/03/2017,II,3861571,446.64,HC120693,Leominster Sunrise Co-operative,201712,Schools,Premises-Related Expenditure
INSERTED DETAIL,03/03/2017,II,3861572,"2,850.00",HC120107,Hereford Integrated Behaviour Outreach Service,201712,Schools,Supplies & Services
INSERTED DETAIL,03/03/2017,II,3861573,"3,800.00",HC118940,Earl Mortimer College & Sixth Form HCC,201712,Schools,Supplies & Services
INSERTED DETAIL,03/03/2017,II,3861576,"1,498.33",HC105512,Lord Combustion Services Ltd,201712,Schools,Premises-Related Expenditure
INSERTED DETAIL,03/03/2017,II,3861578,"1,596.00",HC105887,Dudley Fencing,201712,Schools,Premises-Related Expenditure
INSERTED DETAIL,03/03/2017,II,3861582,"1,680.25",HC111603,Worcestershire County Council,201712,Environment and Place,Supplies & Services
INSERTED DETAIL,10/03/2017,II,3861594,720.00,HC111175,V M Watkins,201712,Environment and Place,Transport-Related Expenditure
INSERTED DETAIL,08/03/2017,II,3861595,"26,831.25",HC111685,Yeomans Travel Ltd,201712,Environment and Place,Transport-Related Expenditure
INSERTED DETAIL,10/03/2017,II,3861597,791.62,HC122635,Powered Bicycles Ltd,201712,Holding Codes,Holding Codes
INSERTED DETAIL,10/03/2017,II,3861598,681.50,HC122488,Scholarpack,201712,Schools,Supplies & Services
INSERTED DETAIL,17/03/2017,II,3861601,"1,081.00",HC120703,Black Pepper (Ledbury) Ltd,201712,Schools,Supplies & Services
INSERTED DETAIL,08/03/2017,II,3861603,"1,000.00",HC122215,Deutscheparts Ltd,201712,Environment and Place,Transfer Payments
INSERTED DETAIL,08/03/2017,II,3861604,"7,680.00",HC111535,Grant Thornton,201712,Growth,Third Party Payments
INSERTED DETAIL,10/03/2017,II,3861605,600.00,HC106975,Hoople Ltd,201712,Environment and Place,Transport-Related Expenditure
INSERTED DETAIL,10/03/2017,II,3861607,"11,770.00",HC106941,Omnibus Solutions Ltd,201712,Environment and Place,Supplies & Services
INSERTED DETAIL,08/03/2017,II,3861608,"76,882.00",HC105814,Just Checking Ltd,201712,Integrated Commissioning,Capital Expenditure
INSERTED DETAIL,08/03/2017,II,3861609,"2,487.50",HC111873,Land Use Consultants Ltd,201712,Growth,Supplies & Services
INSERTED DETAIL,08/03/2017,II,3861613,419.00,HC108803,Primary Site Ltd,201712,Schools,Supplies & Services
INSERTED DETAIL,08/03/2017,II,3861614,"1,166.00",HC104352,J P Catering,201712,Schools,Supplies & Services
INSERTED DETAIL,08/03/2017,II,3861615,444.00,HC111685,Yeomans Travel Ltd,201712,Schools,Transport-Related Expenditure
INSERTED DETAIL,08/03/2017,II,3861624,460.57,HC105490,Lollipops Nursery School And Creche,201712,Education and Commissioning,Supplies & Services
INSERTED DETAIL,08/03/2017,II,3861625,"3,425.00",HC106749,D M Gray Plumbing,201712,Housing & Independent Living Capital,Capital Expenditure
INSERTED DETAIL,08/03/2017,II,3861626,"3,871.00",HC107858,MVF Builders Ltd,201712,Housing & Independent Living Capital,Capital Expenditure
INSERTED DETAIL,10/03/2017,II,3861633,798.00,HC122748,REDACTED,201712,Environment and Place,Transfer Payments
INSERTED DETAIL,08/03/2017,II,3861641,"8,455.32",HC105903,Mastercraft Cycles,201712,Environment and Place,Supplies & Services
INSERTED DETAIL,08/03/2017,II,3861641,"1,691.06",HC105903,Mastercraft Cycles,201712,Environment and Place,Suspense Accounts
INSERTED DETAIL,08/03/2017,II,3861660,448.05,HC105512,Lord Combustion Services Ltd,201712,Schools,Premises-Related Expenditure
INSERTED DETAIL,08/03/2017,II,3861661,430.00,HC122752,Authors Aloud UK LTD,201712,Schools,Supplies & Services
INSERTED DETAIL,08/03/2017,II,3861667,"3,600.00",HC107190,Cycle Heaven Ltd,201712,Environment and Place,Supplies & Services
INSERTED DETAIL,15/03/2017,II,3861677,"60,772.00",HC105968,Melcon Hereford Ltd,201712,Environment and Place,Supplies & Services
INSERTED DETAIL,08/03/2017,II,3861678,910.00,HC117095,Simon's Taxis,201712,Environment and Place,Transport-Related Expenditure
INSERTED DETAIL,08/03/2017,II,3861684,"1,710.00",HC117095,Simon's Taxis,201712,Environment and Place,Transport-Related Expenditure
INSERTED DETAIL,08/03/2017,II,3861685,480.00,HC117095,Simon's Taxis,201712,Environment and Place,Transport-Related Expenditure
INSERTED DETAIL,08/03/2017,II,3861686,"3,434.70",HC111685,Yeomans Travel Ltd,201712,Environment and Place,Transport-Related Expenditure
INSERTED DETAIL,08/03/2017,II,3861688,"11,077.50",HC103827,Herdman Coaches Ltd,201712,Environment and Place,Transport-Related Expenditure
INSERTED DETAIL,08/03/2017,II,3861689,"2,356.65",HC109622,Sargeants Brothers Ltd,201712,Environment and Place,Transport-Related Expenditure
INSERTED DETAIL,15/03/2017,II,3861697,805.00,HC109547,REDACTED,201712,Schools,Supplies & Services
INSERTED DETAIL,08/03/2017,II,3861701,"1,732.20",HC115657,Powys County Council,201712,Schools,Supplies & Services
INSERTED DETAIL,08/03/2017,II,3861702,958.30,HC107190,Cycle Heaven Ltd,201712,Environment and Place,Supplies & Services
INSERTED DETAIL,08/03/2017,II,3861704,"1,138.99",HC107190,Cycle Heaven Ltd,201712,Environment and Place,Supplies & Services
INSERTED DETAIL,08/03/2017,II,3861711,534.90,HC102910,Environmental Scientifics Group Ltd,201712,Environment and Place,Supplies & Services
INSERTED DETAIL,08/03/2017,II,3861713,608.39,HC102910,Environmental Scientifics Group Ltd,201712,Environment and Place,Supplies & Services
INSERTED DETAIL,08/03/2017,II,3861714,"25,562.40",HC105563,Lugg Valley Primrose Travel Ltd,201712,Environment and Place,Transport-Related Expenditure
INSERTED DETAIL,08/03/2017,II,3861716,"15,000.00",HC109622,Sargeants Brothers Ltd,201712,Environment and Place,Transport-Related Expenditure
INSERTED DETAIL,08/03/2017,II,3861718,"3,630.45",HC104879,K S Harris Transport,201712,Environment and Place,Transport-Related Expenditure
INSERTED DETAIL,08/03/2017,II,3861720,800.00,HC106786,Mr M C Lane (Country Cars),201712,Learning Disabilities,Transport-Related Expenditure
INSERTED DETAIL,08/03/2017,II,3861722,"1,200.00",HC106106,Minibus Services,201712,Learning Disabilities,Transport-Related Expenditure
INSERTED DETAIL,08/03/2017,II,3861724,"2,250.00",HC105676,M&S Coaches Of Hereford Limited,201712,Environment and Place,Transport-Related Expenditure
INSERTED DETAIL,08/03/2017,II,3861725,"2,070.00",HC105676,M&S Coaches Of Hereford Limited,201712,Environment and Place,Transport-Related Expenditure
INSERTED DETAIL,08/03/2017,II,3861726,"2,550.00",HC105676,M&S Coaches Of Hereford Limited,201712,Environment and Place,Transport-Related Expenditure
INSERTED DETAIL,08/03/2017,II,3861727,"2,250.00",HC105676,M&S Coaches Of Hereford Limited,201712,Environment and Place,Transport-Related Expenditure
INSERTED DETAIL,08/03/2017,II,3861729,"2,070.00",HC105676,M&S Coaches Of Hereford Limited,201712,Environment and Place,Transport-Related Expenditure
INSERTED DETAIL,08/03/2017,II,3861730,"2,025.00",HC105676,M&S Coaches Of Hereford Limited,201712,Environment and Place,Transport-Related Expenditure
INSERTED DETAIL,08/03/2017,II,3861731,"1,950.00",HC100495,C M Davies,201712,Environment and Place,Transport-Related Expenditure
INSERTED DETAIL,08/03/2017,II,3861733,"2,250.00",HC100495,C M Davies,201712,Environment and Place,Transport-Related Expenditure
INSERTED DETAIL,08/03/2017,II,3861734,"2,250.00",HC100495,C M Davies,201712,Environment and Place,Transport-Related Expenditure
INSERTED DETAIL,10/03/2017,II,3861736,"1,215.00",HC100385,Alliance In Partnership,201712,Schools,Supplies & Services
INSERTED DETAIL,08/03/2017,II,3861737,"1,532.25",HC100385,Alliance In Partnership,201712,Schools,Supplies & Services
INSERTED DETAIL,08/03/2017,II,3861740,"1,560.00",HC103243,Frome Private Hire Cars,201712,Environment and Place,Transport-Related Expenditure
INSERTED DETAIL,08/03/2017,II,3861741,729.00,HC103243,Frome Private Hire Cars,201712,Environment and Place,Transport-Related Expenditure
INSERTED DETAIL,08/03/2017,II,3861747,"1,034.25",HC104879,K S Harris Transport,201712,Environment and Place,Transport-Related Expenditure
INSERTED DETAIL,08/03/2017,II,3861748,"1,080.00",HC106106,Minibus Services,201712,Learning Disabilities,Transport-Related Expenditure
INSERTED DETAIL,08/03/2017,II,3861750,"2,175.00",HC100495,C M Davies,201712,Environment and Place,Transport-Related Expenditure
INSERTED DETAIL,08/03/2017,II,3861751,"2,175.00",HC100495,C M Davies,201712,Environment and Place,Transport-Related Expenditure
INSERTED DETAIL,08/03/2017,II,3861752,"2,250.00",HC100495,C M Davies,201712,Environment and Place,Transport-Related Expenditure
INSERTED DETAIL,08/03/2017,II,3861753,"2,025.00",HC100495,C M Davies,201712,Environment and Place,Transport-Related Expenditure
INSERTED DETAIL,08/03/2017,II,3861754,"2,100.00",HC100495,C M Davies,201712,Environment and Place,Transport-Related Expenditure
INSERTED DETAIL,08/03/2017,II,3861756,"1,770.00",HC100495,C M Davies,201712,Environment and Place,Transport-Related Expenditure
INSERTED DETAIL,08/03/2017,II,3861757,"2,100.00",HC100495,C M Davies,201712,Environment and Place,Transport-Related Expenditure
INSERTED DETAIL,08/03/2017,II,3861758,700.00,HC105676,M&S Coaches Of Hereford Limited,201712,Environment and Place,Transport-Related Expenditure
INSERTED DETAIL,08/03/2017,II,3861760,"1,051.20",HC100090,A J Watkins,201712,Environment and Place,Transport-Related Expenditure
INSERTED DETAIL,08/03/2017,II,3861761,"2,850.00",HC100090,A J Watkins,201712,Environment and Place,Transport-Related Expenditure
INSERTED DETAIL,08/03/2017,II,3861762,"1,771.80",HC100090,A J Watkins,201712,Environment and Place,Transport-Related Expenditure
INSERTED DETAIL,08/03/2017,II,3861764,"22,827.90",HC102595,DRM (Bromyard) Ltd,201712,Environment and Place,Transport-Related Expenditure
INSERTED DETAIL,08/03/2017,II,3861765,"9,396.60",HC104674,JMC Monmouth Ltd,201712,Environment and Place,Transport-Related Expenditure
INSERTED DETAIL,08/03/2017,II,3861767,750.00,HC104674,JMC Monmouth Ltd,201712,Environment and Place,Transport-Related Expenditure
INSERTED DETAIL,08/03/2017,II,3861768,"1,800.01",HC104674,JMC Monmouth Ltd,201712,Environment and Place,Transport-Related Expenditure
INSERTED DETAIL,08/03/2017,II,3861769,"1,042.50",HC105329,Leominster Taxis & Travel,201712,Environment and Place,Transport-Related Expenditure
INSERTED DETAIL,08/03/2017,II,3861770,750.00,HC105329,Leominster Taxis & Travel,201712,Environment and Place,Transport-Related Expenditure
INSERTED DETAIL,08/03/2017,II,3861772,"2,745.00",HC105329,Leominster Taxis & Travel,201712,Environment and Place,Transport-Related Expenditure
INSERTED DETAIL,08/03/2017,II,3861773,"1,650.00",HC105329,Leominster Taxis & Travel,201712,Environment and Place,Transport-Related Expenditure
INSERTED DETAIL,08/03/2017,II,3861774,"1,192.50",HC109436,REDACTED,201712,Environment and Place,Transport-Related Expenditure
INSERTED DETAIL,08/03/2017,II,3861776,"2,017.50",HC109436,REDACTED,201712,Environment and Place,Transport-Related Expenditure
INSERTED DETAIL,08/03/2017,II,3861777,"1,125.00",HC111203,Venture Taxi Services Ltd,201712,Environment and Place,Transport-Related Expenditure
INSERTED DETAIL,08/03/2017,II,3861793,"1,440.00",HC112891,Sports Plus Scheme Ltd,201712,Schools,Supplies & Services
INSERTED DETAIL,08/03/2017,II,3861794,"2,250.00",HC100495,C M Davies,201712,Environment and Place,Transport-Related Expenditure
INSERTED DETAIL,08/03/2017,II,3861796,"1,753.10",HC115657,Powys County Council,201712,Schools,Supplies & Services
INSERTED DETAIL,08/03/2017,II,3861799,"7,272.00",HC103954,Herefordshire Headway,201712,Commissioning Adults,Supplies & Services
INSERTED DETAIL,08/03/2017,II,3861800,"80,478.50",HC102151,2Gether NHS Foundation Trust,201712,Commissioning Adults,Third Party Payments
INSERTED DETAIL,08/03/2017,II,3861807,"15,000.00",HC107758,Onside Independent Advocacy,201712,Commissioning Adults,Third Party Payments
INSERTED DETAIL,08/03/2017,II,3861808,"16,659.00",HC117351,Ategi Ltd,201712,Commissioning Adults,Third Party Payments
INSERTED DETAIL,08/03/2017,II,3861809,"23,166.66",HC110303,Stonham,201712,Commissioning Adults,Supplies & Services
INSERTED DETAIL,08/03/2017,II,3861810,"13,083.33",HC110303,Stonham,201712,Commissioning Adults,Supplies & Services
INSERTED DETAIL,08/03/2017,II,3861811,"57,407.35",HC109769,Shaw Healthcare (Herefordshire) Ltd,201712,Physical Disabilities,Third Party Payments
INSERTED DETAIL,08/03/2017,II,3861813,"3,877.42",HC121433,Elizabeth Fitzroy Support,201712,Learning Disabilities,Third Party Payments
INSERTED DETAIL,08/03/2017,II,3861814,"4,669.86",HC121433,Elizabeth Fitzroy Support,201712,Learning Disabilities,Third Party Payments
INSERTED DETAIL,08/03/2017,II,3861815,"4,147.85",HC121433,Elizabeth Fitzroy Support,201712,Learning Disabilities,Third Party Payments
INSERTED DETAIL,08/03/2017,II,3861816,"3,969.29",HC121433,Elizabeth Fitzroy Support,201712,Learning Disabilities,Third Party Payments
INSERTED DETAIL,08/03/2017,II,3861817,"38,867.50",HC121433,Elizabeth Fitzroy Support,201712,Learning Disabilities,Third Party Payments
INSERTED DETAIL,08/03/2017,II,3861818,"38,867.50",HC121433,Elizabeth Fitzroy Support,201712,Learning Disabilities,Third Party Payments
INSERTED DETAIL,08/03/2017,II,3861822,"26,516.00",HC121433,Elizabeth Fitzroy Support,201712,Learning Disabilities,Third Party Payments
INSERTED DETAIL,08/03/2017,II,3861842,"1,689.96",HC103027,Facultatieve Technologies Limited,201712,Resources,Premises-Related Expenditure
INSERTED DETAIL,24/03/2017,II,3861857,555.00,HC105903,Mastercraft Cycles,201712,Environment and Place,Supplies & Services
INSERTED DETAIL,08/03/2017,II,3861861,"1,330.00",HC109121,Red Spark Learning CIC,201712,Education and Commissioning,Supplies & Services
INSERTED DETAIL,08/03/2017,II,3861864,"1,155.99",HC102362,Dell Corporation Ltd,201712,Schools,Supplies & Services
INSERTED DETAIL,24/03/2017,II,3861865,"1,725.80",HC111192,Marlbrook Collaboration,201712,Schools,Supplies & Services
INSERTED DETAIL,08/03/2017,II,3861866,"2,984.00",HC105282,Herecad Enterprises Ltd,201712,Schools,Supplies & Services
INSERTED DETAIL,08/03/2017,II,3861876,450.00,HC122142,Ace Health,201712,Schools,Supplies & Services
INSERTED DETAIL,08/03/2017,II,3861883,"3,022.00",HC100385,Alliance In Partnership,201712,Schools,Supplies & Services
INSERTED DETAIL,08/03/2017,II,3861888,615.00,HC105926,Mavis Russell Cleaning Ltd,201712,Schools,Premises-Related Expenditure
INSERTED DETAIL,08/03/2017,II,3861889,"1,000.00",HC117961,REDACTED,201712,Communities,Supplies & Services
INSERTED DETAIL,17/03/2017,II,3861896,608.95,HC122744,REDACTED,201712,Environment and Place,Employees
INSERTED DETAIL,08/03/2017,II,3861910,"3,871.00",HC107858,MVF Builders Ltd,201712,Housing & Independent Living Capital,Capital Expenditure
INSERTED DETAIL,08/03/2017,II,3861911,"3,269.00",HC106960,Hopton Building Services Ltd,201712,Housing & Independent Living Capital,Capital Expenditure
INSERTED DETAIL,08/03/2017,II,3861916,546.50,HC111024,Trinity Primary School (Imprest/Petty Cash),201712,Schools,Premises-Related Expenditure
INSERTED DETAIL,08/03/2017,II,3861916,"1,557.94",HC111024,Trinity Primary School (Imprest/Petty Cash),201712,Schools,Supplies & Services
INSERTED DETAIL,08/03/2017,II,3861925,805.60,HC105012,Bevan Brittan LLP,201712,Communities,Supplies & Services
INSERTED DETAIL,15/03/2017,II,3861926,"1,154.30",HC108134,Northgate Public Services (UK) Ltd,201712,Communities,Supplies & Services
INSERTED DETAIL,08/03/2017,II,3861927,"15,000.00",HC108134,Northgate Public Services (UK) Ltd,201712,Communities,Supplies & Services
INSERTED DETAIL,08/03/2017,II,3861928,"3,214.40",HC105012,Bevan Brittan LLP,201712,Communities,Supplies & Services
INSERTED DETAIL,10/03/2017,II,3861944,600.00,HC117589,Say It With Wood,201712,Schools,Premises-Related Expenditure
INSERTED DETAIL,08/03/2017,II,3861968,529.77,HC101168,Brian Hoskins Building Services,201712,Schools,Premises-Related Expenditure
INSERTED DETAIL,08/03/2017,II,3861969,"22,661.00",HC121847,Nestor Associates Ltd,201712,Growth Capital,Capital Expenditure
INSERTED DETAIL,08/03/2017,II,3861970,"3,018.55",HC121847,Nestor Associates Ltd,201712,Growth Capital,Capital Expenditure
INSERTED DETAIL,08/03/2017,II,3861972,"2,657.50",HC122754,Acuity Education Ltd,201712,Central Childrens Directorate Costs,Supplies & Services
INSERTED DETAIL,08/03/2017,II,3861996,576.00,HC122189,Access Independent Ltd,201712,Communities,Supplies & Services
INSERTED DETAIL,17/03/2017,II,3861998,"1,081.84",HC101861,Clearview Cleaning Services,201712,Schools,Premises-Related Expenditure
INSERTED DETAIL,08/03/2017,II,3862008,"4,785.85",HC109769,Shaw Healthcare (Herefordshire) Ltd,201712,Physical Disabilities,Third Party Payments
INSERTED DETAIL,08/03/2017,II,3862009,"1,496.00",HC108022,Newsquest Media Group Ltd,201712,Adults Operations,Employees
INSERTED DETAIL,08/03/2017,II,3862019,519.70,HC105926,Mavis Russell Cleaning Ltd,201712,Schools,Premises-Related Expenditure
INSERTED DETAIL,17/03/2017,II,3862029,628.25,HC106003,Metric Group Ltd,201712,Environment and Place,Supplies & Services
INSERTED DETAIL,08/03/2017,II,3862032,500.00,HC110573,The Courtyard Trust,201712,Schools,Supplies & Services
INSERTED DETAIL,08/03/2017,II,3862036,"1,052.76",HC100976,Bespoke Cleaning Services,201712,Schools,Premises-Related Expenditure
INSERTED DETAIL,08/03/2017,II,3862037,723.69,HC100976,Bespoke Cleaning Services,201712,Schools,Premises-Related Expenditure
INSERTED DETAIL,08/03/2017,II,3862049,"1,095.25",HC105926,Mavis Russell Cleaning Ltd,201712,Schools,Premises-Related Expenditure
INSERTED DETAIL,08/03/2017,II,3862053,"1,155.00",HC121962,REDACTED,201712,Environment and Place,Supplies & Services
INSERTED DETAIL,08/03/2017,II,3862056,"1,179.75",HC121963,REDACTED,201712,Environment and Place,Supplies & Services
INSERTED DETAIL,08/03/2017,II,3862059,"3,686.79",HC100976,Bespoke Cleaning Services,201712,Schools,Premises-Related Expenditure
INSERTED DETAIL,08/03/2017,II,3862062,709.00,HC102014,Coordination Group Publications Ltd,201712,Schools,Supplies & Services
INSERTED DETAIL,08/03/2017,II,3862063,"2,400.00",HC101900,Results Squared Ltd,201712,Schools,Supplies & Services
INSERTED DETAIL,08/03/2017,II,3862064,"8,863.15",HC100694,Assessment & Qualifications Alliance (AQA),201712,Schools,Supplies & Services
INSERTED DETAIL,08/03/2017,II,3862066,"4,921.80",HC108191,OCR,201712,Schools,Supplies & Services
INSERTED DETAIL,08/03/2017,II,3862071,887.08,HC105926,Mavis Russell Cleaning Ltd,201712,Schools,Premises-Related Expenditure
INSERTED DETAIL,08/03/2017,II,3862072,665.00,HC109765,REDACTED,201712,Schools,Supplies & Services
INSERTED DETAIL,17/03/2017,II,3862076,"6,690.00",HC118836,Llangattock School Ltd,201712,Education and Commissioning,Supplies & Services
INSERTED DETAIL,15/03/2017,II,3862079,720.00,HC122755,Herefordshire Live,201712,Growth,Supplies & Services
INSERTED DETAIL,08/03/2017,II,3862081,"10,000.00",HC122525,Crucible Education Limited,201712,Education and Commissioning,Third Party Payments
INSERTED DETAIL,08/03/2017,II,3862087,996.00,HC120380,REDACTED,201712,Communities,Supplies & Services
INSERTED DETAIL,08/03/2017,II,3862088,"2,566.25",HC100385,Alliance In Partnership,201712,Schools,Supplies & Services
INSERTED DETAIL,10/03/2017,II,3862093,988.13,HC111687,YHA Cardiff,201712,Schools,Supplies & Services
INSERTED DETAIL,08/03/2017,II,3862103,"2,213.20",HC107522,Mrs M J Thomson (The Iron Rice Bowl),201712,Schools,Supplies & Services
INSERTED DETAIL,08/03/2017,II,3862105,"1,804.50",HC100385,Alliance In Partnership,201712,Schools,Supplies & Services
INSERTED DETAIL,08/03/2017,II,3862109,529.80,HC100385,Alliance In Partnership,201712,Schools,Supplies & Services
INSERTED DETAIL,08/03/2017,II,3862116,425.00,HC108361,P W Jones (Hereford) Ltd,201712,Schools,Supplies & Services
INSERTED DETAIL,08/03/2017,II,3862124,528.75,HC100385,Alliance In Partnership,201712,Schools,Supplies & Services
INSERTED DETAIL,08/03/2017,II,3862125,"7,560.10",HC100385,Alliance In Partnership,201712,Schools,Supplies & Services
INSERTED DETAIL,08/03/2017,II,3862126,"1,976.00",HC108283,Orleton School Meals,201712,Schools,Supplies & Services
INSERTED DETAIL,08/03/2017,II,3862131,"42,566.68",HC117467,Brandon Trust,201712,Learning Disabilities,Third Party Payments
INSERTED DETAIL,08/03/2017,II,3862145,"1,871.00",HC111415,West Mercia Air Conditioning Ltd,201712,Schools,Premises-Related Expenditure
INSERTED DETAIL,08/03/2017,II,3862150,580.80,HC109084,CF Corporate Finance Ltd,201712,Schools,Supplies & Services
INSERTED DETAIL,10/03/2017,II,3862155,480.00,HC122760,REDACTED,201712,Environment and Place,Supplies & Services
INSERTED DETAIL,08/03/2017,II,3862156,"1,500.00",HC122759,Park Lane Abseiling Ltd,201712,Environment and Place,Supplies & Services
INSERTED DETAIL,10/03/2017,II,3862165,"334,419.56",HC109962,Kier Construction - Central Div of Kier Construction Ltd,201712,Children & Young People Capital,Capital Expenditure
INSERTED DETAIL,10/03/2017,II,3862166,"133,649.60",HC109962,Kier Construction - Central Div of Kier Construction Ltd,201712,Resources Capital,Capital Expenditure
INSERTED DETAIL,10/03/2017,II,3862168,"1,284,956.00",HC111421,West Mercia Police & Crime Commissioner,201712,Collection Fund,Collection Fund Accounts
INSERTED DETAIL,10/03/2017,II,3862169,"15,157.20",HC108505,Pearson Education Ltd,201712,Schools,Supplies & Services
INSERTED DETAIL,22/03/2017,II,3862193,"7,220.50",HC118836,Llangattock School Ltd,201712,Education and Commissioning,Supplies & Services
INSERTED DETAIL,10/03/2017,II,3862194,566.68,HC114881,Ellis Education Services,201712,Schools,Supplies & Services
INSERTED DETAIL,10/03/2017,II,3862195,884.38,HC105926,Mavis Russell Cleaning Ltd,201712,Schools,Premises-Related Expenditure
INSERTED DETAIL,10/03/2017,II,3862196,596.00,HC110034,Superstars School Services Ltd,201712,Schools,Supplies & Services
INSERTED DETAIL,10/03/2017,II,3862199,525.00,HC113774,REDACTED,201712,Schools,Supplies & Services
INSERTED DETAIL,10/03/2017,II,3862206,"42,911.42",HC111332,Warwickshire County Council,201712,Communities,Supplies & Services
INSERTED DETAIL,10/03/2017,II,3862207,420.00,HC121813,Teales Domestic & Ironing Services,201712,Schools,Premises-Related Expenditure
INSERTED DETAIL,10/03/2017,II,3862208,"1,013.98",HC110215,Storm Technologies Ltd,201712,Resources,Supplies & Services
INSERTED DETAIL,10/03/2017,II,3862215,"1,028.00",HC122623,Hopkins Catering Equipment Ltd,201712,Schools,Supplies & Services
INSERTED DETAIL,10/03/2017,II,3862217,"3,152.95",HC105903,Mastercraft Cycles,201712,Environment and Place,Supplies & Services
INSERTED DETAIL,15/03/2017,II,3862220,"1,584.00",HC121130,The Wilderness Centre,201712,Schools,Supplies & Services
INSERTED DETAIL,10/03/2017,II,3862223,"20,728.75",HC107758,Onside Independent Advocacy,201712,Commissioning Adults,Third Party Payments
INSERTED DETAIL,10/03/2017,II,3862234,"1,818.18",HC118951,Participation People,201712,Public Health,Supplies & Services
INSERTED DETAIL,10/03/2017,II,3862242,790.00,HC110395,Tann Synchronome Limited,201712,Schools Devolved Capital,Capital Expenditure
INSERTED DETAIL,10/03/2017,II,3862243,942.79,HC101861,Clearview Cleaning Services,201712,Schools,Premises-Related Expenditure
INSERTED DETAIL,10/03/2017,II,3862251,589.30,HC100385,Alliance In Partnership,201712,Schools,Supplies & Services
INSERTED DETAIL,10/03/2017,II,3862254,"1,500.00",HC101343,Enterprise Rent A Car UK T/A Flex E Rent,201712,Environment and Place,Transport-Related Expenditure
INSERTED DETAIL,10/03/2017,II,3862256,"40,000.00",HC111603,Worcestershire County Council,201712,Education and Commissioning,Third Party Payments
INSERTED DETAIL,28/02/2017,II,3862257,"2,000.00",HC100213,REDACTED,201712,Safeguarding and Family Support,Supplies & Services
INSERTED DETAIL,22/03/2017,II,3862258,573.78,HC103526,Gough Bailey Wright,201712,Environment and Place,Supplies & Services
INSERTED DETAIL,22/03/2017,II,3862259,"4,583.33",HC105756,Marches Family Network,201712,Education and Commissioning,Third Party Payments
INSERTED DETAIL,17/03/2017,II,3862260,425.00,HC102887,Newent Skips Ltd,201712,Schools,Premises-Related Expenditure
INSERTED DETAIL,10/03/2017,II,3862261,"1,527.75",HC100385,Alliance In Partnership,201712,Schools,Supplies & Services
INSERTED DETAIL,10/03/2017,II,3862262,"2,810.41",HC115722,The Nationwide Community Learning Partnership (NCLP),201712,Education and Commissioning,Supplies & Services
INSERTED DETAIL,10/03/2017,II,3862267,960.00,HC108836,Assessments & Learning,201712,Schools,Supplies & Services
INSERTED DETAIL,15/03/2017,II,3862269,702.00,HC103257,Furniture @ Work Ltd,201712,Schools,Supplies & Services
INSERTED DETAIL,10/03/2017,II,3862273,611.10,HC101542,REDACTED,201712,Adults Operations,Supplies & Services
INSERTED DETAIL,10/03/2017,II,3862279,"11,200.00",HC110150,Weobley High School,201712,Education and Commissioning,Support Services
INSERTED DETAIL,15/03/2017,II,3862280,"1,150.00",HC122441,REDACTED,201712,Safeguarding and Family Support,Third Party Payments
INSERTED DETAIL,10/03/2017,II,3862284,"1,894.20",HC100385,Alliance In Partnership,201712,Schools,Supplies & Services
INSERTED DETAIL,10/03/2017,II,3862285,820.60,HC100385,Alliance In Partnership,201712,Schools,Supplies & Services
INSERTED DETAIL,10/03/2017,II,3862287,900.00,HC110151,Stephanie Austwick Ltd,201712,Schools,Employees
INSERTED DETAIL,10/03/2017,II,3862291,"1,368.40",HC110250,RJ & RB Mailes,201712,Schools,Supplies & Services
INSERTED DETAIL,10/03/2017,II,3862292,"4,371.93",HC116854,Fairfield High School (Academy),201712,Schools,Premises-Related Expenditure
INSERTED DETAIL,10/03/2017,II,3862295,"2,267.90",HC112942,LLangrove CE Academy,201712,Schools,Supplies & Services
INSERTED DETAIL,15/03/2017,II,3862300,"1,113.15",HC111380,Welsh Water,201712,Environment and Place,Premises-Related Expenditure
INSERTED DETAIL,10/03/2017,II,3862303,"2,437.42",HC111380,Welsh Water,201712,Environment and Place,Premises-Related Expenditure
INSERTED DETAIL,10/03/2017,II,3862304,"2,472.10",HC100385,Alliance In Partnership,201712,Schools,Supplies & Services
INSERTED DETAIL,10/03/2017,II,3862309,"2,810.00",HC108801,Liberty Services (AR & RF Redding) Ltd,201712,Environment and Place,Supplies & Services
INSERTED DETAIL,10/03/2017,II,3862310,"1,000.00",HC106106,Minibus Services,201712,Learning Disabilities,Transport-Related Expenditure
INSERTED DETAIL,10/03/2017,II,3862311,802.00,HC117095,Simon's Taxis,201712,Learning Disabilities,Transport-Related Expenditure
INSERTED DETAIL,10/03/2017,II,3862312,"1,980.00",HC111685,Yeomans Travel Ltd,201712,Environment and Place,Transport-Related Expenditure
INSERTED DETAIL,10/03/2017,II,3862313,"1,296.30",HC100090,A J Watkins,201712,Environment and Place,Transport-Related Expenditure
INSERTED DETAIL,10/03/2017,II,3862314,"17,287.20",HC100493,George Youngs Coaches Ltd,201712,Environment and Place,Transport-Related Expenditure
INSERTED DETAIL,10/03/2017,II,3862315,"1,800.00",HC107876,Nick Maddy Coaches,201712,Environment and Place,Transport-Related Expenditure
INSERTED DETAIL,10/03/2017,II,3862316,"1,950.00",HC109622,Sargeants Brothers Ltd,201712,Environment and Place,Transport-Related Expenditure
INSERTED DETAIL,10/03/2017,II,3862317,"1,689.75",HC104165,I & S Coaches,201712,Environment and Place,Transport-Related Expenditure
INSERTED DETAIL,17/03/2017,II,3862318,"1,095.00",HC108990,R J Maddy,201712,Environment and Place,Transport-Related Expenditure
INSERTED DETAIL,15/03/2017,II,3862319,"1,417.50",HC108990,R J Maddy,201712,Environment and Place,Transport-Related Expenditure
INSERTED DETAIL,10/03/2017,II,3862322,548.99,HC111380,Welsh Water,201712,Environment and Place,Premises-Related Expenditure
INSERTED DETAIL,10/03/2017,II,3862325,"1,959.75",HC100385,Alliance In Partnership,201712,Schools,Supplies & Services
INSERTED DETAIL,22/03/2017,II,3862327,"1,260.00",HC108990,R J Maddy,201712,Environment and Place,Transport-Related Expenditure
INSERTED DETAIL,10/03/2017,II,3862328,900.00,HC111175,V M Watkins,201712,Environment and Place,Transport-Related Expenditure
INSERTED DETAIL,17/03/2017,II,3862329,"1,260.00",HC107382,REDACTED,201712,Environment and Place,Transport-Related Expenditure
INSERTED DETAIL,10/03/2017,II,3862330,"1,162.50",HC107382,REDACTED,201712,Environment and Place,Transport-Related Expenditure
INSERTED DETAIL,17/03/2017,II,3862331,"1,200.00",HC107382,REDACTED,201712,Environment and Place,Transport-Related Expenditure
INSERTED DETAIL,10/03/2017,II,3862333,700.00,HC110692,The Messaging Centre Ltd,201712,Environment and Place,Supplies & Services
INSERTED DETAIL,22/03/2017,II,3862334,637.50,HC100192,Ace Coaches & Travel,201712,Environment and Place,Transport-Related Expenditure
INSERTED DETAIL,17/03/2017,II,3862335,"1,573.50",HC100192,Ace Coaches & Travel,201712,Environment and Place,Transport-Related Expenditure
INSERTED DETAIL,10/03/2017,II,3862336,"1,960.01",HC100192,Ace Coaches & Travel,201712,Environment and Place,Transport-Related Expenditure
INSERTED DETAIL,10/03/2017,II,3862337,"1,399.50",HC101969,CVA Ledbury & District,201712,Environment and Place,Transport-Related Expenditure
INSERTED DETAIL,10/03/2017,II,3862338,900.00,HC101969,CVA Ledbury & District,201712,Environment and Place,Transport-Related Expenditure
INSERTED DETAIL,10/03/2017,II,3862339,"2,385.00",HC103621,H & H Motors,201712,Environment and Place,Transport-Related Expenditure
INSERTED DETAIL,10/03/2017,II,3862340,"2,340.00",HC103621,H & H Motors,201712,Environment and Place,Transport-Related Expenditure
INSERTED DETAIL,10/03/2017,II,3862343,"1,042.25",HC116579,NJ Electrical Services Ltd,201712,Schools,Premises-Related Expenditure
INSERTED DETAIL,10/03/2017,II,3862344,"1,201.07",HC109152,Relion Heating Services Ltd,201712,Schools,Premises-Related Expenditure
INSERTED DETAIL,10/03/2017,II,3862345,956.20,HC109152,Relion Heating Services Ltd,201712,Schools,Premises-Related Expenditure
INSERTED DETAIL,10/03/2017,II,3862352,"1,875.00",HC103621,H & H Motors,201712,Environment and Place,Transport-Related Expenditure
INSERTED DETAIL,10/03/2017,II,3862353,"2,385.00",HC103621,H & H Motors,201712,Environment and Place,Transport-Related Expenditure
INSERTED DETAIL,10/03/2017,II,3862355,"1,500.00",HC101126,Bowyer's Coaches,201712,Environment and Place,Transport-Related Expenditure
INSERTED DETAIL,10/03/2017,II,3862366,"1,987.30",HC110743,The Plynlimon Trust Community Car Scheme,201712,Environment and Place,Transport-Related Expenditure
INSERTED DETAIL,10/03/2017,II,3862367,"1,999.76",HC110743,The Plynlimon Trust Community Car Scheme,201712,Environment and Place,Transport-Related Expenditure
INSERTED DETAIL,17/03/2017,II,3862372,"27,789.66",HC117682,Portakabin Ltd,201712,Education and Commissioning,Premises-Related Expenditure
INSERTED DETAIL,10/03/2017,II,3862373,"3,000.00",HC101309,Buchanans Coaches,201712,Environment and Place,Transport-Related Expenditure
INSERTED DETAIL,10/03/2017,II,3862374,"2,100.00",HC101309,Buchanans Coaches,201712,Environment and Place,Transport-Related Expenditure
INSERTED DETAIL,10/03/2017,II,3862375,"1,200.00",HC102613,Dukes Travel Ltd,201712,Environment and Place,Transport-Related Expenditure
INSERTED DETAIL,17/03/2017,II,3862376,"2,175.00",HC102613,Dukes Travel Ltd,201712,Environment and Place,Transport-Related Expenditure
INSERTED DETAIL,10/03/2017,II,3862378,800.00,HC106786,Mr M C Lane (Country Cars),201712,Learning Disabilities,Transport-Related Expenditure
INSERTED DETAIL,10/03/2017,II,3862380,"2,025.00",HC107876,Nick Maddy Coaches,201712,Environment and Place,Transport-Related Expenditure
INSERTED DETAIL,10/03/2017,II,3862383,560.00,HC101291,Education Umbrella Ltd,201712,Schools,Supplies & Services
INSERTED DETAIL,10/03/2017,II,3862385,"1,455.65",HC101969,CVA Ledbury & District,201712,Environment and Place,Transport-Related Expenditure
INSERTED DETAIL,10/03/2017,II,3862387,996.75,HC110743,The Plynlimon Trust Community Car Scheme,201712,Environment and Place,Transport-Related Expenditure
INSERTED DETAIL,24/03/2017,II,3862388,450.00,HC117920,Avonside Taxis,201712,Environment and Place,Transport-Related Expenditure
INSERTED DETAIL,10/03/2017,II,3862390,"1,040.00",HC110767,REDACTED,201712,Safeguarding and Family Support,Premises-Related Expenditure
INSERTED DETAIL,10/03/2017,II,3862391,600.00,HC103702,Bearwood Associates Ltd,201712,Growth,Supplies & Services
INSERTED DETAIL,24/03/2017,II,3862392,"1,330.00",HC122664,Systra Ltd,201712,Environment and Place,Third Party Payments
INSERTED DETAIL,24/03/2017,II,3862393,"1,330.00",HC122664,Systra Ltd,201712,Environment and Place,Third Party Payments
INSERTED DETAIL,15/03/2017,II,3862397,"8,840.00",HC101178,Bridges Electrical (Hereford) Ltd,201712,Children & Young People Capital,Capital Expenditure
INSERTED DETAIL,10/03/2017,II,3862408,881.46,HC106071,Midshire Business Systems Ltd,201712,Schools,Supplies & Services
INSERTED DETAIL,24/03/2017,II,3862415,"2,628.75",HC106670,Meininger Limited,201712,Schools,Supplies & Services
INSERTED DETAIL,10/03/2017,II,3862424,"1,940.00",HC104674,JMC Monmouth Ltd,201712,Learning Disabilities,Transport-Related Expenditure
INSERTED DETAIL,10/03/2017,II,3862425,"1,258.08",HC104674,JMC Monmouth Ltd,201712,Learning Disabilities,Transport-Related Expenditure
INSERTED DETAIL,10/03/2017,II,3862426,"1,425.00",HC104674,JMC Monmouth Ltd,201712,Environment and Place,Transport-Related Expenditure
INSERTED DETAIL,10/03/2017,II,3862427,"1,800.00",HC104674,JMC Monmouth Ltd,201712,Environment and Place,Transport-Related Expenditure
INSERTED DETAIL,10/03/2017,II,3862431,"6,551.29",HC119220,REDACTED,201712,Commissioning Capital,Capital Expenditure
INSERTED DETAIL,15/03/2017,II,3862432,"17,770.75",HC111157,Updata Infrastructure UK Ltd,201712,Resources,Supplies & Services
INSERTED DETAIL,24/03/2017,II,3862438,500.00,HC120888,Ecomotive,201712,Growth,Supplies & Services
INSERTED DETAIL,15/03/2017,II,3862439,"12,036.75",HC111157,Updata Infrastructure UK Ltd,201712,Resources,Supplies & Services
INSERTED DETAIL,15/03/2017,II,3862440,"1,060.31",HC111157,Updata Infrastructure UK Ltd,201712,Resources,Supplies & Services
INSERTED DETAIL,15/03/2017,II,3862441,"2,602.15",HC111157,Updata Infrastructure UK Ltd,201712,Resources,Supplies & Services
INSERTED DETAIL,15/03/2017,II,3862449,"43,990.08",HC111685,Yeomans Travel Ltd,201712,Environment and Place,Third Party Payments
INSERTED DETAIL,10/03/2017,II,3862450,"14,805.18",HC102595,DRM (Bromyard) Ltd,201712,Environment and Place,Third Party Payments
INSERTED DETAIL,10/03/2017,II,3862451,588.72,HC100728,Astons Coaches,201712,Environment and Place,Third Party Payments
INSERTED DETAIL,22/03/2017,II,3862453,520.00,HC106975,Hoople Ltd,201712,Resources,Third Party Payments
INSERTED DETAIL,24/03/2017,II,3862454,840.00,HC106975,Hoople Ltd,201712,Adults Operations,Supplies & Services
INSERTED DETAIL,10/03/2017,II,3862459,"2,400.00",HC114874,HCT Construction Consultants Ltd,201712,Growth,Supplies & Services
INSERTED DETAIL,10/03/2017,II,3862460,524.84,HC100728,Astons Coaches,201712,Environment and Place,Third Party Payments
INSERTED DETAIL,15/03/2017,II,3862461,"2,315.34",HC111157,Updata Infrastructure UK Ltd,201712,Resources,Supplies & Services
INSERTED DETAIL,10/03/2017,II,3862466,"10,521.32",HC110117,Stagecoach Services Limited,201712,Environment and Place,Third Party Payments
INSERTED DETAIL,22/03/2017,II,3862469,"5,318.92",HC109622,Sargeants Brothers Ltd,201712,Environment and Place,Third Party Payments
INSERTED DETAIL,10/03/2017,II,3862470,"11,277.04",HC105563,Lugg Valley Primrose Travel Ltd,201712,Environment and Place,Third Party Payments
INSERTED DETAIL,10/03/2017,II,3862472,635.40,HC101126,Bowyer's Coaches,201712,Environment and Place,Third Party Payments
INSERTED DETAIL,10/03/2017,II,3862474,700.00,HC109622,Sargeants Brothers Ltd,201712,Environment and Place,Third Party Payments
INSERTED DETAIL,22/03/2017,II,3862476,487.00,HC104592,JBA Consulting,201712,Growth Capital,Capital Expenditure
INSERTED DETAIL,22/03/2017,II,3862476,"4,621.20",HC104592,JBA Consulting,201712,Growth Capital,Suspense Accounts
INSERTED DETAIL,29/03/2017,II,3862477,"8,062.50",HC118290,Primosec Ltd,201712,Resources,Supplies & Services
INSERTED DETAIL,17/03/2017,II,3862479,547.39,HC111380,Welsh Water,201712,Environment and Place,Premises-Related Expenditure
INSERTED DETAIL,17/03/2017,II,3862480,798.44,HC111380,Welsh Water,201712,Environment and Place,Premises-Related Expenditure
INSERTED DETAIL,22/03/2017,II,3862483,497.00,HC113673,Callcredit,201712,Resources,Supplies & Services
INSERTED DETAIL,22/03/2017,II,3862484,623.00,HC113673,Callcredit,201712,Resources,Supplies & Services
INSERTED DETAIL,10/03/2017,II,3862485,480.00,HC109443,S & R Taxis,201712,Physical Disabilities,Transport-Related Expenditure
INSERTED DETAIL,15/03/2017,II,3862494,"4,116.42",HC103869,Wye Valley NHS Trust,201712,Communities,Premises-Related Expenditure
INSERTED DETAIL,10/03/2017,II,3862495,"8,500.00",HC118580,Ernst & Young LLP,201712,Commissioning Capital,Capital Expenditure
INSERTED DETAIL,10/03/2017,II,3862500,"13,680.83",HC118296,Andrew Byass t/a Landmark Chambers,201712,Communities,Supplies & Services
INSERTED DETAIL,24/03/2017,II,3862502,"1,601.60",HC100385,Alliance In Partnership,201712,Schools,Supplies & Services
INSERTED DETAIL,10/03/2017,II,3862505,"1,069.68",HC119577,Hereford BID Ltd,201712,Growth,Supplies & Services
INSERTED DETAIL,15/03/2017,II,3862506,"1,652.45",HC108307,Owen Pell Ltd,201712,Growth Capital,Capital Expenditure
INSERTED DETAIL,10/03/2017,II,3862507,763.22,HC113877,Albion Computers PLC,201712,Education and Commissioning,Supplies & Services
INSERTED DETAIL,22/03/2017,II,3862508,"2,007.50",HC118848,Mannings Fruit Ltd T/A The Shack Revolution,201712,Growth,Transfer Payments
INSERTED DETAIL,10/03/2017,II,3862511,"15,570.00",HC108667,Pitney Bowes Software Europe Ltd,201712,Resources,Supplies & Services
INSERTED DETAIL,24/03/2017,II,3862513,512.08,HC103526,Gough Bailey Wright,201712,Environment and Place,Supplies & Services
INSERTED DETAIL,24/03/2017,II,3862514,450.54,HC103526,Gough Bailey Wright,201712,Environment and Place,Supplies & Services
INSERTED DETAIL,10/03/2017,II,3862516,"1,926,059.40",HC114724,Balfour Beatty Living Places Ltd,201712,Holding Codes,Holding Codes
INSERTED DETAIL,22/03/2017,II,3862525,"35,000.00",HC103959,Herefordshire Housing Ltd,201712,Commissioning Adults,Third Party Payments
INSERTED DETAIL,10/03/2017,II,3862527,538.00,HC122739,Elite Catering,201712,Schools,Supplies & Services
INSERTED DETAIL,10/03/2017,II,3862530,"14,850.00",HC121975,Penna Plc,201712,Resources,Employees
INSERTED DETAIL,10/03/2017,II,3862531,"1,120.00",HC108132,Northern Link Traffic Data Consultancy Ltd,201712,Commissioning Capital,Capital Expenditure
INSERTED DETAIL,10/03/2017,II,3862532,"16,330.37",HC108667,Pitney Bowes Software Europe Ltd,201712,Resources,Supplies & Services
INSERTED DETAIL,10/03/2017,II,3862542,"6,732.00",HC117406,SSI Schaefer Ltd,201712,Environment and Place,Suspense Accounts
INSERTED DETAIL,15/03/2017,II,3862543,"1,833.87",HC115602,Total Gas & Power Ltd,201712,Environment and Place,Premises-Related Expenditure
INSERTED DETAIL,10/03/2017,II,3862545,"1,540.00",HC120248,The Best Taste Catering Services,201712,Communities,Supplies & Services
INSERTED DETAIL,29/03/2017,II,3862547,551.76,HC111665,XMA Ltd,201712,Growth,Supplies & Services
INSERTED DETAIL,15/03/2017,II,3862552,"10,000.00",HC101855,Cld Youth Counselling Trust,201712,Education and Commissioning,Third Party Payments
INSERTED DETAIL,22/03/2017,II,3862553,"10,541.66",HC102113,Crossroads Care-Forest Of Dean & Hfds,201712,Education and Commissioning,Third Party Payments
INSERTED DETAIL,17/03/2017,II,3862559,900.00,HC111175,V M Watkins,201712,Environment and Place,Transport-Related Expenditure
INSERTED DETAIL,15/03/2017,II,3862566,989.00,HC111508,Wigmore High School (Academy),201712,Schools,Supplies & Services
INSERTED DETAIL,15/03/2017,II,3862569,"5,809.28",HC109121,Red Spark Learning CIC,201712,Education and Commissioning,Supplies & Services
INSERTED DETAIL,15/03/2017,II,3862573,421.26,HC111103,Uk Fuels Ltd,201712,Communities,Transport-Related Expenditure
INSERTED DETAIL,24/03/2017,II,3862575,449.93,HC101123,Boss,201712,Schools,Supplies & Services
INSERTED DETAIL,15/03/2017,II,3862577,500.00,HC116317,NOCN,201712,Education and Commissioning,Supplies & Services
INSERTED DETAIL,17/03/2017,II,3862578,489.98,HC112618,Sign Right (Fromes Hill) Ltd,201712,Environment and Place,Supplies & Services
INSERTED DETAIL,15/03/2017,II,3862579,"1,037.25",HC104438,Marches Counselling Service,201712,Public Health,Transfer Payments
INSERTED DETAIL,15/03/2017,II,3862582,655.00,HC119899,Team Bees Ltd,201712,Schools,Supplies & Services
INSERTED DETAIL,15/03/2017,II,3862590,"2,850.00",HC122244,Net-Defence Ltd,201712,Resources,Supplies & Services
INSERTED DETAIL,15/03/2017,II,3862596,640.77,HC101444,Calor Gas Ltd,201712,Schools,Premises-Related Expenditure
INSERTED DETAIL,15/03/2017,II,3862602,"1,363.20",HC101439,Callow & Haywood G.P.C.,201712,Environment and Place,Third Party Payments
INSERTED DETAIL,15/03/2017,II,3862613,"20,000.00",HC101598,Play & Leisure Ltd,201712,Commissioning Capital,Capital Income
INSERTED DETAIL,15/03/2017,II,3862616,472.50,HC122797,Immersive Experiences,201712,Schools,Supplies & Services
INSERTED DETAIL,15/03/2017,II,3862629,864.00,HC122598,Chroma Therapies Ltd,201712,Schools,Support Services
INSERTED DETAIL,15/03/2017,II,3862630,"100,000.00",HC113960,Barrs Court Academy,201712,Education and Commissioning,Support Services
INSERTED DETAIL,15/03/2017,II,3862631,"2,904.00",HC120107,Hereford Integrated Behaviour Outreach Service,201712,Central Childrens Directorate Costs,Third Party Payments
INSERTED DETAIL,15/03/2017,II,3862632,"32,382.86",HC120107,Hereford Integrated Behaviour Outreach Service,201712,Central Childrens Directorate Costs,Third Party Payments
INSERTED DETAIL,22/03/2017,II,3862634,420.00,HC106975,Hoople Ltd,201712,Schools,Support Services
INSERTED DETAIL,15/03/2017,II,3862637,894.00,HC107466,Worcestershire Health & Care NHS Trust,201712,Public Health,Third Party Payments
INSERTED DETAIL,17/03/2017,II,3862642,909.30,HC120703,Black Pepper (Ledbury) Ltd,201712,Schools,Supplies & Services
INSERTED DETAIL,15/03/2017,II,3862645,"1,139.60",HC109826,Shropshire Council,201712,Schools,Supplies & Services
INSERTED DETAIL,24/03/2017,II,3862655,456.00,HC108380,REDACTED,201712,Schools,Supplies & Services
INSERTED DETAIL,15/03/2017,II,3862656,572.75,HC102156,D & D Network Services Ltd,201712,Schools,Supplies & Services
INSERTED DETAIL,15/03/2017,II,3862659,556.00,HC110034,Superstars School Services Ltd,201712,Schools,Supplies & Services
INSERTED DETAIL,15/03/2017,II,3862660,905.00,HC109622,Sargeants Brothers Ltd,201712,Schools,Transport-Related Expenditure
INSERTED DETAIL,15/03/2017,II,3862668,"2,965.90",HC107574,Lugwardine Primary Academy,201712,Central Childrens Directorate Costs,Support Services
INSERTED DETAIL,15/03/2017,II,3862681,549.32,HC110431,Business Angel Ltd,201712,Education and Commissioning,Supplies & Services
INSERTED DETAIL,15/03/2017,II,3862685,"1,040.00",HC120749,Service Graphics Ltd,201712,Communities,Third Party Payments
INSERTED DETAIL,15/03/2017,II,3862692,"1,641.60",HC107574,Lugwardine Primary Academy,201712,Central Childrens Directorate Costs,Support Services
INSERTED DETAIL,15/03/2017,II,3862693,"1,430.76",HC118939,Riverside Primary School - HCC,201712,Central Childrens Directorate Costs,Support Services
INSERTED DETAIL,15/03/2017,II,3862695,"11,700.00",HC109826,Shropshire Council,201712,Public Health,Third Party Payments
INSERTED DETAIL,15/03/2017,II,3862701,749.26,HC118939,Riverside Primary School - HCC,201712,Central Childrens Directorate Costs,Support Services
INSERTED DETAIL,15/03/2017,II,3862703,470.00,HC103165,Alere  Forensics,201712,Communities,Supplies & Services
INSERTED DETAIL,15/03/2017,II,3862704,"1,864.67",HC118939,Riverside Primary School - HCC,201712,Central Childrens Directorate Costs,Support Services
INSERTED DETAIL,15/03/2017,II,3862718,486.00,HC105552,Luctonians Sports Club Ltd,201712,Schools,Supplies & Services
INSERTED DETAIL,15/03/2017,II,3862719,"1,149.20",HC100385,Alliance In Partnership,201712,Schools,Supplies & Services
INSERTED DETAIL,15/03/2017,II,3862730,"1,065.63",HC105926,Mavis Russell Cleaning Ltd,201712,Schools,Premises-Related Expenditure
INSERTED DETAIL,15/03/2017,II,3862736,909.00,HC121900,Roses Theatre Trust,201712,Schools,Supplies & Services
INSERTED DETAIL,15/03/2017,II,3862742,538.04,HC109997,Spa Gas Ltd,201712,Schools,Premises-Related Expenditure
INSERTED DETAIL,15/03/2017,II,3862748,988.74,HC100976,Bespoke Cleaning Services,201712,Schools,Premises-Related Expenditure
INSERTED DETAIL,15/03/2017,II,3862749,"346,431.61",HC100413,Alun Griffiths  Contractors  Ltd,201712,Commissioning Capital,Capital Expenditure
INSERTED DETAIL,29/03/2017,II,3862754,"1,798.50",HC105192,Ashfords LLP,201712,Communities,Supplies & Services
INSERTED DETAIL,15/03/2017,II,3862756,494.00,HC105760,Marches IT Services Ltd,201712,Schools,Supplies & Services
INSERTED DETAIL,15/03/2017,II,3862757,863.00,HC110429,Encore Enterprises,201712,Schools,Supplies & Services
INSERTED DETAIL,15/03/2017,II,3862761,"57,525.00",HC120271,Veale Wasbrough Visards,201712,Environment and Place,Supplies & Services
INSERTED DETAIL,15/03/2017,II,3862764,"3,000.00",HC110531,The British Library,201712,Communities,Supplies & Services
INSERTED DETAIL,15/03/2017,II,3862766,"2,000.00",HC120321,Rachel Lambert (Business A/C),201712,Communities,Third Party Payments
INSERTED DETAIL,22/03/2017,II,3862771,"29,706.66",HC111414,West Mercia  Womens Aid,201712,Commissioning Adults,Supplies & Services
INSERTED DETAIL,15/03/2017,II,3862772,"6,919.64",HC109769,Shaw Healthcare (Herefordshire) Ltd,201712,Physical Disabilities,Third Party Payments
INSERTED DETAIL,15/03/2017,II,3862773,"254,675.54",HC109769,Shaw Healthcare (Herefordshire) Ltd,201712,Physical Disabilities,Third Party Payments
INSERTED DETAIL,15/03/2017,II,3862775,"1,528.00",HC105506,Longtown Group Parish Council,201712,Environment and Place,Third Party Payments
INSERTED DETAIL,15/03/2017,II,3862776,"4,771.00",HC111272,Vowchurch & District Group Parish Council,201712,Environment and Place,Third Party Payments
INSERTED DETAIL,15/03/2017,II,3862780,"6,740.00",HC112502,Alcium Software Ltd,201712,Growth,Supplies & Services
INSERTED DETAIL,15/03/2017,II,3862781,670.00,HC121847,Nestor Associates Ltd,201712,Growth Capital,Capital Expenditure
INSERTED DETAIL,15/03/2017,II,3862784,612.00,HC100395,Almeley Parish Council,201712,Environment and Place,Third Party Payments
INSERTED DETAIL,15/03/2017,II,3862785,444.56,HC100395,Almeley Parish Council,201712,Environment and Place,Third Party Payments
INSERTED DETAIL,15/03/2017,II,3862786,"1,771.00",HC101142,Brampton Abbotts & Foy G.P.C.,201712,Environment and Place,Third Party Payments
INSERTED DETAIL,15/03/2017,II,3862787,945.00,HC105071,Kingstone & Thruxton G.P.C.,201712,Environment and Place,Third Party Payments
INSERTED DETAIL,22/03/2017,II,3862789,"3,100.80",HC102331,Days Fleet,201712,Adults Operations,Transport-Related Expenditure
INSERTED DETAIL,17/03/2017,II,3862791,810.00,HC122632,County Business Shows Ltd,201712,Communities,Supplies & Services
INSERTED DETAIL,24/03/2017,II,3862799,744.78,HC101168,Brian Hoskins Building Services,201712,Schools,Premises-Related Expenditure
INSERTED DETAIL,22/03/2017,II,3862805,"17,533.34",HC111420,West Mercia Homes Ltd,201712,Commissioning Adults,Supplies & Services
INSERTED DETAIL,15/03/2017,II,3862806,"5,408.10",HC106525,Alzheimer's Society,201712,Mental Health,Supplies & Services
INSERTED DETAIL,15/03/2017,II,3862808,"1,354.35",HC102737,Heritage Environmental Contractors Ltd,201712,Growth Capital,Capital Expenditure
INSERTED DETAIL,15/03/2017,II,3862824,700.00,HC122379,Don't Hide. Be seen.,201712,Schools Devolved Capital,Capital Expenditure
INSERTED DETAIL,15/03/2017,II,3862832,"1,196.05",HC112667,School Pupil Tracker Ltd,201712,Schools,Supplies & Services
INSERTED DETAIL,15/03/2017,II,3862842,523.00,HC105512,Lord Combustion Services Ltd,201712,Schools,Premises-Related Expenditure
INSERTED DETAIL,15/03/2017,II,3862846,"5,462.25",HC106960,Hopton Building Services Ltd,201712,Housing & Independent Living Capital,Capital Expenditure
INSERTED DETAIL,15/03/2017,II,3862847,"1,333.40",HC103286,Kingsland Millennium Green Trust,201712,Commissioning Capital,Capital Income
INSERTED DETAIL,15/03/2017,II,3862848,"2,169.78",HC100385,Alliance In Partnership,201712,Schools,Supplies & Services
INSERTED DETAIL,15/03/2017,II,3862849,"1,408.70",HC100385,Alliance In Partnership,201712,Schools,Supplies & Services
INSERTED DETAIL,15/03/2017,II,3862856,925.00,HC103165,Alere  Forensics,201712,Communities,Supplies & Services
INSERTED DETAIL,15/03/2017,II,3862863,525.40,HC108208,ESPO,201712,Schools,Supplies & Services
INSERTED DETAIL,15/03/2017,II,3862865,847.40,HC105926,Mavis Russell Cleaning Ltd,201712,Schools,Premises-Related Expenditure
INSERTED DETAIL,15/03/2017,II,3862867,"2,481.60",HC107522,Mrs M J Thomson (The Iron Rice Bowl),201712,Schools,Supplies & Services
INSERTED DETAIL,22/03/2017,II,3862874,"2,978.80",HC107522,Mrs M J Thomson (The Iron Rice Bowl),201712,Schools,Supplies & Services
INSERTED DETAIL,17/03/2017,II,3862877,"2,427.00",HC107137,Allwag Promotions Ltd,201712,Environment and Place,Supplies & Services
INSERTED DETAIL,15/03/2017,II,3862878,473.54,HC105512,Lord Combustion Services Ltd,201712,Schools,Premises-Related Expenditure
INSERTED DETAIL,22/03/2017,II,3862888,"8,576.00",HC105192,Ashfords LLP,201712,Communities,Supplies & Services
INSERTED DETAIL,17/03/2017,II,3862894,768.00,HC103171,Forest Of Dean Gymnastics Fitness Centre,201712,Schools,Premises-Related Expenditure
INSERTED DETAIL,15/03/2017,II,3862903,"3,514.60",HC108866,Education Property Partnership Ltd,201712,Schools Devolved Capital,Capital Expenditure
INSERTED DETAIL,15/03/2017,II,3862908,450.00,HC110480,Testbase/ Exampro,201712,Schools,Supplies & Services
INSERTED DETAIL,15/03/2017,II,3862917,897.21,HC105926,Mavis Russell Cleaning Ltd,201712,Schools,Premises-Related Expenditure
INSERTED DETAIL,15/03/2017,II,3862924,556.00,HC110034,Superstars School Services Ltd,201712,Schools,Supplies & Services
INSERTED DETAIL,15/03/2017,II,3862931,"3,033.00",HC100385,Alliance In Partnership,201712,Schools,Supplies & Services
INSERTED DETAIL,24/03/2017,II,3862933,916.25,HC100385,Alliance In Partnership,201712,Schools,Supplies & Services
INSERTED DETAIL,15/03/2017,II,3862934,902.29,HC102751,Edventure,201712,Schools,Supplies & Services
INSERTED DETAIL,15/03/2017,II,3862941,645.00,HC105552,Luctonians Sports Club Ltd,201712,Schools,Supplies & Services
INSERTED DETAIL,15/03/2017,II,3862946,"1,432.46",HC106071,Midshire Business Systems Ltd,201712,Schools,Supplies & Services
INSERTED DETAIL,15/03/2017,II,3862956,639.00,HC100180,REDACTED,201712,Adults Operations,Supplies & Services
INSERTED DETAIL,15/03/2017,II,3862957,550.00,HC110767,REDACTED,201712,Adults Operations,Supplies & Services
INSERTED DETAIL,15/03/2017,II,3862958,"1,400.00",HC110767,REDACTED,201712,Adults Operations,Supplies & Services
INSERTED DETAIL,15/03/2017,II,3862970,540.00,HC117849,REDACTED,201712,Communities,Supplies & Services
INSERTED DETAIL,15/03/2017,II,3862974,"2,028.00",HC108604,PGL Travel Ltd,201712,Schools,Supplies & Services
INSERTED DETAIL,15/03/2017,II,3862975,910.00,HC108604,PGL Travel Ltd,201712,Schools,Supplies & Services
INSERTED DETAIL,15/03/2017,II,3862984,"1,125.00",HC120199,REDACTED,201712,Communities,Supplies & Services
INSERTED DETAIL,22/03/2017,II,3862990,"3,911.40",HC117075,Barton Hyett Associates Ltd,201712,Environment and Place,Third Party Payments
INSERTED DETAIL,15/03/2017,II,3863003,"1,995.00",HC101472,Capita Business Services Ltd,201712,Schools,Supplies & Services
INSERTED DETAIL,15/03/2017,II,3863008,554.00,HC122739,Elite Catering,201712,Schools,Supplies & Services
INSERTED DETAIL,15/03/2017,II,3863010,900.00,HC117049,Practice Supplies Ltd,201712,Schools,Supplies & Services
INSERTED DETAIL,15/03/2017,II,3863014,519.60,HC103660,Halo Leisure Services Ltd,201712,Schools,Premises-Related Expenditure
INSERTED DETAIL,15/03/2017,II,3863024,"1,719.60",HC118604,Cobalt Telephone Technologies Ltd,201712,Environment and Place,Premises-Related Expenditure
INSERTED DETAIL,15/03/2017,II,3863031,956.75,HC105926,Mavis Russell Cleaning Ltd,201712,Schools,Premises-Related Expenditure
INSERTED DETAIL,15/03/2017,II,3863036,"43,352.00",HC100213,REDACTED,201712,Safeguarding and Family Support,Supplies & Services
INSERTED DETAIL,15/03/2017,II,3863037,"3,029.92",HC101472,Capita Business Services Ltd,201712,Schools,Supplies & Services
INSERTED DETAIL,15/03/2017,II,3863038,968.98,HC104018,Highground Maintenance Limited,201712,Schools,Premises-Related Expenditure
INSERTED DETAIL,15/03/2017,II,3863040,"1,856.00",HC101472,Capita Business Services Ltd,201712,Schools,Supplies & Services
INSERTED DETAIL,15/03/2017,II,3863053,"2,750.00",HC111599,Life Cycle UK,201712,Environment and Place,Supplies & Services
INSERTED DETAIL,24/03/2017,II,3863054,450.00,HC105191,REDACTED,201712,Environment and Place,Supplies & Services
INSERTED DETAIL,15/03/2017,II,3863055,435.00,HC101060,Blue Line Taxis,201712,Environment and Place,Transport-Related Expenditure
INSERTED DETAIL,17/03/2017,II,3863057,"3,015.00",HC102416,Neopost Ltd,201712,Resources,Supplies & Services
INSERTED DETAIL,15/03/2017,II,3863058,"1,040.00",HC101060,Blue Line Taxis,201712,Environment and Place,Transport-Related Expenditure
INSERTED DETAIL,22/03/2017,II,3863059,780.00,HC101060,Blue Line Taxis,201712,Environment and Place,Transport-Related Expenditure
INSERTED DETAIL,15/03/2017,II,3863060,960.00,HC101060,Blue Line Taxis,201712,Environment and Place,Transport-Related Expenditure
INSERTED DETAIL,15/03/2017,II,3863062,585.65,HC105563,Lugg Valley Primrose Travel Ltd,201712,Environment and Place,Third Party Payments
INSERTED DETAIL,22/03/2017,II,3863063,"7,976.53",HC100728,Astons Coaches,201712,Environment and Place,Third Party Payments
INSERTED DETAIL,15/03/2017,II,3863064,681.55,HC111685,Yeomans Travel Ltd,201712,Environment and Place,Third Party Payments
INSERTED DETAIL,15/03/2017,II,3863066,"5,907.50",HC111685,Yeomans Travel Ltd,201712,Environment and Place,Third Party Payments
INSERTED DETAIL,17/03/2017,II,3863067,"5,134.90",HC111685,Yeomans Travel Ltd,201712,Environment and Place,Third Party Payments
INSERTED DETAIL,15/03/2017,II,3863071,"2,116.79",HC106061,Bourneheights Ltd,201712,Resources,Premises-Related Expenditure
INSERTED DETAIL,15/03/2017,II,3863072,832.55,HC111204,Veolia ES Onyx Ltd,201712,Schools,Third Party Payments
INSERTED DETAIL,15/03/2017,II,3863073,866.25,HC111924,Bromyard Community Transport Ltd,201712,Environment and Place,Transport-Related Expenditure
INSERTED DETAIL,15/03/2017,II,3863074,698.15,HC111204,Veolia ES Onyx Ltd,201712,Schools,Third Party Payments
INSERTED DETAIL,15/03/2017,II,3863075,692.69,HC111204,Veolia ES Onyx Ltd,201712,Schools,Third Party Payments
INSERTED DETAIL,15/03/2017,II,3863076,"1,342.50",HC111924,Bromyard Community Transport Ltd,201712,Environment and Place,Transport-Related Expenditure
INSERTED DETAIL,15/03/2017,II,3863077,533.42,HC101861,Clearview Cleaning Services,201712,Schools,Premises-Related Expenditure
INSERTED DETAIL,15/03/2017,II,3863078,600.00,HC120107,Hereford Integrated Behaviour Outreach Service,201712,Schools,Employees
INSERTED DETAIL,15/03/2017,II,3863081,834.00,HC110034,Superstars School Services Ltd,201712,Schools,Supplies & Services
INSERTED DETAIL,15/03/2017,II,3863084,"1,406.87",HC109717,Sentinel Security Systems,201712,Schools,Premises-Related Expenditure
INSERTED DETAIL,17/03/2017,II,3863095,"5,985.00",HC116150,Roy Browns Coaches,201712,Environment and Place,Transport-Related Expenditure
INSERTED DETAIL,15/03/2017,II,3863096,"2,850.00",HC101060,Blue Line Taxis,201712,Environment and Place,Transport-Related Expenditure
INSERTED DETAIL,15/03/2017,II,3863097,"1,720.00",HC101060,Blue Line Taxis,201712,Environment and Place,Transport-Related Expenditure
INSERTED DETAIL,15/03/2017,II,3863098,"1,400.00",HC101060,Blue Line Taxis,201712,Environment and Place,Transport-Related Expenditure
INSERTED DETAIL,15/03/2017,II,3863099,"1,080.00",HC101060,Blue Line Taxis,201712,Environment and Place,Transport-Related Expenditure
INSERTED DETAIL,15/03/2017,II,3863100,"2,400.00",HC101060,Blue Line Taxis,201712,Environment and Place,Transport-Related Expenditure
INSERTED DETAIL,15/03/2017,II,3863115,780.49,HC101123,Boss,201712,Schools,Supplies & Services
INSERTED DETAIL,15/03/2017,II,3863116,"1,305.00",HC101060,Blue Line Taxis,201712,Environment and Place,Transport-Related Expenditure
INSERTED DETAIL,15/03/2017,II,3863118,"1,323.00",HC101060,Blue Line Taxis,201712,Environment and Place,Transport-Related Expenditure
INSERTED DETAIL,15/03/2017,II,3863119,"1,350.00",HC101060,Blue Line Taxis,201712,Environment and Place,Transport-Related Expenditure
INSERTED DETAIL,15/03/2017,II,3863124,"1,053.25",HC122318,Greener Terrace Gardener LLP (Terrace Gardener),201712,Communities,Supplies & Services
INSERTED DETAIL,15/03/2017,II,3863129,"1,800.00",HC101060,Blue Line Taxis,201712,Environment and Place,Transport-Related Expenditure
INSERTED DETAIL,22/03/2017,II,3863131,824.24,HC121757,3C Payment (UK) Ltd,201712,Environment and Place,Premises-Related Expenditure
INSERTED DETAIL,15/03/2017,II,3863147,509.70,HC102056,CPC,201712,Education and Commissioning,Supplies & Services
INSERTED DETAIL,22/03/2017,II,3863151,"2,490.00",HC122772,Historic Building Repairs Ltd,201712,Environment and Place,Supplies & Services
INSERTED DETAIL,15/03/2017,II,3863154,420.00,HC111440,Westcom Business Communications Ltd,201712,Resources Capital,Capital Expenditure
INSERTED DETAIL,15/03/2017,II,3863161,610.00,HC101472,Capita Business Services Ltd,201712,Schools,Supplies & Services
INSERTED DETAIL,15/03/2017,II,3863172,"5,091.66",HC117310,Level Access Bathrooms,201712,Housing & Independent Living Capital,Capital Expenditure
INSERTED DETAIL,15/03/2017,II,3863173,"5,008.50",HC103879,Hereford Mobility Centre,201712,Housing & Independent Living Capital,Capital Expenditure
INSERTED DETAIL,17/03/2017,II,3863174,"4,660.00",HC114860,Eclipse Access Solutions Ltd,201712,Housing & Independent Living Capital,Capital Expenditure
INSERTED DETAIL,15/03/2017,II,3863175,"3,223.40",HC104726,J & W Kostorz Ltd,201712,Housing & Independent Living Capital,Capital Expenditure
INSERTED DETAIL,15/03/2017,II,3863176,"3,317.60",HC103869,Wye Valley NHS Trust,201712,Central Childrens Directorate Costs,Support Services
INSERTED DETAIL,15/03/2017,II,3863179,"3,990.00",HC105282,Herecad Enterprises Ltd,201712,Schools,Supplies & Services
INSERTED DETAIL,15/03/2017,II,3863184,753.73,HC104882,K T Gooch,201712,Schools,Supplies & Services
INSERTED DETAIL,15/03/2017,II,3863190,601.20,HC105301,Leintwardine Primary School Petty Cash,201712,Schools,Supplies & Services
INSERTED DETAIL,15/03/2017,II,3863191,712.43,HC104882,K T Gooch,201712,Schools,Supplies & Services
INSERTED DETAIL,15/03/2017,II,3863193,922.50,HC105926,Mavis Russell Cleaning Ltd,201712,Schools,Premises-Related Expenditure
INSERTED DETAIL,15/03/2017,II,3863194,735.00,HC109765,REDACTED,201712,Schools,Supplies & Services
INSERTED DETAIL,15/03/2017,II,3863196,"2,349.00",HC102778,Zurich Municipal,201712,Schools,Supplies & Services
INSERTED DETAIL,15/03/2017,II,3863197,"2,613.40",HC108283,Orleton School Meals,201712,Schools,Supplies & Services
INSERTED DETAIL,15/03/2017,II,3863198,"2,970.00",HC110034,Superstars School Services Ltd,201712,Schools,Supplies & Services
INSERTED DETAIL,15/03/2017,II,3863222,"1,087.50",HC105926,Mavis Russell Cleaning Ltd,201712,Schools,Premises-Related Expenditure
INSERTED DETAIL,15/03/2017,II,3863224,478.96,HC105926,Mavis Russell Cleaning Ltd,201712,Schools,Premises-Related Expenditure
INSERTED DETAIL,17/03/2017,II,3863225,773.06,HC118319,Johnston Oils Ltd,201712,Schools,Premises-Related Expenditure
INSERTED DETAIL,15/03/2017,II,3863227,807.90,HC105512,Lord Combustion Services Ltd,201712,Schools,Premises-Related Expenditure
INSERTED DETAIL,15/03/2017,II,3863232,660.00,HC102825,Elklan,201712,Education and Commissioning,Supplies & Services
INSERTED DETAIL,15/03/2017,II,3863234,860.00,HC100385,Alliance In Partnership,201712,Schools,Supplies & Services
INSERTED DETAIL,15/03/2017,II,3863237,"2,116.26",HC109997,Spa Gas Ltd,201712,Schools,Premises-Related Expenditure
INSERTED DETAIL,15/03/2017,II,3863244,"1,337.60",HC109826,Shropshire Council,201712,Schools,Supplies & Services
INSERTED DETAIL,15/03/2017,II,3863249,"6,750.00",HC111431,West Midlands Employers,201712,Resources,Supplies & Services
INSERTED DETAIL,15/03/2017,II,3863263,648.00,HC122782,Sublime Science Ltd,201712,Schools,Supplies & Services
INSERTED DETAIL,15/03/2017,II,3863270,"1,650.00",HC101060,Blue Line Taxis,201712,Environment and Place,Transport-Related Expenditure
INSERTED DETAIL,15/03/2017,II,3863271,"1,500.00",HC101060,Blue Line Taxis,201712,Environment and Place,Transport-Related Expenditure
INSERTED DETAIL,15/03/2017,II,3863272,"2,560.00",HC101060,Blue Line Taxis,201712,Environment and Place,Transport-Related Expenditure
INSERTED DETAIL,15/03/2017,II,3863286,"1,703.91",HC110998,REDACTED,201712,Adults Operations,Supplies & Services
INSERTED DETAIL,24/03/2017,II,3863291,"2,540.00",HC111136,University Of Birmingham,201712,Safeguarding and Family Support,Supplies & Services
INSERTED DETAIL,22/03/2017,II,3863295,"6,280.00",HC108604,PGL Travel Ltd,201712,Schools,Supplies & Services
INSERTED DETAIL,15/03/2017,II,3863297,465.84,HC111665,XMA Ltd,201712,Adults Operations,Supplies & Services
INSERTED DETAIL,15/03/2017,II,3863304,"6,414.21",HC116476,REDACTED,201712,Safeguarding and Family Support,Supplies & Services
INSERTED DETAIL,15/03/2017,II,3863306,528.59,HC101030,Automobile Association Developments Ltd,201712,Schools,Transport-Related Expenditure
INSERTED DETAIL,15/03/2017,II,3863309,"1,700.00",HC116359,Chess in Schools and Communities,201712,Schools,Supplies & Services
INSERTED DETAIL,15/03/2017,II,3863310,"2,209.00",HC109826,Shropshire Council,201712,Schools,Supplies & Services
INSERTED DETAIL,24/03/2017,II,3863311,570.77,HC104882,K T Gooch,201712,Schools,Supplies & Services
INSERTED DETAIL,15/03/2017,II,3863313,500.00,HC114802,Malvern Hills Outdoor Education Co Ltd,201712,Schools,Supplies & Services
INSERTED DETAIL,15/03/2017,II,3863319,494.00,HC103578,Greenfields Garden Services Ltd,201712,Schools,Premises-Related Expenditure
INSERTED DETAIL,15/03/2017,II,3863326,555.00,HC102749,Edutech Solutions Ltd,201712,Schools,Supplies & Services
INSERTED DETAIL,24/03/2017,II,3863332,"13,715.63",HC122526,MISL Ltd,201712,Communities,Supplies & Services
INSERTED DETAIL,15/03/2017,II,3863341,"4,336.00",HC102639,E C Joseph & Sons Ltd,201712,Housing & Independent Living Capital,Capital Expenditure
INSERTED DETAIL,15/03/2017,II,3863342,"3,285.42",HC112977,Brightstripe - Cultural Health CIC,201712,Growth,Transfer Payments
INSERTED DETAIL,28/02/2017,II,3863344,"1,723.29",HC117467,Brandon Trust,201712,Learning Disabilities,Third Party Payments
INSERTED DETAIL,15/03/2017,II,3863345,"29,781.62",HC117467,Brandon Trust,201712,Physical Disabilities,Third Party Payments
INSERTED DETAIL,15/03/2017,II,3863346,"5,464.64",HC117467,Brandon Trust,201712,Learning Disabilities,Third Party Payments
INSERTED DETAIL,15/03/2017,II,3863349,"17,622.06",HC101242,British Telecommunications Plc (OPENREACH CIS),201712,Growth Capital,Capital Expenditure
INSERTED DETAIL,15/03/2017,II,3863350,"7,604.12",HC117467,Brandon Trust,201712,Learning Disabilities,Third Party Payments
INSERTED DETAIL,15/03/2017,II,3863352,"1,863.60",HC105164,Lady Hawkins School Caterers,201712,Schools,Supplies & Services
INSERTED DETAIL,24/03/2017,II,3863361,"1,089.00",HC100385,Alliance In Partnership,201712,Schools,Supplies & Services
INSERTED DETAIL,15/03/2017,II,3863364,445.44,HC104882,K T Gooch,201712,Schools,Supplies & Services
INSERTED DETAIL,15/03/2017,II,3863365,"9,600.00",HC113960,Barrs Court Academy,201712,Education and Commissioning,Support Services
INSERTED DETAIL,31/03/2017,II,3863366,"12,750.00",HC113673,Callcredit,201712,Resources,Supplies & Services
INSERTED DETAIL,15/03/2017,II,3863367,"1,908.80",HC100385,Alliance In Partnership,201712,Schools,Supplies & Services
INSERTED DETAIL,15/03/2017,II,3863370,"1,000.42",HC105926,Mavis Russell Cleaning Ltd,201712,Schools,Premises-Related Expenditure
INSERTED DETAIL,24/03/2017,II,3863375,"1,080.00",HC120204,REDACTED,201712,Schools,Supplies & Services
INSERTED DETAIL,24/03/2017,II,3863377,570.00,HC116254,Learning Support Partnership Ltd,201712,Schools,Supplies & Services
INSERTED DETAIL,24/03/2017,II,3863380,785.00,HC109765,REDACTED,201712,Schools,Supplies & Services
INSERTED DETAIL,15/03/2017,II,3863381,"2,031.76",HC118714,Restore plc,201712,Communities,Supplies & Services
INSERTED DETAIL,17/03/2017,II,3863382,"1,295.00",HC103869,Wye Valley NHS Trust,201712,Resources,Third Party Payments
INSERTED DETAIL,15/03/2017,II,3863390,"8,400.00",HC116854,Fairfield High School (Academy),201712,Education and Commissioning,Support Services
INSERTED DETAIL,15/03/2017,II,3863391,900.00,HC121296,RSA Academy Arrow Vale,201712,Education and Commissioning,Supplies & Services
INSERTED DETAIL,22/03/2017,II,3863393,"49,368.75",HC111421,West Mercia Police & Crime Commissioner,201712,Central Childrens Directorate Costs,Third Party Payments
INSERTED DETAIL,15/03/2017,II,3863395,"2,955.00",HC118940,Earl Mortimer College & Sixth Form HCC,201712,Education and Commissioning,Support Services
INSERTED DETAIL,15/03/2017,II,3863397,"4,000.00",HC116854,Fairfield High School (Academy),201712,Education and Commissioning,Support Services
INSERTED DETAIL,15/03/2017,II,3863399,"1,880.00",HC111603,Worcestershire County Council,201712,Environment and Place,Supplies & Services
INSERTED DETAIL,15/03/2017,II,3863400,"40,750.00",HC111602,Worcestershire County Council ,201712,Corporate,Employees
INSERTED DETAIL,15/03/2017,II,3863405,548.65,HC100656,Allstar Business Solutions Ltd (Arval),201712,Environment and Place,Transport-Related Expenditure
INSERTED DETAIL,15/03/2017,II,3863408,"4,020.73",HC121842,CLOSED - Hendeca Ltd,201712,Growth,Supplies & Services
INSERTED DETAIL,17/03/2017,II,3863410,"1,845.60",HC107980,Neopost Limited,201712,Resources,Supplies & Services
INSERTED DETAIL,15/03/2017,II,3863411,"1,380.00",HC110658,The Houghton Project,201712,Education and Commissioning,Third Party Payments
INSERTED DETAIL,17/03/2017,II,3863413,431.32,HC109320,Peterchurch Parochial Church Council,201712,Environment and Place,Premises-Related Expenditure
INSERTED DETAIL,17/03/2017,II,3863417,625.26,HC111380,Welsh Water,201712,Environment and Place,Premises-Related Expenditure
INSERTED DETAIL,15/03/2017,II,3863420,590.00,HC100385,Alliance In Partnership,201712,Schools,Supplies & Services
INSERTED DETAIL,22/03/2017,II,3863421,"4,768.00",HC109484,S M Stanley Builders Ltd,201712,Schools Devolved Capital,Capital Expenditure
INSERTED DETAIL,15/03/2017,II,3863423,960.00,HC112240,You Time Counselling Trust,201712,Schools,Supplies & Services
INSERTED DETAIL,24/03/2017,II,3863425,"4,186.00",HC120703,Black Pepper (Ledbury) Ltd,201712,Schools,Supplies & Services
INSERTED DETAIL,24/03/2017,II,3863426,"1,152.30",HC120703,Black Pepper (Ledbury) Ltd,201712,Schools,Supplies & Services
INSERTED DETAIL,17/03/2017,II,3863429,810.00,HC119256,REDACTED,201712,Schools,Supplies & Services
INSERTED DETAIL,17/03/2017,II,3863431,525.00,HC102232,Dancefest,201712,Schools,Supplies & Services
INSERTED DETAIL,17/03/2017,II,3863437,"4,532.44",HC111380,Welsh Water,201712,Environment and Place,Premises-Related Expenditure
INSERTED DETAIL,24/03/2017,II,3863444,"1,293.17",HC111426,West Mercia Supplies (The Consortium),201712,Schools,Supplies & Services
INSERTED DETAIL,24/03/2017,II,3863447,"5,637.08",HC122185,Spring Housing Association Ltd,201712,Commissioning Adults,Premises-Related Expenditure
INSERTED DETAIL,17/03/2017,II,3863448,530.00,HC118188,REDACTED,201712,Safeguarding and Family Support,Supplies & Services
INSERTED DETAIL,17/03/2017,II,3863450,"3,250.00",HC109320,Peterchurch Parochial Church Council,201712,Growth,Transfer Payments
INSERTED DETAIL,17/03/2017,II,3863455,"5,028.70",HC106749,D M Gray Plumbing,201712,Housing & Independent Living Capital,Capital Expenditure
INSERTED DETAIL,17/03/2017,II,3863472,"1,295.70",HC122666,Hereford NPS,201712,Growth,Transfer Payments
INSERTED DETAIL,17/03/2017,II,3863476,"2,950.00",HC122678,Shelters 4 Schools Ltd,201712,Schools,Premises-Related Expenditure
INSERTED DETAIL,17/03/2017,II,3863478,900.00,HC108254,Optimum Reports Ltd,201712,Schools,Supplies & Services
INSERTED DETAIL,22/03/2017,II,3863480,429.28,HC101384,C J Bayliss (Hereford) Ltd,201712,Schools,Premises-Related Expenditure
INSERTED DETAIL,17/03/2017,II,3863481,480.00,HC111685,Yeomans Travel Ltd,201712,Schools,Transport-Related Expenditure
INSERTED DETAIL,17/03/2017,II,3863482,726.00,HC102728,Education City Ltd,201712,Schools,Supplies & Services
INSERTED DETAIL,22/03/2017,II,3863485,666.98,HC105512,Lord Combustion Services Ltd,201712,Schools,Premises-Related Expenditure
INSERTED DETAIL,22/03/2017,II,3863488,"1,384.23",HC105512,Lord Combustion Services Ltd,201712,Schools,Premises-Related Expenditure
INSERTED DETAIL,17/03/2017,II,3863491,"3,816.00",HC116854,Fairfield High School (Academy),201712,Education and Commissioning,Supplies & Services
INSERTED DETAIL,17/03/2017,II,3863497,438.19,HC109792,REDACTED,201712,Adults Operations,Transport-Related Expenditure
INSERTED DETAIL,17/03/2017,II,3863498,700.00,HC111757,Sharpe Pritchard LLP,201712,Communities,Supplies & Services
INSERTED DETAIL,24/03/2017,II,3863500,"2,275.00",HC111701,Whitecross Hereford Academy,201712,Schools,Supplies & Services
INSERTED DETAIL,17/03/2017,II,3863510,965.00,HC100373,Architype Ltd,201712,Environment and Place,Transfer Payments
INSERTED DETAIL,29/03/2017,II,3863511,"4,037.79",HC120340,Adept Telecom PLC,201712,Resources,Supplies & Services
INSERTED DETAIL,29/03/2017,II,3863512,"1,983.83",HC120340,Adept Telecom PLC,201712,Resources,Supplies & Services
INSERTED DETAIL,29/03/2017,II,3863514,"6,999.12",HC108260,Orange plc (Airtime),201712,Resources,Supplies & Services
INSERTED DETAIL,24/03/2017,II,3863520,"1,035.00",HC100385,Alliance In Partnership,201712,Schools,Supplies & Services
INSERTED DETAIL,17/03/2017,II,3863526,"1,380.00",HC109765,REDACTED,201712,Schools,Supplies & Services
INSERTED DETAIL,17/03/2017,II,3863528,"5,867.60",HC100385,Alliance In Partnership,201712,Schools,Supplies & Services
INSERTED DETAIL,22/03/2017,II,3863529,523.51,HC101213,Bristow & Sutor,201712,Resources,Supplies & Services
INSERTED DETAIL,17/03/2017,II,3863530,"1,221.00",HC100385,Alliance In Partnership,201712,Schools,Supplies & Services
INSERTED DETAIL,17/03/2017,II,3863540,509.00,HC122509,Bridges Business Spaces LLP01 t/a Flexspace,201712,Growth,Premises-Related Expenditure
INSERTED DETAIL,17/03/2017,II,3863541,"1,190.25",HC122509,Bridges Business Spaces LLP01 t/a Flexspace,201712,Growth,Premises-Related Expenditure
INSERTED DETAIL,17/03/2017,II,3863542,"1,045.81",HC110975,Tradebe  Gwent Ltd,201712,Environment and Place,Supplies & Services
INSERTED DETAIL,17/03/2017,II,3863543,"30,837.00",HC122814,Cabinco Structures Ltd,201712,Schools Devolved Capital,Capital Expenditure
INSERTED DETAIL,17/03/2017,II,3863544,"2,500.00",HC112522,Derbyshire County Council,201712,Environment and Place,Supplies & Services
INSERTED DETAIL,17/03/2017,II,3863573,550.00,HC102283,Pupil Tracking Ltd,201712,Schools,Supplies & Services
INSERTED DETAIL,17/03/2017,II,3863576,"1,595.00",HC101975,Complete Security & Fire Protection Ltd,201712,Schools,Supplies & Services
INSERTED DETAIL,17/03/2017,II,3863577,"1,441.00",HC101975,Complete Security & Fire Protection Ltd,201712,Schools,Supplies & Services
INSERTED DETAIL,17/03/2017,II,3863579,"11,723.29",HC117467,Brandon Trust,201712,Learning Disabilities,Third Party Payments
INSERTED DETAIL,17/03/2017,II,3863590,503.75,HC107979,Neopost Finance Ltd,201712,Communities,Supplies & Services
INSERTED DETAIL,17/03/2017,II,3863591,490.00,HC116909,Butterflies Child Counselling & Play Therapy,201712,Schools,Supplies & Services
INSERTED DETAIL,17/03/2017,II,3863621,623.85,HC105202,Laura Gale Dance,201712,Schools,Supplies & Services
INSERTED DETAIL,22/03/2017,II,3863622,950.00,HC120941,Hulse Yazdi Professional Services,201712,Communities,Supplies & Services
INSERTED DETAIL,17/03/2017,II,3863624,"92,587.00",HC115217,NHS Herefordshire CCG,201712,Physical Disabilities,Third Party Payments
INSERTED DETAIL,17/03/2017,II,3863625,"92,587.00",HC115217,NHS Herefordshire CCG,201712,Physical Disabilities,Third Party Payments
INSERTED DETAIL,22/03/2017,II,3863630,"2,000.78",HC105512,Lord Combustion Services Ltd,201712,Schools,Premises-Related Expenditure
INSERTED DETAIL,22/03/2017,II,3863636,750.75,HC108194,Octaga Security Services Ltd,201712,Environment and Place,Supplies & Services
INSERTED DETAIL,22/03/2017,II,3863643,"1,287.09",HC101178,Bridges Electrical (Hereford) Ltd,201712,Schools Devolved Capital,Capital Expenditure
INSERTED DETAIL,17/03/2017,II,3863654,500.00,HC104477,J.A.K Water Systems Ltd,201712,Schools Devolved Capital,Capital Expenditure
INSERTED DETAIL,24/03/2017,II,3863657,500.00,HC116254,Learning Support Partnership Ltd,201712,Schools,Supplies & Services
INSERTED DETAIL,17/03/2017,II,3863664,566.50,HC103660,Halo Leisure Services Ltd,201712,Schools,Premises-Related Expenditure
INSERTED DETAIL,17/03/2017,II,3863671,855.60,HC100975,Besecure Protection Systems,201712,Schools,Supplies & Services
INSERTED DETAIL,17/03/2017,II,3863680,500.00,HC108127,Northamptonshire County Council,201712,Schools,Supplies & Services
INSERTED DETAIL,24/03/2017,II,3863683,840.00,HC109765,REDACTED,201712,Schools,Supplies & Services
INSERTED DETAIL,17/03/2017,II,3863685,"11,234.20",HC122669,Willard Conservation Ltd,201712,Communities,Supplies & Services
INSERTED DETAIL,17/03/2017,II,3863694,"9,289.00",HC108191,OCR,201712,Schools,Supplies & Services
INSERTED DETAIL,24/03/2017,II,3863695,656.25,HC106003,Metric Group Ltd,201712,Environment and Place,Supplies & Services
INSERTED DETAIL,17/03/2017,II,3863698,"2,500.00",HC120764,Rural Concierge,201712,Growth,Transfer Payments
INSERTED DETAIL,17/03/2017,II,3863700,"1,400.00",HC107607,REDACTED,201712,Schools,Supplies & Services
INSERTED DETAIL,22/03/2017,II,3863714,"35,000.00",HC103959,Herefordshire Housing Ltd,201712,Commissioning Adults,Third Party Payments
INSERTED DETAIL,17/03/2017,II,3863715,558.93,HC111380,Welsh Water,201712,Schools,Premises-Related Expenditure
INSERTED DETAIL,17/03/2017,II,3863719,727.33,HC109717,Sentinel Security Systems,201712,Schools,Premises-Related Expenditure
INSERTED DETAIL,17/03/2017,II,3863723,467.51,HC104882,K T Gooch,201712,Schools,Supplies & Services
INSERTED DETAIL,24/03/2017,II,3863740,725.00,HC120941,Hulse Yazdi Professional Services,201712,Communities,Supplies & Services
INSERTED DETAIL,29/03/2017,II,3863742,"6,363.60",HC120941,Hulse Yazdi Professional Services,201712,Communities,Supplies & Services
INSERTED DETAIL,17/03/2017,II,3863743,"1,016.40",HC110250,RJ & RB Mailes,201712,Schools,Supplies & Services
INSERTED DETAIL,17/03/2017,II,3863745,640.00,HC114043,REDACTED,201712,Schools,Supplies & Services
INSERTED DETAIL,17/03/2017,II,3863755,447.50,HC112412,Forward Products,201712,Schools,Supplies & Services
INSERTED DETAIL,17/03/2017,II,3863756,643.86,HC110583,The Danwood Group Limited,201712,Schools,Supplies & Services
INSERTED DETAIL,17/03/2017,II,3863763,"6,635.00",HC122523,Laser Surveys Limited,201712,Communities,Premises-Related Expenditure
INSERTED DETAIL,17/03/2017,II,3863767,511.38,HC104018,Highground Maintenance Limited,201712,Schools,Premises-Related Expenditure
INSERTED DETAIL,22/03/2017,II,3863772,"2,697.52",HC102453,District Surveyors Association Ltd (Labc),201712,Environment and Place,Supplies & Services
INSERTED DETAIL,17/03/2017,II,3863773,"2,555.00",HC103550,Exegesis SDM Ltd,201712,Environment and Place,Supplies & Services
INSERTED DETAIL,17/03/2017,II,3863774,468.00,HC101060,Blue Line Taxis,201712,Environment and Place,Transport-Related Expenditure
INSERTED DETAIL,17/03/2017,II,3863788,"2,923.40",HC111426,West Mercia Supplies (The Consortium),201712,Schools,Supplies & Services
INSERTED DETAIL,17/03/2017,II,3863795,"1,645.00",HC101447,Cambridge Education Associates Limited,201712,Schools,Employees
INSERTED DETAIL,17/03/2017,II,3863796,644.00,HC121813,Teales Domestic & Ironing Services,201712,Schools,Premises-Related Expenditure
INSERTED DETAIL,17/03/2017,II,3863798,"1,496.00",HC122793,The Fabulous Cob Oven Company,201712,Schools,Supplies & Services
INSERTED DETAIL,17/03/2017,II,3863800,"1,000.00",HC102416,Neopost Ltd,201712,Resources,Supplies & Services
INSERTED DETAIL,17/03/2017,II,3863806,787.20,HC108208,ESPO,201712,Schools,Supplies & Services
INSERTED DETAIL,17/03/2017,II,3863807,548.76,HC101444,Calor Gas Ltd,201712,Schools,Premises-Related Expenditure
INSERTED DETAIL,17/03/2017,II,3863819,"1,000.00",HC108361,P W Jones (Hereford) Ltd,201712,Schools,Transport-Related Expenditure
INSERTED DETAIL,17/03/2017,II,3863821,"14,343.58",HC108143,Nottingham Rehab Ltd,201712,Transformation and safeguarding,Supplies & Services
INSERTED DETAIL,24/03/2017,II,3863825,503.51,HC108443,West Mercia Energy,201712,Schools,Premises-Related Expenditure
INSERTED DETAIL,22/03/2017,II,3863829,"4,412.00",HC109458,S C Joseph Ltd,201712,Schools,Premises-Related Expenditure
INSERTED DETAIL,17/03/2017,II,3863830,"1,314.45",HC111426,West Mercia Supplies (The Consortium),201712,Schools,Supplies & Services
INSERTED DETAIL,17/03/2017,II,3863832,666.33,HC121665,Absolute Organisation Limited,201712,Director and Management,Supplies & Services
INSERTED DETAIL,17/03/2017,II,3863834,765.70,HC105563,Lugg Valley Primrose Travel Ltd,201712,Environment and Place,Third Party Payments
INSERTED DETAIL,17/03/2017,II,3863836,500.00,HC102396,Designumbrella,201712,Environment and Place,Supplies & Services
INSERTED DETAIL,17/03/2017,II,3863843,"5,000.00",HC122135,BAET T/A Bodenham St Michael's CE Primary School,201712,Schools,School Balances
INSERTED DETAIL,17/03/2017,II,3863851,840.00,HC104761,Herefordshire Marches Federation-Lord Scudamore,201712,Schools,Supplies & Services
INSERTED DETAIL,31/03/2017,II,3863852,"12,000.00",HC109574,Sapphire Technologies Limited,201712,Resources,Supplies & Services
INSERTED DETAIL,24/03/2017,II,3863858,"1,252.58",HC120703,Black Pepper (Ledbury) Ltd,201712,Schools,Supplies & Services
INSERTED DETAIL,17/03/2017,II,3863860,"1,360.00",HC110760,The Red Ridge Centre,201712,Schools,Supplies & Services
INSERTED DETAIL,17/03/2017,II,3863862,500.00,HC107980,Neopost Limited,201712,Resources,Supplies & Services
INSERTED DETAIL,17/03/2017,II,3863869,"9,833.00",HC106098,Millhouse Residential Care Home,201712,Learning Disabilities,Third Party Payments
INSERTED DETAIL,24/03/2017,II,3863871,852.00,HC120404,REDACTED,201712,Mental Health,Supplies & Services
INSERTED DETAIL,24/03/2017,II,3863872,534.90,HC120404,REDACTED,201712,Mental Health,Supplies & Services
INSERTED DETAIL,24/03/2017,II,3863873,540.70,HC120404,REDACTED,201712,Mental Health,Supplies & Services
INSERTED DETAIL,24/03/2017,II,3863874,552.30,HC120404,REDACTED,201712,Mental Health,Supplies & Services
INSERTED DETAIL,24/03/2017,II,3863875,420.00,HC122267,MBMASOSO Ltd,201712,Mental Health,Supplies & Services
INSERTED DETAIL,24/03/2017,II,3863876,420.00,HC122267,MBMASOSO Ltd,201712,Mental Health,Supplies & Services
INSERTED DETAIL,24/03/2017,II,3863877,420.00,HC122267,MBMASOSO Ltd,201712,Mental Health,Supplies & Services
INSERTED DETAIL,17/03/2017,II,3863880,"1,561.00",HC108604,PGL Travel Ltd,201712,Schools,Supplies & Services
INSERTED DETAIL,17/03/2017,II,3863883,"2,250.00",HC115220,RHCS - Rawlings Heffernan Consultancy Services Limited,201712,Communities,Third Party Payments
INSERTED DETAIL,17/03/2017,II,3863886,"4,465.51",HC102156,D & D Network Services Ltd,201712,Schools,Supplies & Services
INSERTED DETAIL,17/03/2017,II,3863887,"1,465.80",HC108283,Orleton School Meals,201712,Schools,Supplies & Services
INSERTED DETAIL,17/03/2017,II,3863888,"1,220.02",HC111687,YHA Cardiff,201712,Schools,Supplies & Services
INSERTED DETAIL,17/03/2017,II,3863892,"10,324.01",HC113873,Natural Environment Research Council - NERC,201712,Growth,Supplies & Services
INSERTED DETAIL,24/03/2017,II,3863893,"1,161.44",HC106003,Metric Group Ltd,201712,Environment and Place,Supplies & Services
INSERTED DETAIL,17/03/2017,II,3863894,472.00,HC103621,H & H Motors,201712,Environment and Place,Third Party Payments
INSERTED DETAIL,24/03/2017,II,3863903,"1,202.00",HC111136,University Of Birmingham,201712,Safeguarding and Family Support,Supplies & Services
INSERTED DETAIL,24/03/2017,II,3863907,571.10,HC103982,HVOSS,201712,Learning Disabilities,Transport-Related Expenditure
INSERTED DETAIL,24/03/2017,II,3863908,"1,710.00",HC109259,CADline Ltd,201712,Environment and Place,Supplies & Services
INSERTED DETAIL,24/03/2017,II,3863908,"2,040.00",HC109259,CADline Ltd,201712,Resources,Supplies & Services
INSERTED DETAIL,22/03/2017,II,3863916,684.00,HC101060,Blue Line Taxis,201712,Environment and Place,Transport-Related Expenditure
INSERTED DETAIL,22/03/2017,II,3863917,663.00,HC101060,Blue Line Taxis,201712,Environment and Place,Transport-Related Expenditure
INSERTED DETAIL,22/03/2017,II,3863924,478.96,HC105926,Mavis Russell Cleaning Ltd,201712,Schools,Premises-Related Expenditure
INSERTED DETAIL,24/03/2017,II,3863942,"4,794.50",HC103935,Herefordshire & Ludlow College,201712,Education and Commissioning,Supplies & Services
INSERTED DETAIL,31/03/2017,II,3863952,"3,023.36",HC110117,Stagecoach Services Limited,201712,Environment and Place,Third Party Payments
INSERTED DETAIL,22/03/2017,II,3863954,"1,120.00",HC101060,Blue Line Taxis,201712,Learning Disabilities,Transport-Related Expenditure
INSERTED DETAIL,22/03/2017,II,3863958,510.00,HC101060,Blue Line Taxis,201712,Environment and Place,Transport-Related Expenditure
INSERTED DETAIL,22/03/2017,II,3863961,425.00,HC122568,REDACTED,201712,Communities,Supplies & Services
INSERTED DETAIL,22/03/2017,II,3863963,"2,499.00",HC122773,REDACTED,201712,Safeguarding and Family Support,Supplies & Services
INSERTED DETAIL,22/03/2017,II,3863965,"1,824.00",HC100528,B & H Cars,201712,Learning Disabilities,Transport-Related Expenditure
INSERTED DETAIL,22/03/2017,II,3863966,"1,050.00",HC101060,Blue Line Taxis,201712,Environment and Place,Transport-Related Expenditure
INSERTED DETAIL,22/03/2017,II,3863967,"1,536.00",HC101060,Blue Line Taxis,201712,Environment and Place,Transport-Related Expenditure
INSERTED DETAIL,22/03/2017,II,3863968,615.00,HC101060,Blue Line Taxis,201712,Environment and Place,Transport-Related Expenditure
INSERTED DETAIL,22/03/2017,II,3863969,432.00,HC101060,Blue Line Taxis,201712,Environment and Place,Transport-Related Expenditure
INSERTED DETAIL,22/03/2017,II,3863971,"1,750.00",HC122786,The Energy Institute,201712,Environment and Place,Employees
INSERTED DETAIL,22/03/2017,II,3863972,"1,000.00",HC122341,The Sash Restoration Co (Hereford) Ltd,201712,Environment and Place,Transfer Payments
INSERTED DETAIL,24/03/2017,II,3863975,"1,518.75",HC100385,Alliance In Partnership,201712,Schools,Supplies & Services
INSERTED DETAIL,24/03/2017,II,3863987,557.50,HC122831,Clickers Archery Ltd,201712,Schools,Supplies & Services
INSERTED DETAIL,22/03/2017,II,3863989,"1,400.00",HC122834,Coram Life Education Trading Ltd,201712,Schools,Supplies & Services
INSERTED DETAIL,22/03/2017,II,3863993,"3,000.00",HC119958,Rich Analysts Ltd,201712,Schools,Supplies & Services
INSERTED DETAIL,22/03/2017,II,3863996,466.64,HC118096,Twinkl Ltd,201712,Schools,Supplies & Services
INSERTED DETAIL,22/03/2017,II,3864011,701.69,HC105323,Leominster Primary School Imprest,201712,Schools,Supplies & Services
INSERTED DETAIL,22/03/2017,II,3864032,"1,372.50",HC107522,Mrs M J Thomson (The Iron Rice Bowl),201712,Schools,Supplies & Services
INSERTED DETAIL,22/03/2017,II,3864041,900.00,HC105512,Lord Combustion Services Ltd,201712,Schools,Premises-Related Expenditure
INSERTED DETAIL,22/03/2017,II,3864042,"2,240.00",HC114802,Malvern Hills Outdoor Education Co Ltd,201712,Schools,Supplies & Services
INSERTED DETAIL,22/03/2017,II,3864045,645.06,HC104882,K T Gooch,201712,Schools,Supplies & Services
INSERTED DETAIL,22/03/2017,II,3864049,601.32,HC109997,Spa Gas Ltd,201712,Schools,Premises-Related Expenditure
INSERTED DETAIL,22/03/2017,II,3864062,532.08,HC105926,Mavis Russell Cleaning Ltd,201712,Schools,Premises-Related Expenditure
INSERTED DETAIL,22/03/2017,II,3864063,"2,280.00",HC102749,Edutech Solutions Ltd,201712,Schools Devolved Capital,Capital Expenditure
INSERTED DETAIL,22/03/2017,II,3864065,502.53,HC111426,West Mercia Supplies (The Consortium),201712,Schools,Supplies & Services
INSERTED DETAIL,22/03/2017,II,3864073,761.40,HC115217,NHS Herefordshire CCG,201712,Public Health,Supplies & Services
INSERTED DETAIL,22/03/2017,II,3864074,"1,420.00",HC101712,REDACTED,201712,Safeguarding and Family Support,Supplies & Services
INSERTED DETAIL,22/03/2017,II,3864075,"1,145.00",HC122708,Cleftbridge Ltd.,201712,Communities,Supplies & Services
INSERTED DETAIL,24/03/2017,II,3864078,700.00,HC103871,REDACTED,201712,Adults Operations,Supplies & Services
INSERTED DETAIL,22/03/2017,II,3864079,690.00,HC101060,Blue Line Taxis,201712,Environment and Place,Transport-Related Expenditure
INSERTED DETAIL,22/03/2017,II,3864080,"3,058.00",HC111332,Warwickshire County Council,201712,Environment and Place,Supplies & Services
INSERTED DETAIL,22/03/2017,II,3864086,"1,072.55",HC112667,School Pupil Tracker Ltd,201712,Schools,Supplies & Services
INSERTED DETAIL,22/03/2017,II,3864090,600.00,HC118814,REDACTED,201712,Schools,Supplies & Services
INSERTED DETAIL,22/03/2017,II,3864095,"1,029.89",HC111060,TTS Group Ltd,201712,Schools,Supplies & Services
INSERTED DETAIL,22/03/2017,II,3864099,"1,479.00",HC112667,School Pupil Tracker Ltd,201712,Schools,Supplies & Services
INSERTED DETAIL,22/03/2017,II,3864104,"2,697.87",HC109717,Sentinel Security Systems,201712,Schools Devolved Capital,Capital Expenditure
INSERTED DETAIL,22/03/2017,II,3864105,655.12,HC109717,Sentinel Security Systems,201712,Schools Devolved Capital,Capital Expenditure
INSERTED DETAIL,22/03/2017,II,3864109,455.00,HC122551,Activate Central Ltd,201712,Schools,Employees
INSERTED DETAIL,22/03/2017,II,3864115,705.00,HC111332,Warwickshire County Council,201712,Environment and Place,Employees
INSERTED DETAIL,22/03/2017,II,3864116,"1,336.00",HC111332,Warwickshire County Council,201712,Environment and Place,Supplies & Services
INSERTED DETAIL,22/03/2017,II,3864118,"57,392.80",HC108143,Nottingham Rehab Ltd,201712,Commissioning Adults,Supplies & Services
INSERTED DETAIL,22/03/2017,II,3864118,"14,313.15",HC108143,Nottingham Rehab Ltd,201712,Commissioning Adults,Transport-Related Expenditure
INSERTED DETAIL,22/03/2017,II,3864143,707.00,HC113223,REDACTED,201712,Schools,Supplies & Services
INSERTED DETAIL,22/03/2017,II,3864151,"2,435.26",HC114093,H G Clewer Ltd,201712,Public Health,Supplies & Services
INSERTED DETAIL,31/03/2017,II,3864154,"9,118.46",HC103981,Herefordshire Vision Links,201712,Commissioning Adults,Supplies & Services
INSERTED DETAIL,31/03/2017,II,3864155,"9,118.46",HC103981,Herefordshire Vision Links,201712,Commissioning Adults,Supplies & Services
INSERTED DETAIL,22/03/2017,II,3864156,"1,900.00",HC122185,Spring Housing Association Ltd,201712,Commissioning Adults,Premises-Related Expenditure
INSERTED DETAIL,22/03/2017,II,3864160,"4,091.00",HC103879,Hereford Mobility Centre,201712,Housing & Independent Living Capital,Capital Expenditure
INSERTED DETAIL,22/03/2017,II,3864174,"1,215.50",HC102014,Coordination Group Publications Ltd,201712,Schools,Supplies & Services
INSERTED DETAIL,22/03/2017,II,3864184,676.80,HC100165,Supplymeprint.com Ltd T/A ABC,201712,Environment and Place,Suspense Accounts
INSERTED DETAIL,22/03/2017,II,3864186,500.00,HC122837,REDACTED,201712,Adults Operations,Supplies & Services
INSERTED DETAIL,22/03/2017,II,3864195,"1,377.00",HC106975,Hoople Ltd,201712,Schools,Supplies & Services
INSERTED DETAIL,22/03/2017,II,3864197,681.41,HC108443,West Mercia Energy,201712,Schools,Premises-Related Expenditure
INSERTED DETAIL,22/03/2017,II,3864198,"2,275.00",HC120648,Systemslink2000 Ltd,201712,Environment and Place,Supplies & Services
INSERTED DETAIL,22/03/2017,II,3864199,"317,208.45",HC103144,Fcc Environment Services (uk) Ltd,201712,Environment and Place,Third Party Payments
INSERTED DETAIL,22/03/2017,II,3864200,520.55,HC109997,Spa Gas Ltd,201712,Schools,Premises-Related Expenditure
INSERTED DETAIL,22/03/2017,II,3864201,"1,708.30",HC121246,REDACTED,201712,Adults Operations,Supplies & Services
INSERTED DETAIL,22/03/2017,II,3864205,"3,957.00",HC111332,Warwickshire County Council,201712,Environment and Place,Supplies & Services
INSERTED DETAIL,24/03/2017,II,3864216,"1,202.00",HC111136,University Of Birmingham,201712,Safeguarding and Family Support,Supplies & Services
INSERTED DETAIL,24/03/2017,II,3864218,"1,202.00",HC111136,University Of Birmingham,201712,Safeguarding and Family Support,Supplies & Services
INSERTED DETAIL,22/03/2017,II,3864227,"2,550.00",HC122633,EMAP Publishing Ltd,201712,Environment and Place,Supplies & Services
INSERTED DETAIL,22/03/2017,II,3864232,"5,000.00",HC102416,Neopost Ltd,201712,Resources,Supplies & Services
INSERTED DETAIL,21/03/2017,II,3864235,"528,606.52",HC103831,Hereford & Worc Fire & Rescue Service,201712,Collection Fund,Collection Fund Accounts
INSERTED DETAIL,21/03/2017,II,3864236,"34,012.00",HC103831,Hereford & Worc Fire & Rescue Service,201712,Consolidated Revenue Account,Supplies & Services
INSERTED DETAIL,22/03/2017,II,3864237,"1,125.00",HC111024,Trinity Primary School (Imprest/Petty Cash),201712,Schools,Employees
INSERTED DETAIL,22/03/2017,II,3864237,"1,255.32",HC111024,Trinity Primary School (Imprest/Petty Cash),201712,Schools,Supplies & Services
INSERTED DETAIL,22/03/2017,II,3864238,962.50,HC122805,Priory Hospital School,201712,Education and Commissioning,Support Services
INSERTED DETAIL,22/03/2017,II,3864239,962.50,HC122805,Priory Hospital School,201712,Education and Commissioning,Support Services
INSERTED DETAIL,22/03/2017,II,3864242,"1,225.00",HC122805,Priory Hospital School,201712,Education and Commissioning,Support Services
INSERTED DETAIL,22/03/2017,II,3864246,787.50,HC122805,Priory Hospital School,201712,Education and Commissioning,Support Services
INSERTED DETAIL,22/03/2017,II,3864247,437.50,HC122805,Priory Hospital School,201712,Education and Commissioning,Support Services
INSERTED DETAIL,22/03/2017,II,3864249,440.59,HC104739,John Masefield High School (Academy),201712,Education and Commissioning,Transfer Payments
INSERTED DETAIL,21/03/2017,II,3864250,"238,529.96",HC111489,Whitecross@Stepnell Ltd,201712,Education and Commissioning,Premises-Related Expenditure
INSERTED DETAIL,21/03/2017,II,3864251,"1,083.00",HC114625,O B & K D Roberts,201712,Environment and Place,Supplies & Services
INSERTED DETAIL,24/03/2017,II,3864252,600.00,HC122709,The Huntercombe Group,201712,Education and Commissioning,Support Services
INSERTED DETAIL,22/03/2017,II,3864256,640.00,HC110083,St Mary's R C High School,201712,Education and Commissioning,Support Services
INSERTED DETAIL,22/03/2017,II,3864257,795.00,HC110752,VisionAid Technologies Ltd,201712,Education and Commissioning,Supplies & Services
INSERTED DETAIL,22/03/2017,II,3864258,"1,511.51",HC108443,West Mercia Energy,201712,Schools,Premises-Related Expenditure
INSERTED DETAIL,22/03/2017,II,3864259,"1,584.35",HC101858,CLEAPSS,201712,Education and Commissioning,Supplies & Services
INSERTED DETAIL,22/03/2017,II,3864262,846.20,HC104739,John Masefield High School (Academy),201712,Education and Commissioning,Employees
INSERTED DETAIL,22/03/2017,II,3864263,"9,963.70",HC118879,Externniture Ltd,201712,Environment and Place,Supplies & Services
INSERTED DETAIL,22/03/2017,II,3864264,"1,500.00",HC111603,Worcestershire County Council,201712,Environment and Place,Supplies & Services
INSERTED DETAIL,24/03/2017,II,3864266,"4,999.98",HC106975,Hoople Ltd,201712,Environment and Place,Supplies & Services
INSERTED DETAIL,24/03/2017,II,3864269,486.00,HC104284,Insight Direct (UK) Ltd,201712,Resources,Supplies & Services
INSERTED DETAIL,22/03/2017,II,3864270,477.64,HC111060,TTS Group Ltd,201712,Schools,Supplies & Services
INSERTED DETAIL,24/03/2017,II,3864271,"17,600.00",HC111135,University Of  Worcester,201712,Adults Operations,Supplies & Services
INSERTED DETAIL,22/03/2017,II,3864280,466.62,HC108443,West Mercia Energy,201712,Schools,Premises-Related Expenditure
INSERTED DETAIL,22/03/2017,II,3864281,"2,013.29",HC108443,West Mercia Energy,201712,Schools,Premises-Related Expenditure
INSERTED DETAIL,22/03/2017,II,3864282,843.40,HC108443,West Mercia Energy,201712,Schools,Premises-Related Expenditure
INSERTED DETAIL,22/03/2017,II,3864283,690.85,HC108443,West Mercia Energy,201712,Schools,Premises-Related Expenditure
INSERTED DETAIL,22/03/2017,II,3864284,651.90,HC108443,West Mercia Energy,201712,Schools,Premises-Related Expenditure
INSERTED DETAIL,22/03/2017,II,3864285,601.94,HC108443,West Mercia Energy,201712,Schools,Premises-Related Expenditure
INSERTED DETAIL,22/03/2017,II,3864287,689.36,HC108443,West Mercia Energy,201712,Schools,Premises-Related Expenditure
INSERTED DETAIL,22/03/2017,II,3864288,641.38,HC108443,West Mercia Energy,201712,Schools,Premises-Related Expenditure
INSERTED DETAIL,22/03/2017,II,3864289,933.62,HC108443,West Mercia Energy,201712,Schools,Premises-Related Expenditure
INSERTED DETAIL,22/03/2017,II,3864290,753.10,HC108443,West Mercia Energy,201712,Schools,Premises-Related Expenditure
INSERTED DETAIL,22/03/2017,II,3864291,"1,066.06",HC108443,West Mercia Energy,201712,Schools,Premises-Related Expenditure
INSERTED DETAIL,24/03/2017,II,3864292,727.84,HC103526,Gough Bailey Wright,201712,Environment and Place,Supplies & Services
INSERTED DETAIL,31/03/2017,II,3864293,976.50,HC107737,MS & EM Patrick Ltd,201712,Environment and Place,Supplies & Services
INSERTED DETAIL,22/03/2017,II,3864306,"2,350.00",HC102825,Elklan,201712,Education and Commissioning,Supplies & Services
INSERTED DETAIL,22/03/2017,II,3864309,"22,500.00",HC104097,Hope For Children & Their Families Ltd,201712,Education and Commissioning,Third Party Payments
INSERTED DETAIL,22/03/2017,II,3864311,"6,546.20",HC111775,Compass Minerals UK Limited,201712,Environment and Place,Supplies & Services
INSERTED DETAIL,22/03/2017,II,3864312,"2,179.60",HC111775,Compass Minerals UK Limited,201712,Environment and Place,Supplies & Services
INSERTED DETAIL,22/03/2017,II,3864313,"1,115.72",HC111775,Compass Minerals UK Limited,201712,Environment and Place,Supplies & Services
INSERTED DETAIL,22/03/2017,II,3864314,"4,358.37",HC111775,Compass Minerals UK Limited,201712,Environment and Place,Supplies & Services
INSERTED DETAIL,22/03/2017,II,3864315,"3,225.38",HC111775,Compass Minerals UK Limited,201712,Environment and Place,Supplies & Services
INSERTED DETAIL,22/03/2017,II,3864316,"9,853.85",HC111775,Compass Minerals UK Limited,201712,Environment and Place,Supplies & Services
INSERTED DETAIL,22/03/2017,II,3864317,"1,085.27",HC111775,Compass Minerals UK Limited,201712,Environment and Place,Supplies & Services
INSERTED DETAIL,22/03/2017,II,3864318,"2,205.93",HC111775,Compass Minerals UK Limited,201712,Environment and Place,Supplies & Services
INSERTED DETAIL,22/03/2017,II,3864319,"1,085.27",HC111775,Compass Minerals UK Limited,201712,Environment and Place,Supplies & Services
INSERTED DETAIL,22/03/2017,II,3864320,"4,420.08",HC111775,Compass Minerals UK Limited,201712,Environment and Place,Supplies & Services
INSERTED DETAIL,22/03/2017,II,3864322,"2,030.00",HC102707,ECHO,201712,Education and Commissioning,Supplies & Services
INSERTED DETAIL,24/03/2017,II,3864324,"1,725.00",HC116456,Core Assets Childrens Services Ltd,201712,Education and Commissioning,Third Party Payments
INSERTED DETAIL,22/03/2017,II,3864328,"4,762.50",HC117835,The Brookfield School (Academy),201712,Education and Commissioning,Supplies & Services
INSERTED DETAIL,22/03/2017,II,3864329,"1,575.00",HC122805,Priory Hospital School,201712,Education and Commissioning,Support Services
INSERTED DETAIL,22/03/2017,II,3864330,"2,100.00",HC122805,Priory Hospital School,201712,Education and Commissioning,Support Services
INSERTED DETAIL,22/03/2017,II,3864331,787.50,HC122805,Priory Hospital School,201712,Education and Commissioning,Support Services
INSERTED DETAIL,22/03/2017,II,3864332,"1,332.00",HC122804,Cygnet (Surrey) Ltd,201712,Education and Commissioning,Support Services
INSERTED DETAIL,22/03/2017,II,3864333,"1,332.00",HC122804,Cygnet (Surrey) Ltd,201712,Education and Commissioning,Support Services
INSERTED DETAIL,22/03/2017,II,3864334,444.00,HC122804,Cygnet (Surrey) Ltd,201712,Education and Commissioning,Support Services
INSERTED DETAIL,22/03/2017,II,3864335,"1,628.00",HC122804,Cygnet (Surrey) Ltd,201712,Education and Commissioning,Support Services
INSERTED DETAIL,22/03/2017,II,3864336,888.00,HC122804,Cygnet (Surrey) Ltd,201712,Education and Commissioning,Support Services
INSERTED DETAIL,24/03/2017,II,3864337,"2,000.00",HC110698,The Music Pool,201712,Education and Commissioning,Supplies & Services
INSERTED DETAIL,22/03/2017,II,3864341,637.69,HC101003,Bikold Ltd,201712,Schools,Supplies & Services
INSERTED DETAIL,22/03/2017,II,3864345,"6,560.18",HC111775,Compass Minerals UK Limited,201712,Environment and Place,Supplies & Services
INSERTED DETAIL,22/03/2017,II,3864346,"7,735.14",HC111775,Compass Minerals UK Limited,201712,Environment and Place,Supplies & Services
INSERTED DETAIL,22/03/2017,II,3864347,"1,080.34",HC111775,Compass Minerals UK Limited,201712,Environment and Place,Supplies & Services
INSERTED DETAIL,22/03/2017,II,3864348,"13,159.86",HC111775,Compass Minerals UK Limited,201712,Environment and Place,Supplies & Services
INSERTED DETAIL,22/03/2017,II,3864349,"12,074.59",HC111775,Compass Minerals UK Limited,201712,Environment and Place,Supplies & Services
INSERTED DETAIL,22/03/2017,II,3864366,"6,019.83",HC114712,Cinderford Artspace Ltd,201712,Environment and Place,Supplies & Services
INSERTED DETAIL,22/03/2017,II,3864381,556.52,HC111426,West Mercia Supplies (The Consortium),201712,Schools,Supplies & Services
INSERTED DETAIL,22/03/2017,II,3864384,750.00,HC113960,Barrs Court Academy,201712,Education and Commissioning,Transfer Payments
INSERTED DETAIL,22/03/2017,II,3864385,500.00,HC111508,Wigmore High School (Academy),201712,Education and Commissioning,Transfer Payments
INSERTED DETAIL,22/03/2017,II,3864386,647.74,HC105525,REDACTED,201712,Education and Commissioning,Supplies & Services
INSERTED DETAIL,22/03/2017,II,3864387,"6,307.87",HC114613,National Star College,201712,Central Childrens Directorate Costs,Support Services
INSERTED DETAIL,22/03/2017,II,3864391,418.51,HC101444,Calor Gas Ltd,201712,Schools,Premises-Related Expenditure
INSERTED DETAIL,24/03/2017,II,3864392,"3,175.00",HC111136,University Of Birmingham,201712,Safeguarding and Family Support,Supplies & Services
INSERTED DETAIL,22/03/2017,II,3864394,"5,096.00",HC110760,The Red Ridge Centre,201712,Schools,Supplies & Services
INSERTED DETAIL,24/03/2017,II,3864404,654.75,HC100385,Alliance In Partnership,201712,Schools,Supplies & Services
INSERTED DETAIL,22/03/2017,II,3864407,470.00,HC103165,Alere  Forensics,201712,Communities,Supplies & Services
INSERTED DETAIL,24/03/2017,II,3864410,"1,000.00",HC122055,ATECH Contractors,201712,Communities,Supplies & Services
INSERTED DETAIL,24/03/2017,II,3864417,"1,041.75",HC100385,Alliance In Partnership,201712,Schools,Supplies & Services
INSERTED DETAIL,22/03/2017,II,3864421,"3,010.00",HC110658,The Houghton Project,201712,Education and Commissioning,Supplies & Services
INSERTED DETAIL,24/03/2017,II,3864423,"1,750.00",HC122055,ATECH Contractors,201712,Communities,Supplies & Services
INSERTED DETAIL,24/03/2017,II,3864425,"17,300.00",HC122055,ATECH Contractors,201712,Communities,Supplies & Services
INSERTED DETAIL,22/03/2017,II,3864430,855.00,HC102156,D & D Network Services Ltd,201712,Schools,Support Services
INSERTED DETAIL,24/03/2017,II,3864433,"1,121.29",HC118193,Bolinda UK Ltd,201712,Communities,Supplies & Services
INSERTED DETAIL,24/03/2017,II,3864435,675.00,HC107776,CIEH Cymru Wales,201712,Environment and Place,Employees
INSERTED DETAIL,22/03/2017,II,3864444,460.00,HC104157,I Can Charity,201712,Schools,Supplies & Services
INSERTED DETAIL,22/03/2017,II,3864445,583.30,HC118096,Twinkl Ltd,201712,Schools,Supplies & Services
INSERTED DETAIL,24/03/2017,II,3864457,469.72,HC105512,Lord Combustion Services Ltd,201712,Schools,Premises-Related Expenditure
INSERTED DETAIL,22/03/2017,II,3864460,850.99,HC101444,Calor Gas Ltd,201712,Schools,Premises-Related Expenditure
INSERTED DETAIL,22/03/2017,II,3864461,"8,194.64",HC116854,Fairfield High School (Academy),201712,Schools,Supplies & Services
INSERTED DETAIL,22/03/2017,II,3864463,"2,100.45",HC109152,Relion Heating Services Ltd,201712,Schools,Premises-Related Expenditure
INSERTED DETAIL,22/03/2017,II,3864464,438.90,HC122745,Front Foot Sports,201712,Schools,Supplies & Services
INSERTED DETAIL,22/03/2017,II,3864465,"1,956.39",HC109152,Relion Heating Services Ltd,201712,Schools,Premises-Related Expenditure
INSERTED DETAIL,24/03/2017,II,3864466,775.00,HC122823,D A Carpentry,201712,Communities,Supplies & Services
INSERTED DETAIL,22/03/2017,II,3864472,"2,744.40",HC109826,Shropshire Council,201712,Schools,Supplies & Services
INSERTED DETAIL,22/03/2017,II,3864475,550.00,HC115947,Elgar Coaches,201712,Schools,Supplies & Services
INSERTED DETAIL,22/03/2017,II,3864484,662.50,HC112244,1st Choice Blinds,201712,Schools,Premises-Related Expenditure
INSERTED DETAIL,22/03/2017,II,3864489,"2,250.00",HC120236,Planning and Management Ltd,201712,Growth,Third Party Payments
INSERTED DETAIL,22/03/2017,II,3864490,540.00,HC108941,Quickskip Hereford Limited,201712,Schools,Premises-Related Expenditure
INSERTED DETAIL,22/03/2017,II,3864492,"2,542.50",HC108361,P W Jones (Hereford) Ltd,201712,Environment and Place,Transport-Related Expenditure
INSERTED DETAIL,22/03/2017,II,3864493,"2,513.25",HC108361,P W Jones (Hereford) Ltd,201712,Environment and Place,Transport-Related Expenditure
INSERTED DETAIL,22/03/2017,II,3864494,589.00,HC111044,Truancy Call Ltd T/A Contact Group,201712,Schools,Supplies & Services
INSERTED DETAIL,22/03/2017,II,3864495,"27,000.00",HC111332,REDACTED,201712,Safeguarding and Family Support,Supplies & Services
INSERTED DETAIL,22/03/2017,II,3864496,"3,227.00",HC122840,Brighton School of Business & Management Ltd,201712,Growth,Supplies & Services
INSERTED DETAIL,24/03/2017,II,3864497,"1,584.00",HC118023,REDACTED,201712,Environment and Place,Transport-Related Expenditure
INSERTED DETAIL,24/03/2017,II,3864498,"1,320.00",HC118023,REDACTED,201712,Environment and Place,Transport-Related Expenditure
INSERTED DETAIL,24/03/2017,II,3864505,433.00,HC110066,St John Ambulance,201712,Resources,Supplies & Services
INSERTED DETAIL,29/03/2017,II,3864506,627.60,HC112921,Ancer Spa Ltd,201712,Growth,Third Party Payments
INSERTED DETAIL,22/03/2017,II,3864517,"1,050.00",HC110760,The Red Ridge Centre,201712,Schools,Supplies & Services
INSERTED DETAIL,22/03/2017,II,3864523,422.34,HC101444,Calor Gas Ltd,201712,Schools,Premises-Related Expenditure
INSERTED DETAIL,22/03/2017,II,3864528,556.00,HC122739,Elite Catering,201712,Schools,Supplies & Services
INSERTED DETAIL,24/03/2017,II,3864530,665.42,HC108505,Pearson Education Ltd,201712,Schools,Supplies & Services
INSERTED DETAIL,22/03/2017,II,3864531,516.00,HC102407,Dfe Uk Ltd,201712,Schools,Premises-Related Expenditure
INSERTED DETAIL,22/03/2017,II,3864536,"1,237.50",HC108361,P W Jones (Hereford) Ltd,201712,Environment and Place,Transport-Related Expenditure
INSERTED DETAIL,22/03/2017,II,3864540,559.00,HC106639,Demco Europe Ltd,201712,Schools,Supplies & Services
INSERTED DETAIL,22/03/2017,II,3864541,"1,128.00",HC104352,J P Catering,201712,Schools,Supplies & Services
INSERTED DETAIL,22/03/2017,II,3864543,880.95,HC101856,Cleanmy Ltd,201712,Schools,Premises-Related Expenditure
INSERTED DETAIL,24/03/2017,II,3864550,600.00,HC116192,REDACTED,201712,Safeguarding and Family Support,Supplies & Services
INSERTED DETAIL,22/03/2017,II,3864559,"2,017.50",HC120322,Aquarium CMS Ltd (Direct Debit),201712,Integrated Commissioning,Capital Expenditure
INSERTED DETAIL,22/03/2017,II,3864560,"2,006.00",HC120322,Aquarium CMS Ltd (Direct Debit),201712,Integrated Commissioning,Capital Expenditure
INSERTED DETAIL,22/03/2017,II,3864561,"2,011.00",HC120322,Aquarium CMS Ltd (Direct Debit),201712,Integrated Commissioning,Capital Expenditure
INSERTED DETAIL,07/04/2017,II,3864562,"2,014.00",HC120322,Aquarium CMS Ltd (Direct Debit),201712,Integrated Commissioning,Capital Expenditure
INSERTED DETAIL,22/03/2017,II,3864569,591.30,HC102685,Early Years Resources,201712,Schools,Premises-Related Expenditure
INSERTED DETAIL,22/03/2017,II,3864571,884.40,HC113150,Edge Renewables Ltd,201712,Schools,Premises-Related Expenditure
INSERTED DETAIL,22/03/2017,II,3864572,516.10,HC119223,Wealden Leisure Ltd T/A Freedom Leisure,201712,Schools,Premises-Related Expenditure
INSERTED DETAIL,22/03/2017,II,3864573,"1,416.00",HC119182,Friends of Master's House Ledbury,201712,Communities,Supplies & Services
INSERTED DETAIL,24/03/2017,II,3864575,741.86,HC118927,REDACTED,201712,Safeguarding and Family Support,Supplies & Services
INSERTED DETAIL,24/03/2017,II,3864576,934.40,HC111805,REDACTED,201712,Safeguarding and Family Support,Supplies & Services
INSERTED DETAIL,24/03/2017,II,3864585,"3,167.10",HC103508,Goodrich School Meals Ass.,201712,Schools,Supplies & Services
INSERTED DETAIL,22/03/2017,II,3864588,"170,673.81",HC122855,Eversheds Sutherland (International) LLP,201712,Commissioning Capital,Capital Expenditure
INSERTED DETAIL,24/03/2017,II,3864591,"1,695.00",HC104055,HM Courts & Tribunals Service,201712,Resources,Supplies & Services
INSERTED DETAIL,22/03/2017,II,3864595,"10,031.00",HC112977,Brightstripe - Cultural Health CIC,201712,Public Health,Supplies & Services
INSERTED DETAIL,22/03/2017,II,3864598,"1,353.00",HC122441,REDACTED,201712,Safeguarding and Family Support,Third Party Payments
INSERTED DETAIL,22/03/2017,II,3864599,"1,307.31",HC122843,REDACTED,201712,Education and Commissioning,Employees
INSERTED DETAIL,22/03/2017,II,3864600,"8,109.00",HC103879,Hereford Mobility Centre,201712,Housing & Independent Living Capital,Capital Expenditure
INSERTED DETAIL,29/03/2017,II,3864604,"381,396.25",HC101232,Speller Metcalfe Malvern Ltd,201712,Resources Capital,Capital Expenditure
INSERTED DETAIL,22/03/2017,II,3864616,700.00,HC101178,Bridges Electrical (Hereford) Ltd,201712,Schools,Premises-Related Expenditure
INSERTED DETAIL,22/03/2017,II,3864621,624.00,HC110289,All Safety Matters Ltd,201712,Schools,Employees
INSERTED DETAIL,22/03/2017,II,3864633,"1,127.85",HC108319,Oxford University Press,201712,Schools,Supplies & Services
INSERTED DETAIL,22/03/2017,II,3864635,"1,112.00",HC110034,Superstars School Services Ltd,201712,Schools,Supplies & Services
INSERTED DETAIL,22/03/2017,II,3864637,"1,251.10",HC105202,Laura Gale Dance,201712,Schools,Supplies & Services
INSERTED DETAIL,24/03/2017,II,3864639,691.20,HC122832,Specialised Welding Services Ltd,201712,Schools,Premises-Related Expenditure
INSERTED DETAIL,22/03/2017,II,3864642,420.00,HC116366,REDACTED,201712,Schools,Supplies & Services
INSERTED DETAIL,22/03/2017,II,3864648,560.00,HC108521,Pencombe & Little Cowarne Parish Hall,201712,Schools,Premises-Related Expenditure
INSERTED DETAIL,22/03/2017,II,3864649,427.50,HC107984,Nessy Learning Ltd,201712,Schools,Supplies & Services
INSERTED DETAIL,22/03/2017,II,3864651,660.00,HC110996,Travel Class Limited T/A Jca,201712,Schools,Supplies & Services
INSERTED DETAIL,31/03/2017,II,3864652,"1,255.50",HC107737,MS & EM Patrick Ltd,201712,Environment and Place,Supplies & Services
INSERTED DETAIL,24/03/2017,II,3864654,"2,950.00",HC102055,Covergold,201712,Communities,Supplies & Services
INSERTED DETAIL,22/03/2017,II,3864668,571.60,HC102444,Falcon Document Solutions Limited,201712,Schools,Supplies & Services
INSERTED DETAIL,,II,3864669,"6,121.00",HC108651,National Youth Advocacy Service (nyas),201712,Education and Commissioning,Third Party Payments
INSERTED DETAIL,,II,3864671,"17,409.25",HC108651,National Youth Advocacy Service (nyas),201712,Education and Commissioning,Third Party Payments
INSERTED DETAIL,24/03/2017,II,3864675,"9,680.00",HC105172,Lambert Smith Hampton Group Ltd,201712,Commissioning Capital,Capital Expenditure
INSERTED DETAIL,22/03/2017,II,3864677,"6,600.00",HC122190,Refugee Action,201712,Commissioning Adults,Third Party Payments
INSERTED DETAIL,22/03/2017,II,3864678,500.00,HC109684,Sea Legs Puppet Theatre Co.,201712,Communities,Supplies & Services
INSERTED DETAIL,22/03/2017,II,3864679,"1,316.90",HC110698,The Music Pool,201712,Communities,Supplies & Services
INSERTED DETAIL,24/03/2017,II,3864682,687.05,HC108646,PHS Group Plc,201712,Environment and Place,Third Party Payments
INSERTED DETAIL,24/03/2017,II,3864683,737.17,HC100656,Allstar Business Solutions Ltd (Arval),201712,Environment and Place,Transport-Related Expenditure
INSERTED DETAIL,31/03/2017,II,3864686,"1,513.88",HC110975,Tradebe  Gwent Ltd,201712,Environment and Place,Supplies & Services
INSERTED DETAIL,29/03/2017,II,3864688,"3,425.52",HC100626,REDACTED,201712,Safeguarding and Family Support,Transport-Related Expenditure
INSERTED DETAIL,24/03/2017,II,3864692,"5,404.18",HC110451,Telent Traffic Technology Services Ltd,201712,Environment and Place,Third Party Payments
INSERTED DETAIL,24/03/2017,II,3864693,520.30,HC100385,Alliance In Partnership,201712,Schools,Supplies & Services
INSERTED DETAIL,24/03/2017,II,3864695,"5,580.21",HC112548,London Explorers Ltd,201712,Schools,Supplies & Services
INSERTED DETAIL,24/03/2017,II,3864698,"27,500.00",HC101472,Capita Business Services Ltd,201712,Resources,Supplies & Services
INSERTED DETAIL,24/03/2017,II,3864699,"16,500.00",HC101472,Capita Business Services Ltd,201712,Resources,Supplies & Services
INSERTED DETAIL,24/03/2017,II,3864700,"12,480.00",HC117406,SSI Schaefer Ltd,201712,Environment and Place,Supplies & Services
INSERTED DETAIL,24/03/2017,II,3864702,430.00,HC108132,Northern Link Traffic Data Consultancy Ltd,201712,Commissioning Capital,Capital Expenditure
INSERTED DETAIL,24/03/2017,II,3864703,"1,800.00",HC103616,REDACTED,201712,Safeguarding and Family Support,Suspense Accounts
INSERTED DETAIL,24/03/2017,II,3864710,630.00,HC107583,hArtists Ltd,201712,Communities,Supplies & Services
INSERTED DETAIL,24/03/2017,II,3864722,"1,971.20",HC104352,J P Catering,201712,Schools,Supplies & Services
INSERTED DETAIL,24/03/2017,II,3864723,"4,418.25",HC122784,LEB Consultancy Ltd,201712,Safeguarding and Family Support,Supplies & Services
INSERTED DETAIL,11/03/2017,II,3864732,"3,206.05",HC102366,BT Onebill (Direct Debit),201712,Resources,Supplies & Services
INSERTED DETAIL,28/03/2017,II,3864733,"7,389.75",HC111216,Salix Finance Ltd,201712,Environment and Place,Premises-Related Expenditure
INSERTED DETAIL,28/03/2017,II,3864734,"10,529.45",HC111216,Salix Finance Ltd,201712,Environment and Place,Premises-Related Expenditure
INSERTED DETAIL,27/03/2017,II,3864736,"2,272.85",HC101387,Allpay Ltd  (Direct Debit only),201712,Resources,Supplies & Services
INSERTED DETAIL,24/03/2017,II,3864746,"7,981.58",HC105361,Lexisnexis Uk,201712,Environment and Place,Supplies & Services
INSERTED DETAIL,24/03/2017,II,3864747,"2,275.90",HC122818,Friends of Herefordshire Archives,201712,Growth,Transfer Payments
INSERTED DETAIL,24/03/2017,II,3864748,738.33,HC105926,Mavis Russell Cleaning Ltd,201712,Schools,Premises-Related Expenditure
INSERTED DETAIL,24/03/2017,II,3864749,738.33,HC105926,Mavis Russell Cleaning Ltd,201712,Schools,Premises-Related Expenditure
INSERTED DETAIL,24/03/2017,II,3864750,506.50,HC105968,Melcon Hereford Ltd,201712,Schools,Premises-Related Expenditure
INSERTED DETAIL,19/04/2017,II,3864754,721.27,HC101382,G4S Cash Service (Direct Debit),201712,Resources,Third Party Payments
INSERTED DETAIL,30/03/2017,II,3864755,433.86,HC114240,Allstar Business Solutions (Direct Debit only),201712,Environment and Place,Transport-Related Expenditure
INSERTED DETAIL,24/03/2017,II,3864760,"7,700.00",HC110711,The National Trust,201712,Schools,Supplies & Services
INSERTED DETAIL,,II,3864762,"1,864.50",HC108651,National Youth Advocacy Service (nyas),201712,Safeguarding and Family Support,Supplies & Services
INSERTED DETAIL,29/03/2017,II,3864764,441.08,HC104568,NPOWER,201712,Environment and Place,Premises-Related Expenditure
INSERTED DETAIL,29/03/2017,II,3864765,481.00,HC111380,Welsh Water,201712,Environment and Place,Premises-Related Expenditure
INSERTED DETAIL,24/03/2017,II,3864770,"1,366.48",HC122843,REDACTED,201712,Education and Commissioning,Employees
INSERTED DETAIL,24/03/2017,II,3864771,571.00,HC122853,REDACTED,201712,Schools,Supplies & Services
INSERTED DETAIL,24/03/2017,II,3864775,"2,420.00",HC114748,PJB Merchants Ltd,201712,Schools,Premises-Related Expenditure
INSERTED DETAIL,24/03/2017,II,3864777,"1,325.00",HC114748,PJB Merchants Ltd,201712,Schools,Premises-Related Expenditure
INSERTED DETAIL,24/03/2017,II,3864778,765.00,HC114748,PJB Merchants Ltd,201712,Schools,Premises-Related Expenditure
INSERTED DETAIL,24/03/2017,II,3864779,630.00,HC110480,Testbase/ Exampro,201712,Schools,Supplies & Services
INSERTED DETAIL,24/03/2017,II,3864780,590.00,HC111332,Warwickshire County Council,201712,Environment and Place,Employees
INSERTED DETAIL,24/03/2017,II,3864781,820.50,HC100653,T-Mex Ltd,201712,Environment and Place,Supplies & Services
INSERTED DETAIL,24/03/2017,II,3864782,"1,776.00",HC122804,Cygnet (Surrey) Ltd,201712,Education and Commissioning,Support Services
INSERTED DETAIL,24/03/2017,II,3864785,893.05,HC108319,Oxford University Press,201712,Schools,Supplies & Services
INSERTED DETAIL,31/03/2017,II,3864786,441.50,HC103290,REDACTED,201712,Safeguarding and Family Support,Supplies & Services
INSERTED DETAIL,24/03/2017,II,3864787,"6,096.00",HC103398,Geotechnical Instruments (UK) Ltd,201712,Environment and Place,Suspense Accounts
INSERTED DETAIL,29/03/2017,II,3864788,628.29,HC106003,Metric Group Ltd,201712,Environment and Place,Supplies & Services
INSERTED DETAIL,24/03/2017,II,3864789,"1,369.85",HC108319,Oxford University Press,201712,Schools,Supplies & Services
INSERTED DETAIL,24/03/2017,II,3864791,"5,571.90",HC105627,Bright Futures 4 Youth,201712,Public Health,Supplies & Services
INSERTED DETAIL,24/03/2017,II,3864792,"4,020.00",HC113877,Albion Computers PLC,201712,Schools,Supplies & Services
INSERTED DETAIL,24/03/2017,II,3864793,"1,480.00",HC111004,Trend Control Systems Limited,201712,Schools,Supplies & Services
INSERTED DETAIL,24/03/2017,II,3864794,624.90,HC118096,Twinkl Ltd,201712,Schools,Supplies & Services
INSERTED DETAIL,24/03/2017,II,3864797,"1,597.95",HC101995,Connevans Ltd,201712,Schools,Supplies & Services
INSERTED DETAIL,24/03/2017,II,3864799,453.93,HC111941,Yorkshire Purchasing,201712,Schools,Supplies & Services
INSERTED DETAIL,24/03/2017,II,3864801,"1,800.00",HC105077,Kingswood Colomendy Ltd,201712,Schools,Supplies & Services
INSERTED DETAIL,24/03/2017,II,3864803,450.00,HC113877,Albion Computers PLC,201712,Schools,Supplies & Services
INSERTED DETAIL,24/03/2017,II,3864805,"3,470.30",HC113877,Albion Computers PLC,201712,Schools,Supplies & Services
INSERTED DETAIL,24/03/2017,II,3864815,546.00,HC122639,Challenge Supply Co Limited,201712,Schools,Supplies & Services
INSERTED DETAIL,24/03/2017,II,3864817,525.00,HC120317,REDACTED,201712,Schools,Supplies & Services
INSERTED DETAIL,24/03/2017,II,3864819,"1,941.42",HC109458,S C Joseph Ltd,201712,Schools,Premises-Related Expenditure
